Organisation Name,Organisation Code,Unique Ref No ,Effective Date,Directorate where expenditure incurred,Supplier Name ,Payment Date,Net amount,Purpose of Spend,"Procurement Classification
(Higher Level)","Procurement Classification
(Lower Level)",CAPITAL / REVENUE
Walsall Council,http://opendatacommunities.org/id/metropolitan-district-council/walsall ,WC151-1,30.06.2023,CHILDRENS,247 CARS (WILLENHALL) LIMITED,19/06/2023,"1,023.12",6241-Hire of Vehicle with Driver,TRANSPORT,DIRECT TRANSPORT COSTS,REVENUE
Walsall Council,http://opendatacommunities.org/id/metropolitan-district-council/walsall ,WC151-2,30.06.2023,CHILDRENS,247 CARS (WILLENHALL) LIMITED,19/06/2023,"1,138.50",6241-Hire of Vehicle with Driver,TRANSPORT,DIRECT TRANSPORT COSTS,REVENUE
Walsall Council,http://opendatacommunities.org/id/metropolitan-district-council/walsall ,WC151-3,30.06.2023,CHILDRENS,247 CARS (WILLENHALL) LIMITED,19/06/2023,"1,590.40",6241-Hire of Vehicle with Driver,TRANSPORT,DIRECT TRANSPORT COSTS,REVENUE
Walsall Council,http://opendatacommunities.org/id/metropolitan-district-council/walsall ,WC151-4,30.06.2023,CHILDRENS,247 CARS (WILLENHALL) LIMITED,19/06/2023,"1,044.12",6241-Hire of Vehicle with Driver,TRANSPORT,DIRECT TRANSPORT COSTS,REVENUE
Walsall Council,http://opendatacommunities.org/id/metropolitan-district-council/walsall ,WC151-5,30.06.2023,CHILDRENS,247 CARS (WILLENHALL) LIMITED,19/06/2023,"2,065.00",6241-Hire of Vehicle with Driver,TRANSPORT,DIRECT TRANSPORT COSTS,REVENUE
Walsall Council,http://opendatacommunities.org/id/metropolitan-district-council/walsall ,WC151-6,30.06.2023,CHILDRENS,247 CARS (WILLENHALL) LIMITED,19/06/2023,"1,295.00",6241-Hire of Vehicle with Driver,TRANSPORT,DIRECT TRANSPORT COSTS,REVENUE
Walsall Council,http://opendatacommunities.org/id/metropolitan-district-council/walsall ,WC151-7,30.06.2023,CHILDRENS,247 CARS (WILLENHALL) LIMITED,19/06/2023,"1,904.00",6241-Hire of Vehicle with Driver,TRANSPORT,DIRECT TRANSPORT COSTS,REVENUE
Walsall Council,http://opendatacommunities.org/id/metropolitan-district-council/walsall ,WC151-8,30.06.2023,CHILDRENS,247 CARS (WILLENHALL) LIMITED,19/06/2023,"1,680.42",6241-Hire of Vehicle with Driver,TRANSPORT,DIRECT TRANSPORT COSTS,REVENUE
Walsall Council,http://opendatacommunities.org/id/metropolitan-district-council/walsall ,WC151-9,30.06.2023,CHILDRENS,247 CARS (WILLENHALL) LIMITED,19/06/2023,768.32,6241-Hire of Vehicle with Driver,TRANSPORT,DIRECT TRANSPORT COSTS,REVENUE
Walsall Council,http://opendatacommunities.org/id/metropolitan-district-council/walsall ,WC151-10,30.06.2023,CHILDRENS,247 CARS (WILLENHALL) LIMITED,19/06/2023,615.20,6241-Hire of Vehicle with Driver,TRANSPORT,DIRECT TRANSPORT COSTS,REVENUE
Walsall Council,http://opendatacommunities.org/id/metropolitan-district-council/walsall ,WC151-11,30.06.2023,CHILDRENS,247 CARS (WILLENHALL) LIMITED,19/06/2023,"1,590.40",6241-Hire of Vehicle with Driver,TRANSPORT,DIRECT TRANSPORT COSTS,REVENUE
Walsall Council,http://opendatacommunities.org/id/metropolitan-district-council/walsall ,WC151-12,30.06.2023,CHILDRENS,247 CARS (WILLENHALL) LIMITED,19/06/2023,"1,590.40",6241-Hire of Vehicle with Driver,TRANSPORT,DIRECT TRANSPORT COSTS,REVENUE
Walsall Council,http://opendatacommunities.org/id/metropolitan-district-council/walsall ,WC151-13,30.06.2023,CHILDRENS,247 CARS (WILLENHALL) LIMITED,19/06/2023,"1,590.40",6241-Hire of Vehicle with Driver,TRANSPORT,DIRECT TRANSPORT COSTS,REVENUE
Walsall Council,http://opendatacommunities.org/id/metropolitan-district-council/walsall ,WC151-14,30.06.2023,CHILDRENS,247 CARS (WILLENHALL) LIMITED,19/06/2023,"1,842.40",6241-Hire of Vehicle with Driver,TRANSPORT,DIRECT TRANSPORT COSTS,REVENUE
Walsall Council,http://opendatacommunities.org/id/metropolitan-district-council/walsall ,WC151-15,30.06.2023,CHILDRENS,247 CARS (WILLENHALL) LIMITED,19/06/2023,"1,183.00",6241-Hire of Vehicle with Driver,TRANSPORT,DIRECT TRANSPORT COSTS,REVENUE
Walsall Council,http://opendatacommunities.org/id/metropolitan-district-council/walsall ,WC151-16,30.06.2023,CHILDRENS,247 CARS (WILLENHALL) LIMITED,19/06/2023,-681.60,6241-Hire of Vehicle with Driver,TRANSPORT,DIRECT TRANSPORT COSTS,REVENUE
Walsall Council,http://opendatacommunities.org/id/metropolitan-district-council/walsall ,WC151-17,30.06.2023,CHILDRENS,247 CARS (WILLENHALL) LIMITED,19/06/2023,"2,272.00",6241-Hire of Vehicle with Driver,TRANSPORT,DIRECT TRANSPORT COSTS,REVENUE
Walsall Council,http://opendatacommunities.org/id/metropolitan-district-council/walsall ,WC151-18,30.06.2023,CHILDRENS,247 CARS (WILLENHALL) LIMITED,19/06/2023,"1,295.00",6241-Hire of Vehicle with Driver,TRANSPORT,DIRECT TRANSPORT COSTS,REVENUE
Walsall Council,http://opendatacommunities.org/id/metropolitan-district-council/walsall ,WC151-19,30.06.2023,CHILDRENS,247 CARS (WILLENHALL) LIMITED,19/06/2023,"1,709.00",6241-Hire of Vehicle with Driver,TRANSPORT,DIRECT TRANSPORT COSTS,REVENUE
Walsall Council,http://opendatacommunities.org/id/metropolitan-district-council/walsall ,WC151-20,30.06.2023,CHILDRENS,247 CARS (WILLENHALL) LIMITED,19/06/2023,"1,295.00",6241-Hire of Vehicle with Driver,TRANSPORT,DIRECT TRANSPORT COSTS,REVENUE
Walsall Council,http://opendatacommunities.org/id/metropolitan-district-council/walsall ,WC151-21,30.06.2023,CHILDRENS,247 CARS (WILLENHALL) LIMITED,19/06/2023,"1,387.50",6241-Hire of Vehicle with Driver,TRANSPORT,DIRECT TRANSPORT COSTS,REVENUE
Walsall Council,http://opendatacommunities.org/id/metropolitan-district-council/walsall ,WC151-22,30.06.2023,CHILDRENS,247 CARS (WILLENHALL) LIMITED,19/06/2023,"2,730.00",6241-Hire of Vehicle with Driver,TRANSPORT,DIRECT TRANSPORT COSTS,REVENUE
Walsall Council,http://opendatacommunities.org/id/metropolitan-district-council/walsall ,WC151-23,30.06.2023,CHILDRENS,247 CARS (WILLENHALL) LIMITED,19/06/2023,"1,472.84",6241-Hire of Vehicle with Driver,TRANSPORT,DIRECT TRANSPORT COSTS,REVENUE
Walsall Council,http://opendatacommunities.org/id/metropolitan-district-council/walsall ,WC151-24,30.06.2023,CHILDRENS,247 CARS (WILLENHALL) LIMITED,19/06/2023,"1,680.00",6241-Hire of Vehicle with Driver,TRANSPORT,DIRECT TRANSPORT COSTS,REVENUE
Walsall Council,http://opendatacommunities.org/id/metropolitan-district-council/walsall ,WC151-25,30.06.2023,CHILDRENS,247 CARS (WILLENHALL) LIMITED,19/06/2023,"1,842.40",6241-Hire of Vehicle with Driver,TRANSPORT,DIRECT TRANSPORT COSTS,REVENUE
Walsall Council,http://opendatacommunities.org/id/metropolitan-district-council/walsall ,WC151-26,30.06.2023,CHILDRENS,247 CARS (WILLENHALL) LIMITED,19/06/2023,"1,590.40",6241-Hire of Vehicle with Driver,TRANSPORT,DIRECT TRANSPORT COSTS,REVENUE
Walsall Council,http://opendatacommunities.org/id/metropolitan-district-council/walsall ,WC151-27,30.06.2023,CHILDRENS,247 CARS (WILLENHALL) LIMITED,19/06/2023,931.00,6241-Hire of Vehicle with Driver,TRANSPORT,DIRECT TRANSPORT COSTS,REVENUE
Walsall Council,http://opendatacommunities.org/id/metropolitan-district-council/walsall ,WC151-28,30.06.2023,CHILDRENS,247 CARS (WILLENHALL) LIMITED,19/06/2023,"1,498.00",6241-Hire of Vehicle with Driver,TRANSPORT,DIRECT TRANSPORT COSTS,REVENUE
Walsall Council,http://opendatacommunities.org/id/metropolitan-district-council/walsall ,WC151-29,30.06.2023,CHILDRENS,247 CARS (WILLENHALL) LIMITED,19/06/2023,"1,590.40",6241-Hire of Vehicle with Driver,TRANSPORT,DIRECT TRANSPORT COSTS,REVENUE
Walsall Council,http://opendatacommunities.org/id/metropolitan-district-council/walsall ,WC151-30,30.06.2023,CHILDRENS,247 CARS (WILLENHALL) LIMITED,19/06/2023,"1,590.40",6241-Hire of Vehicle with Driver,TRANSPORT,DIRECT TRANSPORT COSTS,REVENUE
Walsall Council,http://opendatacommunities.org/id/metropolitan-district-council/walsall ,WC151-31,30.06.2023,CHILDRENS,247 CARS (WILLENHALL) LIMITED,19/06/2023,"1,995.00",6241-Hire of Vehicle with Driver,TRANSPORT,DIRECT TRANSPORT COSTS,REVENUE
Walsall Council,http://opendatacommunities.org/id/metropolitan-district-council/walsall ,WC151-32,30.06.2023,CHILDRENS,247 CARS (WILLENHALL) LIMITED,19/06/2023,"1,787.80",6241-Hire of Vehicle with Driver,TRANSPORT,DIRECT TRANSPORT COSTS,REVENUE
Walsall Council,http://opendatacommunities.org/id/metropolitan-district-council/walsall ,WC151-33,30.06.2023,CHILDRENS,247 CARS (WILLENHALL) LIMITED,19/06/2023,"1,130.88",6241-Hire of Vehicle with Driver,TRANSPORT,DIRECT TRANSPORT COSTS,REVENUE
Walsall Council,http://opendatacommunities.org/id/metropolitan-district-council/walsall ,WC151-34,30.06.2023,RESOURCES AND TRANSFORMATION,2BM LIMITED,07/06/2023,"1,320.00",6623-Computer Equipment,SUPPLIES & SERVICES,COMMUNICATIONS & COMPUTING,REVENUE
Walsall Council,http://opendatacommunities.org/id/metropolitan-district-council/walsall ,WC151-35,30.06.2023,RESOURCES AND TRANSFORMATION,3 SPIRIT UK TRAINING & CONSULTANCY,22/06/2023,-840.00,6625-Consultant Fees,SUPPLIES & SERVICES,SERVICES,REVENUE
Walsall Council,http://opendatacommunities.org/id/metropolitan-district-council/walsall ,WC151-36,30.06.2023,RESOURCES AND TRANSFORMATION,3 SPIRIT UK TRAINING & CONSULTANCY,22/06/2023,700.00,6625-Consultant Fees,SUPPLIES & SERVICES,SERVICES,REVENUE
Walsall Council,http://opendatacommunities.org/id/metropolitan-district-council/walsall ,WC151-37,30.06.2023,RESOURCES AND TRANSFORMATION,3 SPIRIT UK TRAINING & CONSULTANCY,22/06/2023,840.00,6625-Consultant Fees,SUPPLIES & SERVICES,SERVICES,REVENUE
Walsall Council,http://opendatacommunities.org/id/metropolitan-district-council/walsall ,WC151-38,30.06.2023,RESOURCES AND TRANSFORMATION,3 SPIRIT UK TRAINING & CONSULTANCY,26/06/2023,700.00,6625-Consultant Fees,SUPPLIES & SERVICES,SERVICES,REVENUE
Walsall Council,http://opendatacommunities.org/id/metropolitan-district-council/walsall ,WC151-39,30.06.2023,RESOURCES AND TRANSFORMATION,31ST SUTTON COLDFIELD WEST SCOUT GROUP BUILDING FUND,14/06/2023,535.00,6610-Hire of Room,SUPPLIES & SERVICES,SERVICES,REVENUE
Walsall Council,http://opendatacommunities.org/id/metropolitan-district-council/walsall ,WC151-40,30.06.2023,ADULT SOCIAL CARE,39 ESSEX STREET LLP PFA,13/06/2023,"1,400.00",6540-School Only Payments - Catering,THIRD PARTY PAYMENTS,INDEPENDENT UNIT WITHIN COUNCIL,REVENUE
Walsall Council,http://opendatacommunities.org/id/metropolitan-district-council/walsall ,WC151-41,30.06.2023,CHILDRENS,402K CONSULTANCY LTD,30/06/2023,"4,388.81",6221-Consultant Fees,SUPPLIES & SERVICES,SERVICES,REVENUE
Walsall Council,http://opendatacommunities.org/id/metropolitan-district-council/walsall ,WC151-42,30.06.2023,ADULT SOCIAL CARE,5 CARE SERVICES LTD,01/06/2023,"2,713.50",6554-Professional Services-Priv Contractor & Other Agencies,THIRD PARTY PAYMENTS,PRIVATE CONTRACTOR,REVENUE
Walsall Council,http://opendatacommunities.org/id/metropolitan-district-council/walsall ,WC151-43,30.06.2023,ADULT SOCIAL CARE,5 CARE SERVICES LTD,01/06/2023,641.52,6554-Professional Services-Priv Contractor & Other Agencies,THIRD PARTY PAYMENTS,PRIVATE CONTRACTOR,REVENUE
Walsall Council,http://opendatacommunities.org/id/metropolitan-district-council/walsall ,WC151-44,30.06.2023,ADULT SOCIAL CARE,5 CARE SERVICES LTD,01/06/2023,317.52,6554-Professional Services-Priv Contractor & Other Agencies,THIRD PARTY PAYMENTS,PRIVATE CONTRACTOR,REVENUE
Walsall Council,http://opendatacommunities.org/id/metropolitan-district-council/walsall ,WC151-45,30.06.2023,ADULT SOCIAL CARE,5 CARE SERVICES LTD,01/06/2023,523.26,6554-Professional Services-Priv Contractor & Other Agencies,THIRD PARTY PAYMENTS,PRIVATE CONTRACTOR,REVENUE
Walsall Council,http://opendatacommunities.org/id/metropolitan-district-council/walsall ,WC151-46,30.06.2023,ADULT SOCIAL CARE,5 CARE SERVICES LTD,01/06/2023,372.26,6554-Professional Services-Priv Contractor & Other Agencies,THIRD PARTY PAYMENTS,PRIVATE CONTRACTOR,REVENUE
Walsall Council,http://opendatacommunities.org/id/metropolitan-district-council/walsall ,WC151-47,30.06.2023,ADULT SOCIAL CARE,5 CARE SERVICES LTD,01/06/2023,306.00,6554-Professional Services-Priv Contractor & Other Agencies,THIRD PARTY PAYMENTS,PRIVATE CONTRACTOR,REVENUE
Walsall Council,http://opendatacommunities.org/id/metropolitan-district-council/walsall ,WC151-48,30.06.2023,ADULT SOCIAL CARE,5 CARE SERVICES LTD,01/06/2023,414.30,6554-Professional Services-Priv Contractor & Other Agencies,THIRD PARTY PAYMENTS,PRIVATE CONTRACTOR,REVENUE
Walsall Council,http://opendatacommunities.org/id/metropolitan-district-council/walsall ,WC151-49,30.06.2023,ADULT SOCIAL CARE,5 CARE SERVICES LTD,01/06/2023,878.60,6554-Professional Services-Priv Contractor & Other Agencies,THIRD PARTY PAYMENTS,PRIVATE CONTRACTOR,REVENUE
Walsall Council,http://opendatacommunities.org/id/metropolitan-district-council/walsall ,WC151-50,30.06.2023,ADULT SOCIAL CARE,5 CARE SERVICES LTD,01/06/2023,487.26,6554-Professional Services-Priv Contractor & Other Agencies,THIRD PARTY PAYMENTS,PRIVATE CONTRACTOR,REVENUE
Walsall Council,http://opendatacommunities.org/id/metropolitan-district-council/walsall ,WC151-51,30.06.2023,ADULT SOCIAL CARE,5 CARE SERVICES LTD,06/06/2023,"1,186.16",6541-Domiciliary Care,THIRD PARTY PAYMENTS,PRIVATE CONTRACTOR,REVENUE
Walsall Council,http://opendatacommunities.org/id/metropolitan-district-council/walsall ,WC151-52,30.06.2023,ADULT SOCIAL CARE,5 CARE SERVICES LTD,06/06/2023,465.66,6541-Domiciliary Care,THIRD PARTY PAYMENTS,PRIVATE CONTRACTOR,REVENUE
Walsall Council,http://opendatacommunities.org/id/metropolitan-district-council/walsall ,WC151-53,30.06.2023,ADULT SOCIAL CARE,5 CARE SERVICES LTD,06/06/2023,864.00,6541-Domiciliary Care,THIRD PARTY PAYMENTS,PRIVATE CONTRACTOR,REVENUE
Walsall Council,http://opendatacommunities.org/id/metropolitan-district-council/walsall ,WC151-54,30.06.2023,ADULT SOCIAL CARE,5 CARE SERVICES LTD,06/06/2023,255.43,6541-Domiciliary Care,THIRD PARTY PAYMENTS,PRIVATE CONTRACTOR,REVENUE
Walsall Council,http://opendatacommunities.org/id/metropolitan-district-council/walsall ,WC151-55,30.06.2023,ADULT SOCIAL CARE,5 CARE SERVICES LTD,06/06/2023,507.20,6541-Domiciliary Care,THIRD PARTY PAYMENTS,PRIVATE CONTRACTOR,REVENUE
Walsall Council,http://opendatacommunities.org/id/metropolitan-district-council/walsall ,WC151-56,30.06.2023,ADULT SOCIAL CARE,5 CARE SERVICES LTD,06/06/2023,620.88,6541-Domiciliary Care,THIRD PARTY PAYMENTS,PRIVATE CONTRACTOR,REVENUE
Walsall Council,http://opendatacommunities.org/id/metropolitan-district-council/walsall ,WC151-57,30.06.2023,ADULT SOCIAL CARE,5 CARE SERVICES LTD,06/06/2023,931.32,6541-Domiciliary Care,THIRD PARTY PAYMENTS,PRIVATE CONTRACTOR,REVENUE
Walsall Council,http://opendatacommunities.org/id/metropolitan-district-council/walsall ,WC151-58,30.06.2023,ADULT SOCIAL CARE,5 CARE SERVICES LTD,06/06/2023,322.92,6541-Domiciliary Care,THIRD PARTY PAYMENTS,PRIVATE CONTRACTOR,REVENUE
Walsall Council,http://opendatacommunities.org/id/metropolitan-district-council/walsall ,WC151-59,30.06.2023,ADULT SOCIAL CARE,5 CARE SERVICES LTD,06/06/2023,465.66,6541-Domiciliary Care,THIRD PARTY PAYMENTS,PRIVATE CONTRACTOR,REVENUE
Walsall Council,http://opendatacommunities.org/id/metropolitan-district-council/walsall ,WC151-60,30.06.2023,ADULT SOCIAL CARE,5 CARE SERVICES LTD,06/06/2023,978.20,6541-Domiciliary Care,THIRD PARTY PAYMENTS,PRIVATE CONTRACTOR,REVENUE
Walsall Council,http://opendatacommunities.org/id/metropolitan-district-council/walsall ,WC151-61,30.06.2023,ADULT SOCIAL CARE,5 CARE SERVICES LTD,06/06/2023,666.00,6541-Domiciliary Care,THIRD PARTY PAYMENTS,PRIVATE CONTRACTOR,REVENUE
Walsall Council,http://opendatacommunities.org/id/metropolitan-district-council/walsall ,WC151-62,30.06.2023,ADULT SOCIAL CARE,5 CARE SERVICES LTD,06/06/2023,"2,276.56",6541-Domiciliary Care,THIRD PARTY PAYMENTS,PRIVATE CONTRACTOR,REVENUE
Walsall Council,http://opendatacommunities.org/id/metropolitan-district-council/walsall ,WC151-63,30.06.2023,ADULT SOCIAL CARE,5 CARE SERVICES LTD,06/06/2023,360.00,6541-Domiciliary Care,THIRD PARTY PAYMENTS,PRIVATE CONTRACTOR,REVENUE
Walsall Council,http://opendatacommunities.org/id/metropolitan-district-council/walsall ,WC151-64,30.06.2023,ADULT SOCIAL CARE,5 CARE SERVICES LTD,06/06/2023,931.32,6541-Domiciliary Care,THIRD PARTY PAYMENTS,PRIVATE CONTRACTOR,REVENUE
Walsall Council,http://opendatacommunities.org/id/metropolitan-district-council/walsall ,WC151-65,30.06.2023,ADULT SOCIAL CARE,5 CARE SERVICES LTD,06/06/2023,"1,215.00",6541-Domiciliary Care,THIRD PARTY PAYMENTS,PRIVATE CONTRACTOR,REVENUE
Walsall Council,http://opendatacommunities.org/id/metropolitan-district-council/walsall ,WC151-66,30.06.2023,ADULT SOCIAL CARE,5 CARE SERVICES LTD,06/06/2023,651.00,6541-Domiciliary Care,THIRD PARTY PAYMENTS,PRIVATE CONTRACTOR,REVENUE
Walsall Council,http://opendatacommunities.org/id/metropolitan-district-council/walsall ,WC151-67,30.06.2023,ADULT SOCIAL CARE,5 CARE SERVICES LTD,06/06/2023,"1,655.68",6541-Domiciliary Care,THIRD PARTY PAYMENTS,PRIVATE CONTRACTOR,REVENUE
Walsall Council,http://opendatacommunities.org/id/metropolitan-district-council/walsall ,WC151-68,30.06.2023,ADULT SOCIAL CARE,5 CARE SERVICES LTD,06/06/2023,362.18,6541-Domiciliary Care,THIRD PARTY PAYMENTS,PRIVATE CONTRACTOR,REVENUE
Walsall Council,http://opendatacommunities.org/id/metropolitan-district-council/walsall ,WC151-69,30.06.2023,ADULT SOCIAL CARE,5 CARE SERVICES LTD,06/06/2023,567.00,6541-Domiciliary Care,THIRD PARTY PAYMENTS,PRIVATE CONTRACTOR,REVENUE
Walsall Council,http://opendatacommunities.org/id/metropolitan-district-council/walsall ,WC151-70,30.06.2023,ADULT SOCIAL CARE,5 CARE SERVICES LTD,06/06/2023,"1,241.76",6541-Domiciliary Care,THIRD PARTY PAYMENTS,PRIVATE CONTRACTOR,REVENUE
Walsall Council,http://opendatacommunities.org/id/metropolitan-district-council/walsall ,WC151-71,30.06.2023,ADULT SOCIAL CARE,5 CARE SERVICES LTD,06/06/2023,538.72,6541-Domiciliary Care,THIRD PARTY PAYMENTS,PRIVATE CONTRACTOR,REVENUE
Walsall Council,http://opendatacommunities.org/id/metropolitan-district-council/walsall ,WC151-72,30.06.2023,ADULT SOCIAL CARE,5 CARE SERVICES LTD,06/06/2023,283.50,6541-Domiciliary Care,THIRD PARTY PAYMENTS,PRIVATE CONTRACTOR,REVENUE
Walsall Council,http://opendatacommunities.org/id/metropolitan-district-council/walsall ,WC151-73,30.06.2023,ADULT SOCIAL CARE,5 CARE SERVICES LTD,06/06/2023,504.00,6541-Domiciliary Care,THIRD PARTY PAYMENTS,PRIVATE CONTRACTOR,REVENUE
Walsall Council,http://opendatacommunities.org/id/metropolitan-district-council/walsall ,WC151-74,30.06.2023,ADULT SOCIAL CARE,5 CARE SERVICES LTD,06/06/2023,-324.00,6541-Domiciliary Care,THIRD PARTY PAYMENTS,PRIVATE CONTRACTOR,REVENUE
Walsall Council,http://opendatacommunities.org/id/metropolitan-district-council/walsall ,WC151-75,30.06.2023,ADULT SOCIAL CARE,5 CARE SERVICES LTD,06/06/2023,283.50,6541-Domiciliary Care,THIRD PARTY PAYMENTS,PRIVATE CONTRACTOR,REVENUE
Walsall Council,http://opendatacommunities.org/id/metropolitan-district-council/walsall ,WC151-76,30.06.2023,ADULT SOCIAL CARE,5 CARE SERVICES LTD,06/06/2023,262.50,6541-Domiciliary Care,THIRD PARTY PAYMENTS,PRIVATE CONTRACTOR,REVENUE
Walsall Council,http://opendatacommunities.org/id/metropolitan-district-council/walsall ,WC151-77,30.06.2023,ADULT SOCIAL CARE,5 CARE SERVICES LTD,06/06/2023,819.00,6541-Domiciliary Care,THIRD PARTY PAYMENTS,PRIVATE CONTRACTOR,REVENUE
Walsall Council,http://opendatacommunities.org/id/metropolitan-district-council/walsall ,WC151-78,30.06.2023,ADULT SOCIAL CARE,5 CARE SERVICES LTD,06/06/2023,620.88,6541-Domiciliary Care,THIRD PARTY PAYMENTS,PRIVATE CONTRACTOR,REVENUE
Walsall Council,http://opendatacommunities.org/id/metropolitan-district-council/walsall ,WC151-79,30.06.2023,ADULT SOCIAL CARE,5 CARE SERVICES LTD,06/06/2023,931.32,6541-Domiciliary Care,THIRD PARTY PAYMENTS,PRIVATE CONTRACTOR,REVENUE
Walsall Council,http://opendatacommunities.org/id/metropolitan-district-council/walsall ,WC151-80,30.06.2023,ADULT SOCIAL CARE,5 CARE SERVICES LTD,06/06/2023,567.00,6541-Domiciliary Care,THIRD PARTY PAYMENTS,PRIVATE CONTRACTOR,REVENUE
Walsall Council,http://opendatacommunities.org/id/metropolitan-district-council/walsall ,WC151-81,30.06.2023,ADULT SOCIAL CARE,5 CARE SERVICES LTD,06/06/2023,-486.00,6541-Domiciliary Care,THIRD PARTY PAYMENTS,PRIVATE CONTRACTOR,REVENUE
Walsall Council,http://opendatacommunities.org/id/metropolitan-district-council/walsall ,WC151-82,30.06.2023,ADULT SOCIAL CARE,5 CARE SERVICES LTD,06/06/2023,630.00,6541-Domiciliary Care,THIRD PARTY PAYMENTS,PRIVATE CONTRACTOR,REVENUE
Walsall Council,http://opendatacommunities.org/id/metropolitan-district-council/walsall ,WC151-83,30.06.2023,ADULT SOCIAL CARE,5 CARE SERVICES LTD,06/06/2023,486.00,6541-Domiciliary Care,THIRD PARTY PAYMENTS,PRIVATE CONTRACTOR,REVENUE
Walsall Council,http://opendatacommunities.org/id/metropolitan-district-council/walsall ,WC151-84,30.06.2023,ADULT SOCIAL CARE,5 CARE SERVICES LTD,06/06/2023,"1,034.80",6541-Domiciliary Care,THIRD PARTY PAYMENTS,PRIVATE CONTRACTOR,REVENUE
Walsall Council,http://opendatacommunities.org/id/metropolitan-district-council/walsall ,WC151-85,30.06.2023,ADULT SOCIAL CARE,5 CARE SERVICES LTD,06/06/2023,281.02,6541-Domiciliary Care,THIRD PARTY PAYMENTS,PRIVATE CONTRACTOR,REVENUE
Walsall Council,http://opendatacommunities.org/id/metropolitan-district-council/walsall ,WC151-86,30.06.2023,ADULT SOCIAL CARE,5 CARE SERVICES LTD,06/06/2023,270.00,6541-Domiciliary Care,THIRD PARTY PAYMENTS,PRIVATE CONTRACTOR,REVENUE
Walsall Council,http://opendatacommunities.org/id/metropolitan-district-council/walsall ,WC151-87,30.06.2023,ADULT SOCIAL CARE,5 CARE SERVICES LTD,06/06/2023,567.00,6541-Domiciliary Care,THIRD PARTY PAYMENTS,PRIVATE CONTRACTOR,REVENUE
Walsall Council,http://opendatacommunities.org/id/metropolitan-district-council/walsall ,WC151-88,30.06.2023,ADULT SOCIAL CARE,5 CARE SERVICES LTD,06/06/2023,567.00,6541-Domiciliary Care,THIRD PARTY PAYMENTS,PRIVATE CONTRACTOR,REVENUE
Walsall Council,http://opendatacommunities.org/id/metropolitan-district-council/walsall ,WC151-89,30.06.2023,ADULT SOCIAL CARE,5 CARE SERVICES LTD,06/06/2023,774.00,6541-Domiciliary Care,THIRD PARTY PAYMENTS,PRIVATE CONTRACTOR,REVENUE
Walsall Council,http://opendatacommunities.org/id/metropolitan-district-council/walsall ,WC151-90,30.06.2023,ADULT SOCIAL CARE,5 CARE SERVICES LTD,06/06/2023,283.50,6541-Domiciliary Care,THIRD PARTY PAYMENTS,PRIVATE CONTRACTOR,REVENUE
Walsall Council,http://opendatacommunities.org/id/metropolitan-district-council/walsall ,WC151-91,30.06.2023,ADULT SOCIAL CARE,5 CARE SERVICES LTD,06/06/2023,360.00,6541-Domiciliary Care,THIRD PARTY PAYMENTS,PRIVATE CONTRACTOR,REVENUE
Walsall Council,http://opendatacommunities.org/id/metropolitan-district-council/walsall ,WC151-92,30.06.2023,ADULT SOCIAL CARE,5 CARE SERVICES LTD,06/06/2023,756.00,6541-Domiciliary Care,THIRD PARTY PAYMENTS,PRIVATE CONTRACTOR,REVENUE
Walsall Council,http://opendatacommunities.org/id/metropolitan-district-council/walsall ,WC151-93,30.06.2023,ADULT SOCIAL CARE,5 CARE SERVICES LTD,06/06/2023,328.50,6541-Domiciliary Care,THIRD PARTY PAYMENTS,PRIVATE CONTRACTOR,REVENUE
Walsall Council,http://opendatacommunities.org/id/metropolitan-district-council/walsall ,WC151-94,30.06.2023,ADULT SOCIAL CARE,5 CARE SERVICES LTD,06/06/2023,283.50,6541-Domiciliary Care,THIRD PARTY PAYMENTS,PRIVATE CONTRACTOR,REVENUE
Walsall Council,http://opendatacommunities.org/id/metropolitan-district-council/walsall ,WC151-95,30.06.2023,ADULT SOCIAL CARE,5 CARE SERVICES LTD,06/06/2023,597.00,6541-Domiciliary Care,THIRD PARTY PAYMENTS,PRIVATE CONTRACTOR,REVENUE
Walsall Council,http://opendatacommunities.org/id/metropolitan-district-council/walsall ,WC151-96,30.06.2023,ADULT SOCIAL CARE,5 CARE SERVICES LTD,06/06/2023,729.00,6541-Domiciliary Care,THIRD PARTY PAYMENTS,PRIVATE CONTRACTOR,REVENUE
Walsall Council,http://opendatacommunities.org/id/metropolitan-district-council/walsall ,WC151-97,30.06.2023,ADULT SOCIAL CARE,5 CARE SERVICES LTD,06/06/2023,"1,386.00",6541-Domiciliary Care,THIRD PARTY PAYMENTS,PRIVATE CONTRACTOR,REVENUE
Walsall Council,http://opendatacommunities.org/id/metropolitan-district-council/walsall ,WC151-98,30.06.2023,ADULT SOCIAL CARE,5 CARE SERVICES LTD,06/06/2023,567.00,6541-Domiciliary Care,THIRD PARTY PAYMENTS,PRIVATE CONTRACTOR,REVENUE
Walsall Council,http://opendatacommunities.org/id/metropolitan-district-council/walsall ,WC151-99,30.06.2023,ADULT SOCIAL CARE,5 CARE SERVICES LTD,06/06/2023,630.00,6541-Domiciliary Care,THIRD PARTY PAYMENTS,PRIVATE CONTRACTOR,REVENUE
Walsall Council,http://opendatacommunities.org/id/metropolitan-district-council/walsall ,WC151-100,30.06.2023,ADULT SOCIAL CARE,5 CARE SERVICES LTD,06/06/2023,864.00,6541-Domiciliary Care,THIRD PARTY PAYMENTS,PRIVATE CONTRACTOR,REVENUE
Walsall Council,http://opendatacommunities.org/id/metropolitan-district-council/walsall ,WC151-101,30.06.2023,ADULT SOCIAL CARE,5 CARE SERVICES LTD,06/06/2023,651.00,6541-Domiciliary Care,THIRD PARTY PAYMENTS,PRIVATE CONTRACTOR,REVENUE
Walsall Council,http://opendatacommunities.org/id/metropolitan-district-council/walsall ,WC151-102,30.06.2023,ADULT SOCIAL CARE,5 CARE SERVICES LTD,06/06/2023,567.00,6541-Domiciliary Care,THIRD PARTY PAYMENTS,PRIVATE CONTRACTOR,REVENUE
Walsall Council,http://opendatacommunities.org/id/metropolitan-district-council/walsall ,WC151-103,30.06.2023,ADULT SOCIAL CARE,5 CARE SERVICES LTD,06/06/2023,504.00,6541-Domiciliary Care,THIRD PARTY PAYMENTS,PRIVATE CONTRACTOR,REVENUE
Walsall Council,http://opendatacommunities.org/id/metropolitan-district-council/walsall ,WC151-104,30.06.2023,ADULT SOCIAL CARE,5 CARE SERVICES LTD,06/06/2023,360.00,6541-Domiciliary Care,THIRD PARTY PAYMENTS,PRIVATE CONTRACTOR,REVENUE
Walsall Council,http://opendatacommunities.org/id/metropolitan-district-council/walsall ,WC151-105,30.06.2023,ADULT SOCIAL CARE,5 CARE SERVICES LTD,06/06/2023,378.00,6541-Domiciliary Care,THIRD PARTY PAYMENTS,PRIVATE CONTRACTOR,REVENUE
Walsall Council,http://opendatacommunities.org/id/metropolitan-district-council/walsall ,WC151-106,30.06.2023,ADULT SOCIAL CARE,5 CARE SERVICES LTD,06/06/2023,567.00,6541-Domiciliary Care,THIRD PARTY PAYMENTS,PRIVATE CONTRACTOR,REVENUE
Walsall Council,http://opendatacommunities.org/id/metropolitan-district-council/walsall ,WC151-107,30.06.2023,ADULT SOCIAL CARE,5 CARE SERVICES LTD,06/06/2023,"1,008.00",6541-Domiciliary Care,THIRD PARTY PAYMENTS,PRIVATE CONTRACTOR,REVENUE
Walsall Council,http://opendatacommunities.org/id/metropolitan-district-council/walsall ,WC151-108,30.06.2023,ADULT SOCIAL CARE,5 CARE SERVICES LTD,06/06/2023,567.00,6541-Domiciliary Care,THIRD PARTY PAYMENTS,PRIVATE CONTRACTOR,REVENUE
Walsall Council,http://opendatacommunities.org/id/metropolitan-district-council/walsall ,WC151-109,30.06.2023,ADULT SOCIAL CARE,5 CARE SERVICES LTD,06/06/2023,567.00,6541-Domiciliary Care,THIRD PARTY PAYMENTS,PRIVATE CONTRACTOR,REVENUE
Walsall Council,http://opendatacommunities.org/id/metropolitan-district-council/walsall ,WC151-110,30.06.2023,ADULT SOCIAL CARE,5 CARE SERVICES LTD,06/06/2023,283.50,6541-Domiciliary Care,THIRD PARTY PAYMENTS,PRIVATE CONTRACTOR,REVENUE
Walsall Council,http://opendatacommunities.org/id/metropolitan-district-council/walsall ,WC151-111,30.06.2023,ADULT SOCIAL CARE,5 CARE SERVICES LTD,06/06/2023,819.00,6541-Domiciliary Care,THIRD PARTY PAYMENTS,PRIVATE CONTRACTOR,REVENUE
Walsall Council,http://opendatacommunities.org/id/metropolitan-district-council/walsall ,WC151-112,30.06.2023,ADULT SOCIAL CARE,5 CARE SERVICES LTD,06/06/2023,283.50,6541-Domiciliary Care,THIRD PARTY PAYMENTS,PRIVATE CONTRACTOR,REVENUE
Walsall Council,http://opendatacommunities.org/id/metropolitan-district-council/walsall ,WC151-113,30.06.2023,ADULT SOCIAL CARE,5 CARE SERVICES LTD,06/06/2023,262.50,6541-Domiciliary Care,THIRD PARTY PAYMENTS,PRIVATE CONTRACTOR,REVENUE
Walsall Council,http://opendatacommunities.org/id/metropolitan-district-council/walsall ,WC151-114,30.06.2023,ADULT SOCIAL CARE,5 CARE SERVICES LTD,06/06/2023,378.00,6541-Domiciliary Care,THIRD PARTY PAYMENTS,PRIVATE CONTRACTOR,REVENUE
Walsall Council,http://opendatacommunities.org/id/metropolitan-district-council/walsall ,WC151-115,30.06.2023,ADULT SOCIAL CARE,5 CARE SERVICES LTD,06/06/2023,567.00,6541-Domiciliary Care,THIRD PARTY PAYMENTS,PRIVATE CONTRACTOR,REVENUE
Walsall Council,http://opendatacommunities.org/id/metropolitan-district-council/walsall ,WC151-116,30.06.2023,ADULT SOCIAL CARE,5 CARE SERVICES LTD,06/06/2023,567.00,6541-Domiciliary Care,THIRD PARTY PAYMENTS,PRIVATE CONTRACTOR,REVENUE
Walsall Council,http://opendatacommunities.org/id/metropolitan-district-council/walsall ,WC151-117,30.06.2023,ADULT SOCIAL CARE,5 CARE SERVICES LTD,06/06/2023,630.00,6541-Domiciliary Care,THIRD PARTY PAYMENTS,PRIVATE CONTRACTOR,REVENUE
Walsall Council,http://opendatacommunities.org/id/metropolitan-district-council/walsall ,WC151-118,30.06.2023,ADULT SOCIAL CARE,5 CARE SERVICES LTD,06/06/2023,603.00,6541-Domiciliary Care,THIRD PARTY PAYMENTS,PRIVATE CONTRACTOR,REVENUE
Walsall Council,http://opendatacommunities.org/id/metropolitan-district-council/walsall ,WC151-119,30.06.2023,ADULT SOCIAL CARE,5 CARE SERVICES LTD,20/06/2023,283.50,6541-Domiciliary Care,THIRD PARTY PAYMENTS,PRIVATE CONTRACTOR,REVENUE
Walsall Council,http://opendatacommunities.org/id/metropolitan-district-council/walsall ,WC151-120,30.06.2023,ADULT SOCIAL CARE,5 CARE SERVICES LTD,20/06/2023,648.00,6541-Domiciliary Care,THIRD PARTY PAYMENTS,PRIVATE CONTRACTOR,REVENUE
Walsall Council,http://opendatacommunities.org/id/metropolitan-district-council/walsall ,WC151-121,30.06.2023,ADULT SOCIAL CARE,5 CARE SERVICES LTD,20/06/2023,360.00,6541-Domiciliary Care,THIRD PARTY PAYMENTS,PRIVATE CONTRACTOR,REVENUE
Walsall Council,http://opendatacommunities.org/id/metropolitan-district-council/walsall ,WC151-122,30.06.2023,ADULT SOCIAL CARE,5 CARE SERVICES LTD,20/06/2023,567.00,6541-Domiciliary Care,THIRD PARTY PAYMENTS,PRIVATE CONTRACTOR,REVENUE
Walsall Council,http://opendatacommunities.org/id/metropolitan-district-council/walsall ,WC151-123,30.06.2023,ADULT SOCIAL CARE,5 CARE SERVICES LTD,20/06/2023,756.00,6541-Domiciliary Care,THIRD PARTY PAYMENTS,PRIVATE CONTRACTOR,REVENUE
Walsall Council,http://opendatacommunities.org/id/metropolitan-district-council/walsall ,WC151-124,30.06.2023,ADULT SOCIAL CARE,5 CARE SERVICES LTD,20/06/2023,328.50,6541-Domiciliary Care,THIRD PARTY PAYMENTS,PRIVATE CONTRACTOR,REVENUE
Walsall Council,http://opendatacommunities.org/id/metropolitan-district-council/walsall ,WC151-125,30.06.2023,ADULT SOCIAL CARE,5 CARE SERVICES LTD,20/06/2023,630.00,6541-Domiciliary Care,THIRD PARTY PAYMENTS,PRIVATE CONTRACTOR,REVENUE
Walsall Council,http://opendatacommunities.org/id/metropolitan-district-council/walsall ,WC151-126,30.06.2023,ADULT SOCIAL CARE,5 CARE SERVICES LTD,20/06/2023,567.00,6541-Domiciliary Care,THIRD PARTY PAYMENTS,PRIVATE CONTRACTOR,REVENUE
Walsall Council,http://opendatacommunities.org/id/metropolitan-district-council/walsall ,WC151-127,30.06.2023,ADULT SOCIAL CARE,5 CARE SERVICES LTD,20/06/2023,504.00,6541-Domiciliary Care,THIRD PARTY PAYMENTS,PRIVATE CONTRACTOR,REVENUE
Walsall Council,http://opendatacommunities.org/id/metropolitan-district-council/walsall ,WC151-128,30.06.2023,ADULT SOCIAL CARE,5 CARE SERVICES LTD,20/06/2023,283.50,6541-Domiciliary Care,THIRD PARTY PAYMENTS,PRIVATE CONTRACTOR,REVENUE
Walsall Council,http://opendatacommunities.org/id/metropolitan-district-council/walsall ,WC151-129,30.06.2023,ADULT SOCIAL CARE,5 CARE SERVICES LTD,20/06/2023,262.50,6541-Domiciliary Care,THIRD PARTY PAYMENTS,PRIVATE CONTRACTOR,REVENUE
Walsall Council,http://opendatacommunities.org/id/metropolitan-district-council/walsall ,WC151-130,30.06.2023,ADULT SOCIAL CARE,5 CARE SERVICES LTD,20/06/2023,567.00,6541-Domiciliary Care,THIRD PARTY PAYMENTS,PRIVATE CONTRACTOR,REVENUE
Walsall Council,http://opendatacommunities.org/id/metropolitan-district-council/walsall ,WC151-131,30.06.2023,ADULT SOCIAL CARE,5 CARE SERVICES LTD,20/06/2023,567.00,6541-Domiciliary Care,THIRD PARTY PAYMENTS,PRIVATE CONTRACTOR,REVENUE
Walsall Council,http://opendatacommunities.org/id/metropolitan-district-council/walsall ,WC151-132,30.06.2023,ADULT SOCIAL CARE,5 CARE SERVICES LTD,20/06/2023,774.00,6541-Domiciliary Care,THIRD PARTY PAYMENTS,PRIVATE CONTRACTOR,REVENUE
Walsall Council,http://opendatacommunities.org/id/metropolitan-district-council/walsall ,WC151-133,30.06.2023,ADULT SOCIAL CARE,5 CARE SERVICES LTD,20/06/2023,360.00,6541-Domiciliary Care,THIRD PARTY PAYMENTS,PRIVATE CONTRACTOR,REVENUE
Walsall Council,http://opendatacommunities.org/id/metropolitan-district-council/walsall ,WC151-134,30.06.2023,ADULT SOCIAL CARE,5 CARE SERVICES LTD,20/06/2023,378.00,6541-Domiciliary Care,THIRD PARTY PAYMENTS,PRIVATE CONTRACTOR,REVENUE
Walsall Council,http://opendatacommunities.org/id/metropolitan-district-council/walsall ,WC151-135,30.06.2023,ADULT SOCIAL CARE,5 CARE SERVICES LTD,20/06/2023,567.00,6541-Domiciliary Care,THIRD PARTY PAYMENTS,PRIVATE CONTRACTOR,REVENUE
Walsall Council,http://opendatacommunities.org/id/metropolitan-district-council/walsall ,WC151-136,30.06.2023,ADULT SOCIAL CARE,5 CARE SERVICES LTD,20/06/2023,"1,008.00",6541-Domiciliary Care,THIRD PARTY PAYMENTS,PRIVATE CONTRACTOR,REVENUE
Walsall Council,http://opendatacommunities.org/id/metropolitan-district-council/walsall ,WC151-137,30.06.2023,ADULT SOCIAL CARE,5 CARE SERVICES LTD,20/06/2023,"1,098.00",6541-Domiciliary Care,THIRD PARTY PAYMENTS,PRIVATE CONTRACTOR,REVENUE
Walsall Council,http://opendatacommunities.org/id/metropolitan-district-council/walsall ,WC151-138,30.06.2023,ADULT SOCIAL CARE,5 CARE SERVICES LTD,20/06/2023,378.00,6541-Domiciliary Care,THIRD PARTY PAYMENTS,PRIVATE CONTRACTOR,REVENUE
Walsall Council,http://opendatacommunities.org/id/metropolitan-district-council/walsall ,WC151-139,30.06.2023,ADULT SOCIAL CARE,5 CARE SERVICES LTD,20/06/2023,567.00,6541-Domiciliary Care,THIRD PARTY PAYMENTS,PRIVATE CONTRACTOR,REVENUE
Walsall Council,http://opendatacommunities.org/id/metropolitan-district-council/walsall ,WC151-140,30.06.2023,ADULT SOCIAL CARE,5 CARE SERVICES LTD,20/06/2023,567.00,6541-Domiciliary Care,THIRD PARTY PAYMENTS,PRIVATE CONTRACTOR,REVENUE
Walsall Council,http://opendatacommunities.org/id/metropolitan-district-council/walsall ,WC151-141,30.06.2023,ADULT SOCIAL CARE,5 CARE SERVICES LTD,20/06/2023,283.50,6541-Domiciliary Care,THIRD PARTY PAYMENTS,PRIVATE CONTRACTOR,REVENUE
Walsall Council,http://opendatacommunities.org/id/metropolitan-district-council/walsall ,WC151-142,30.06.2023,ADULT SOCIAL CARE,5 CARE SERVICES LTD,20/06/2023,597.00,6541-Domiciliary Care,THIRD PARTY PAYMENTS,PRIVATE CONTRACTOR,REVENUE
Walsall Council,http://opendatacommunities.org/id/metropolitan-district-council/walsall ,WC151-143,30.06.2023,ADULT SOCIAL CARE,5 CARE SERVICES LTD,20/06/2023,468.00,6541-Domiciliary Care,THIRD PARTY PAYMENTS,PRIVATE CONTRACTOR,REVENUE
Walsall Council,http://opendatacommunities.org/id/metropolitan-district-council/walsall ,WC151-144,30.06.2023,ADULT SOCIAL CARE,5 CARE SERVICES LTD,20/06/2023,"1,386.00",6541-Domiciliary Care,THIRD PARTY PAYMENTS,PRIVATE CONTRACTOR,REVENUE
Walsall Council,http://opendatacommunities.org/id/metropolitan-district-council/walsall ,WC151-145,30.06.2023,ADULT SOCIAL CARE,5 CARE SERVICES LTD,20/06/2023,864.00,6541-Domiciliary Care,THIRD PARTY PAYMENTS,PRIVATE CONTRACTOR,REVENUE
Walsall Council,http://opendatacommunities.org/id/metropolitan-district-council/walsall ,WC151-146,30.06.2023,ADULT SOCIAL CARE,5 CARE SERVICES LTD,20/06/2023,651.00,6541-Domiciliary Care,THIRD PARTY PAYMENTS,PRIVATE CONTRACTOR,REVENUE
Walsall Council,http://opendatacommunities.org/id/metropolitan-district-council/walsall ,WC151-147,30.06.2023,ADULT SOCIAL CARE,5 CARE SERVICES LTD,20/06/2023,283.50,6541-Domiciliary Care,THIRD PARTY PAYMENTS,PRIVATE CONTRACTOR,REVENUE
Walsall Council,http://opendatacommunities.org/id/metropolitan-district-council/walsall ,WC151-148,30.06.2023,ADULT SOCIAL CARE,5 CARE SERVICES LTD,20/06/2023,819.00,6541-Domiciliary Care,THIRD PARTY PAYMENTS,PRIVATE CONTRACTOR,REVENUE
Walsall Council,http://opendatacommunities.org/id/metropolitan-district-council/walsall ,WC151-149,30.06.2023,ADULT SOCIAL CARE,5 CARE SERVICES LTD,20/06/2023,"-1,890.00",6541-Domiciliary Care,THIRD PARTY PAYMENTS,PRIVATE CONTRACTOR,REVENUE
Walsall Council,http://opendatacommunities.org/id/metropolitan-district-council/walsall ,WC151-150,30.06.2023,ADULT SOCIAL CARE,5 CARE SERVICES LTD,20/06/2023,603.00,6541-Domiciliary Care,THIRD PARTY PAYMENTS,PRIVATE CONTRACTOR,REVENUE
Walsall Council,http://opendatacommunities.org/id/metropolitan-district-council/walsall ,WC151-151,30.06.2023,ADULT SOCIAL CARE,5 CARE SERVICES LTD,20/06/2023,756.00,6541-Domiciliary Care,THIRD PARTY PAYMENTS,PRIVATE CONTRACTOR,REVENUE
Walsall Council,http://opendatacommunities.org/id/metropolitan-district-council/walsall ,WC151-152,30.06.2023,ADULT SOCIAL CARE,5 CARE SERVICES LTD,20/06/2023,328.50,6541-Domiciliary Care,THIRD PARTY PAYMENTS,PRIVATE CONTRACTOR,REVENUE
Walsall Council,http://opendatacommunities.org/id/metropolitan-district-council/walsall ,WC151-153,30.06.2023,ADULT SOCIAL CARE,5 CARE SERVICES LTD,20/06/2023,630.00,6541-Domiciliary Care,THIRD PARTY PAYMENTS,PRIVATE CONTRACTOR,REVENUE
Walsall Council,http://opendatacommunities.org/id/metropolitan-district-council/walsall ,WC151-154,30.06.2023,ADULT SOCIAL CARE,5 CARE SERVICES LTD,20/06/2023,567.00,6541-Domiciliary Care,THIRD PARTY PAYMENTS,PRIVATE CONTRACTOR,REVENUE
Walsall Council,http://opendatacommunities.org/id/metropolitan-district-council/walsall ,WC151-155,30.06.2023,ADULT SOCIAL CARE,5 CARE SERVICES LTD,20/06/2023,567.00,6541-Domiciliary Care,THIRD PARTY PAYMENTS,PRIVATE CONTRACTOR,REVENUE
Walsall Council,http://opendatacommunities.org/id/metropolitan-district-council/walsall ,WC151-156,30.06.2023,ADULT SOCIAL CARE,5 CARE SERVICES LTD,20/06/2023,774.00,6541-Domiciliary Care,THIRD PARTY PAYMENTS,PRIVATE CONTRACTOR,REVENUE
Walsall Council,http://opendatacommunities.org/id/metropolitan-district-council/walsall ,WC151-157,30.06.2023,ADULT SOCIAL CARE,5 CARE SERVICES LTD,20/06/2023,360.00,6541-Domiciliary Care,THIRD PARTY PAYMENTS,PRIVATE CONTRACTOR,REVENUE
Walsall Council,http://opendatacommunities.org/id/metropolitan-district-council/walsall ,WC151-158,30.06.2023,ADULT SOCIAL CARE,5 CARE SERVICES LTD,20/06/2023,378.00,6541-Domiciliary Care,THIRD PARTY PAYMENTS,PRIVATE CONTRACTOR,REVENUE
Walsall Council,http://opendatacommunities.org/id/metropolitan-district-council/walsall ,WC151-159,30.06.2023,ADULT SOCIAL CARE,5 CARE SERVICES LTD,20/06/2023,567.00,6541-Domiciliary Care,THIRD PARTY PAYMENTS,PRIVATE CONTRACTOR,REVENUE
Walsall Council,http://opendatacommunities.org/id/metropolitan-district-council/walsall ,WC151-160,30.06.2023,ADULT SOCIAL CARE,5 CARE SERVICES LTD,20/06/2023,"1,008.00",6541-Domiciliary Care,THIRD PARTY PAYMENTS,PRIVATE CONTRACTOR,REVENUE
Walsall Council,http://opendatacommunities.org/id/metropolitan-district-council/walsall ,WC151-161,30.06.2023,ADULT SOCIAL CARE,5 CARE SERVICES LTD,20/06/2023,283.50,6541-Domiciliary Care,THIRD PARTY PAYMENTS,PRIVATE CONTRACTOR,REVENUE
Walsall Council,http://opendatacommunities.org/id/metropolitan-district-council/walsall ,WC151-162,30.06.2023,ADULT SOCIAL CARE,5 CARE SERVICES LTD,20/06/2023,597.00,6541-Domiciliary Care,THIRD PARTY PAYMENTS,PRIVATE CONTRACTOR,REVENUE
Walsall Council,http://opendatacommunities.org/id/metropolitan-district-council/walsall ,WC151-163,30.06.2023,ADULT SOCIAL CARE,5 CARE SERVICES LTD,20/06/2023,"1,386.00",6541-Domiciliary Care,THIRD PARTY PAYMENTS,PRIVATE CONTRACTOR,REVENUE
Walsall Council,http://opendatacommunities.org/id/metropolitan-district-council/walsall ,WC151-164,30.06.2023,ADULT SOCIAL CARE,5 CARE SERVICES LTD,20/06/2023,864.00,6541-Domiciliary Care,THIRD PARTY PAYMENTS,PRIVATE CONTRACTOR,REVENUE
Walsall Council,http://opendatacommunities.org/id/metropolitan-district-council/walsall ,WC151-165,30.06.2023,ADULT SOCIAL CARE,5 CARE SERVICES LTD,20/06/2023,651.00,6541-Domiciliary Care,THIRD PARTY PAYMENTS,PRIVATE CONTRACTOR,REVENUE
Walsall Council,http://opendatacommunities.org/id/metropolitan-district-council/walsall ,WC151-166,30.06.2023,ADULT SOCIAL CARE,5 CARE SERVICES LTD,20/06/2023,283.50,6541-Domiciliary Care,THIRD PARTY PAYMENTS,PRIVATE CONTRACTOR,REVENUE
Walsall Council,http://opendatacommunities.org/id/metropolitan-district-council/walsall ,WC151-167,30.06.2023,ADULT SOCIAL CARE,5 CARE SERVICES LTD,20/06/2023,283.50,6541-Domiciliary Care,THIRD PARTY PAYMENTS,PRIVATE CONTRACTOR,REVENUE
Walsall Council,http://opendatacommunities.org/id/metropolitan-district-council/walsall ,WC151-168,30.06.2023,ADULT SOCIAL CARE,5 CARE SERVICES LTD,20/06/2023,432.00,6541-Domiciliary Care,THIRD PARTY PAYMENTS,PRIVATE CONTRACTOR,REVENUE
Walsall Council,http://opendatacommunities.org/id/metropolitan-district-council/walsall ,WC151-169,30.06.2023,ADULT SOCIAL CARE,5 CARE SERVICES LTD,20/06/2023,360.00,6541-Domiciliary Care,THIRD PARTY PAYMENTS,PRIVATE CONTRACTOR,REVENUE
Walsall Council,http://opendatacommunities.org/id/metropolitan-district-council/walsall ,WC151-170,30.06.2023,ADULT SOCIAL CARE,5 CARE SERVICES LTD,20/06/2023,819.00,6541-Domiciliary Care,THIRD PARTY PAYMENTS,PRIVATE CONTRACTOR,REVENUE
Walsall Council,http://opendatacommunities.org/id/metropolitan-district-council/walsall ,WC151-171,30.06.2023,ADULT SOCIAL CARE,5 CARE SERVICES LTD,20/06/2023,378.00,6541-Domiciliary Care,THIRD PARTY PAYMENTS,PRIVATE CONTRACTOR,REVENUE
Walsall Council,http://opendatacommunities.org/id/metropolitan-district-council/walsall ,WC151-172,30.06.2023,ADULT SOCIAL CARE,5 CARE SERVICES LTD,20/06/2023,567.00,6541-Domiciliary Care,THIRD PARTY PAYMENTS,PRIVATE CONTRACTOR,REVENUE
Walsall Council,http://opendatacommunities.org/id/metropolitan-district-council/walsall ,WC151-173,30.06.2023,ADULT SOCIAL CARE,5 CARE SERVICES LTD,20/06/2023,567.00,6541-Domiciliary Care,THIRD PARTY PAYMENTS,PRIVATE CONTRACTOR,REVENUE
Walsall Council,http://opendatacommunities.org/id/metropolitan-district-council/walsall ,WC151-174,30.06.2023,ADULT SOCIAL CARE,5 CARE SERVICES LTD,20/06/2023,603.00,6541-Domiciliary Care,THIRD PARTY PAYMENTS,PRIVATE CONTRACTOR,REVENUE
Walsall Council,http://opendatacommunities.org/id/metropolitan-district-council/walsall ,WC151-175,30.06.2023,ADULT SOCIAL CARE,5 CARE SERVICES LTD,20/06/2023,567.00,6541-Domiciliary Care,THIRD PARTY PAYMENTS,PRIVATE CONTRACTOR,REVENUE
Walsall Council,http://opendatacommunities.org/id/metropolitan-district-council/walsall ,WC151-176,30.06.2023,ADULT SOCIAL CARE,5 CARE SERVICES LTD,20/06/2023,567.00,6541-Domiciliary Care,THIRD PARTY PAYMENTS,PRIVATE CONTRACTOR,REVENUE
Walsall Council,http://opendatacommunities.org/id/metropolitan-district-council/walsall ,WC151-177,30.06.2023,ADULT SOCIAL CARE,5 CARE SERVICES LTD,20/06/2023,504.00,6541-Domiciliary Care,THIRD PARTY PAYMENTS,PRIVATE CONTRACTOR,REVENUE
Walsall Council,http://opendatacommunities.org/id/metropolitan-district-council/walsall ,WC151-178,30.06.2023,ADULT SOCIAL CARE,5 CARE SERVICES LTD,20/06/2023,283.50,6541-Domiciliary Care,THIRD PARTY PAYMENTS,PRIVATE CONTRACTOR,REVENUE
Walsall Council,http://opendatacommunities.org/id/metropolitan-district-council/walsall ,WC151-179,30.06.2023,ADULT SOCIAL CARE,5 CARE SERVICES LTD,20/06/2023,262.50,6541-Domiciliary Care,THIRD PARTY PAYMENTS,PRIVATE CONTRACTOR,REVENUE
Walsall Council,http://opendatacommunities.org/id/metropolitan-district-council/walsall ,WC151-180,30.06.2023,ADULT SOCIAL CARE,5 CARE SERVICES LTD,20/06/2023,630.00,6541-Domiciliary Care,THIRD PARTY PAYMENTS,PRIVATE CONTRACTOR,REVENUE
Walsall Council,http://opendatacommunities.org/id/metropolitan-district-council/walsall ,WC151-181,30.06.2023,CHILDRENS,5 CARE SERVICES LTD,15/06/2023,495.00,6220-Professional Fees & Services,SUPPLIES & SERVICES,SERVICES,REVENUE
Walsall Council,http://opendatacommunities.org/id/metropolitan-district-council/walsall ,WC151-182,30.06.2023,ADULT SOCIAL CARE,5 CARE SERVICES LTD,28/06/2023,"1,389.76",6554-Professional Services-Priv Contractor & Other Agencies,THIRD PARTY PAYMENTS,PRIVATE CONTRACTOR,REVENUE
Walsall Council,http://opendatacommunities.org/id/metropolitan-district-council/walsall ,WC151-183,30.06.2023,ADULT SOCIAL CARE,5 CARE SERVICES LTD,28/06/2023,"1,389.76",6554-Professional Services-Priv Contractor & Other Agencies,THIRD PARTY PAYMENTS,PRIVATE CONTRACTOR,REVENUE
Walsall Council,http://opendatacommunities.org/id/metropolitan-district-council/walsall ,WC151-184,30.06.2023,ADULT SOCIAL CARE,5 CARE SERVICES LTD,28/06/2023,"1,389.76",6554-Professional Services-Priv Contractor & Other Agencies,THIRD PARTY PAYMENTS,PRIVATE CONTRACTOR,REVENUE
Walsall Council,http://opendatacommunities.org/id/metropolitan-district-council/walsall ,WC151-185,30.06.2023,ADULT SOCIAL CARE,5 CARE SERVICES LTD,01/06/2023,"1,163.52",6554-Professional Services-Priv Contractor & Other Agencies,THIRD PARTY PAYMENTS,PRIVATE CONTRACTOR,REVENUE
Walsall Council,http://opendatacommunities.org/id/metropolitan-district-council/walsall ,WC151-186,30.06.2023,ADULT SOCIAL CARE,5 CARE SERVICES LTD,28/06/2023,"1,548.00",6554-Professional Services-Priv Contractor & Other Agencies,THIRD PARTY PAYMENTS,PRIVATE CONTRACTOR,REVENUE
Walsall Council,http://opendatacommunities.org/id/metropolitan-district-council/walsall ,WC151-187,30.06.2023,"ECONOMY, ENVIRONMENT & COMMUNITIES",A B WASTE MANAGEMENT LTD,07/06/2023,866.40,6410-Professional Services-Priv Contractor & Other Agencies,THIRD PARTY PAYMENTS,PRIVATE CONTRACTOR,REVENUE
Walsall Council,http://opendatacommunities.org/id/metropolitan-district-council/walsall ,WC151-188,30.06.2023,"ECONOMY, ENVIRONMENT & COMMUNITIES",A D T FIRE AND SECURITY PLC,05/06/2023,675.10,6410-Security & Alarm Maintenance,PREMISES,REPAIRS & MAINTENANCE,REVENUE
Walsall Council,http://opendatacommunities.org/id/metropolitan-district-council/walsall ,WC151-189,30.06.2023,"ECONOMY, ENVIRONMENT & COMMUNITIES",A D T FIRE AND SECURITY PLC,02/06/2023,750.67,6410-Security & Alarm Maintenance,PREMISES,REPAIRS & MAINTENANCE,REVENUE
Walsall Council,http://opendatacommunities.org/id/metropolitan-district-council/walsall ,WC151-190,30.06.2023,"ECONOMY, ENVIRONMENT & COMMUNITIES",A D T FIRE AND SECURITY PLC,02/06/2023,775.26,6410-Security & Alarm Maintenance,PREMISES,REPAIRS & MAINTENANCE,REVENUE
Walsall Council,http://opendatacommunities.org/id/metropolitan-district-council/walsall ,WC151-191,30.06.2023,"ECONOMY, ENVIRONMENT & COMMUNITIES",A D T FIRE AND SECURITY PLC,02/06/2023,843.18,6410-Security & Alarm Maintenance,PREMISES,REPAIRS & MAINTENANCE,REVENUE
Walsall Council,http://opendatacommunities.org/id/metropolitan-district-council/walsall ,WC151-192,30.06.2023,CHILDRENS,A D T FIRE AND SECURITY PLC,06/06/2023,"1,101.37",6223-Operational Maintenance,PREMISES,REPAIRS & MAINTENANCE,REVENUE
Walsall Council,http://opendatacommunities.org/id/metropolitan-district-council/walsall ,WC151-193,30.06.2023,"ECONOMY, ENVIRONMENT & COMMUNITIES",A D T FIRE AND SECURITY PLC,07/06/2023,"1,199.84",6410-Security & Alarm Maintenance,PREMISES,REPAIRS & MAINTENANCE,REVENUE
Walsall Council,http://opendatacommunities.org/id/metropolitan-district-council/walsall ,WC151-194,30.06.2023,RESOURCES AND TRANSFORMATION,A D T FIRE AND SECURITY PLC,22/06/2023,277.00,6310-Security & Alarm Maintenance,PREMISES,REPAIRS & MAINTENANCE,REVENUE
Walsall Council,http://opendatacommunities.org/id/metropolitan-district-council/walsall ,WC151-195,30.06.2023,CHILDRENS,A ELLIOTT LIMITED,30/06/2023,"4,768.20",6223-Professional Fees & Services,SUPPLIES & SERVICES,SERVICES,REVENUE
Walsall Council,http://opendatacommunities.org/id/metropolitan-district-council/walsall ,WC151-196,30.06.2023,"ECONOMY, ENVIRONMENT & COMMUNITIES",A F BLAKEMORE & SON LTD,20/06/2023,387.97,6413-Food & Drink Supplies,SUPPLIES & SERVICES,CATERING,REVENUE
Walsall Council,http://opendatacommunities.org/id/metropolitan-district-council/walsall ,WC151-197,30.06.2023,"ECONOMY, ENVIRONMENT & COMMUNITIES",A F BLAKEMORE & SON LTD,20/06/2023,434.96,6413-Food & Drink Supplies,SUPPLIES & SERVICES,CATERING,REVENUE
Walsall Council,http://opendatacommunities.org/id/metropolitan-district-council/walsall ,WC151-198,30.06.2023,"ECONOMY, ENVIRONMENT & COMMUNITIES",A F BLAKEMORE & SON LTD,20/06/2023,481.47,6413-Food & Drink Supplies,SUPPLIES & SERVICES,CATERING,REVENUE
Walsall Council,http://opendatacommunities.org/id/metropolitan-district-council/walsall ,WC151-199,30.06.2023,"ECONOMY, ENVIRONMENT & COMMUNITIES",A F BLAKEMORE & SON LTD,20/06/2023,493.13,6413-Food & Drink Supplies,SUPPLIES & SERVICES,CATERING,REVENUE
Walsall Council,http://opendatacommunities.org/id/metropolitan-district-council/walsall ,WC151-200,30.06.2023,"ECONOMY, ENVIRONMENT & COMMUNITIES",A F BLAKEMORE & SON LTD,20/06/2023,735.00,6413-Food & Drink Supplies,SUPPLIES & SERVICES,CATERING,REVENUE
Walsall Council,http://opendatacommunities.org/id/metropolitan-district-council/walsall ,WC151-201,30.06.2023,"ECONOMY, ENVIRONMENT & COMMUNITIES",A F BLAKEMORE & SON LTD,20/06/2023,293.95,6413-Food & Drink Supplies,SUPPLIES & SERVICES,CATERING,REVENUE
Walsall Council,http://opendatacommunities.org/id/metropolitan-district-council/walsall ,WC151-202,30.06.2023,"ECONOMY, ENVIRONMENT & COMMUNITIES",A F BLAKEMORE & SON LTD,20/06/2023,858.45,6413-Food & Drink Supplies,SUPPLIES & SERVICES,CATERING,REVENUE
Walsall Council,http://opendatacommunities.org/id/metropolitan-district-council/walsall ,WC151-203,30.06.2023,"ECONOMY, ENVIRONMENT & COMMUNITIES",A F BLAKEMORE & SON LTD,20/06/2023,323.06,6413-Food & Drink Supplies,SUPPLIES & SERVICES,CATERING,REVENUE
Walsall Council,http://opendatacommunities.org/id/metropolitan-district-council/walsall ,WC151-204,30.06.2023,"ECONOMY, ENVIRONMENT & COMMUNITIES",A F BLAKEMORE & SON LTD,20/06/2023,873.24,6413-Food & Drink Supplies,SUPPLIES & SERVICES,CATERING,REVENUE
Walsall Council,http://opendatacommunities.org/id/metropolitan-district-council/walsall ,WC151-205,30.06.2023,"ECONOMY, ENVIRONMENT & COMMUNITIES",A F BLAKEMORE & SON LTD,09/06/2023,428.56,6413-Food & Drink Supplies,SUPPLIES & SERVICES,CATERING,REVENUE
Walsall Council,http://opendatacommunities.org/id/metropolitan-district-council/walsall ,WC151-206,30.06.2023,"ECONOMY, ENVIRONMENT & COMMUNITIES",A F BLAKEMORE & SON LTD,09/06/2023,"1,630.31",6413-Food & Drink Supplies,SUPPLIES & SERVICES,CATERING,REVENUE
Walsall Council,http://opendatacommunities.org/id/metropolitan-district-council/walsall ,WC151-207,30.06.2023,"ECONOMY, ENVIRONMENT & COMMUNITIES",A F BLAKEMORE & SON LTD,20/06/2023,945.75,6413-Food & Drink Supplies,SUPPLIES & SERVICES,CATERING,REVENUE
Walsall Council,http://opendatacommunities.org/id/metropolitan-district-council/walsall ,WC151-208,30.06.2023,"ECONOMY, ENVIRONMENT & COMMUNITIES",A F BLAKEMORE & SON LTD,20/06/2023,672.39,6413-Food & Drink Supplies,SUPPLIES & SERVICES,CATERING,REVENUE
Walsall Council,http://opendatacommunities.org/id/metropolitan-district-council/walsall ,WC151-209,30.06.2023,CHILDRENS,A1 WALSALL RADIO CARS,19/06/2023,"1,162.00",6241-Hire of Vehicle with Driver,TRANSPORT,DIRECT TRANSPORT COSTS,REVENUE
Walsall Council,http://opendatacommunities.org/id/metropolitan-district-council/walsall ,WC151-210,30.06.2023,CHILDRENS,A1 WALSALL RADIO CARS,19/06/2023,"1,190.00",6241-Hire of Vehicle with Driver,TRANSPORT,DIRECT TRANSPORT COSTS,REVENUE
Walsall Council,http://opendatacommunities.org/id/metropolitan-district-council/walsall ,WC151-211,30.06.2023,CHILDRENS,A1 WALSALL RADIO CARS,19/06/2023,905.00,6241-Hire of Vehicle with Driver,TRANSPORT,DIRECT TRANSPORT COSTS,REVENUE
Walsall Council,http://opendatacommunities.org/id/metropolitan-district-council/walsall ,WC151-212,30.06.2023,CHILDRENS,A1 WALSALL RADIO CARS,19/06/2023,"-2,566.60",6241-Hire of Vehicle with Driver,TRANSPORT,DIRECT TRANSPORT COSTS,REVENUE
Walsall Council,http://opendatacommunities.org/id/metropolitan-district-council/walsall ,WC151-213,30.06.2023,CHILDRENS,A1 WALSALL RADIO CARS,19/06/2023,"1,924.00",6241-Hire of Vehicle with Driver,TRANSPORT,DIRECT TRANSPORT COSTS,REVENUE
Walsall Council,http://opendatacommunities.org/id/metropolitan-district-council/walsall ,WC151-214,30.06.2023,CHILDRENS,A1 WALSALL RADIO CARS,19/06/2023,"1,512.00",6241-Hire of Vehicle with Driver,TRANSPORT,DIRECT TRANSPORT COSTS,REVENUE
Walsall Council,http://opendatacommunities.org/id/metropolitan-district-council/walsall ,WC151-215,30.06.2023,CHILDRENS,A1 WALSALL RADIO CARS,19/06/2023,"1,152.00",6241-Hire of Vehicle with Driver,TRANSPORT,DIRECT TRANSPORT COSTS,REVENUE
Walsall Council,http://opendatacommunities.org/id/metropolitan-district-council/walsall ,WC151-216,30.06.2023,"ECONOMY, ENVIRONMENT & COMMUNITIES",AAINA COMMUNITY HUB,07/06/2023,"7,500.00",6430-Professional Services-Priv Contractor & Other Agencies,THIRD PARTY PAYMENTS,PRIVATE CONTRACTOR,REVENUE
Walsall Council,http://opendatacommunities.org/id/metropolitan-district-council/walsall ,WC151-217,30.06.2023,RESOURCES AND TRANSFORMATION,AAINA COMMUNITY HUB,14/06/2023,370.00,6610-Hire of Room,SUPPLIES & SERVICES,SERVICES,REVENUE
Walsall Council,http://opendatacommunities.org/id/metropolitan-district-council/walsall ,WC151-218,30.06.2023,ADULT SOCIAL CARE,REDACTED,07/06/2023,"1,238.08",6541-Direct Payment,THIRD PARTY PAYMENTS,PRIVATE CONTRACTOR,REVENUE
Walsall Council,http://opendatacommunities.org/id/metropolitan-district-council/walsall ,WC151-219,30.06.2023,CHILDRENS,ABACUS FOSTERING LTD,13/06/2023,"2,818.88",6223-Independent Foster Care-Oth Agency Provision,THIRD PARTY PAYMENTS,PRIVATE CONTRACTOR,REVENUE
Walsall Council,http://opendatacommunities.org/id/metropolitan-district-council/walsall ,WC151-220,30.06.2023,CHILDRENS,ABACUS FOSTERING LTD,13/06/2023,"3,004.08",6223-Independent Foster Care-Oth Agency Provision,THIRD PARTY PAYMENTS,PRIVATE CONTRACTOR,REVENUE
Walsall Council,http://opendatacommunities.org/id/metropolitan-district-council/walsall ,WC151-221,30.06.2023,ADULT SOCIAL CARE,ABBEY COURT NURSING & RESIDEN,06/06/2023,"1,827.54",6541-Residential EMI,THIRD PARTY PAYMENTS,PRIVATE CONTRACTOR,REVENUE
Walsall Council,http://opendatacommunities.org/id/metropolitan-district-council/walsall ,WC151-222,30.06.2023,ADULT SOCIAL CARE,ABBEY HEALTHCARE HOMES LTD,06/06/2023,"3,180.76",6541-Residential,THIRD PARTY PAYMENTS,PRIVATE CONTRACTOR,REVENUE
Walsall Council,http://opendatacommunities.org/id/metropolitan-district-council/walsall ,WC151-223,30.06.2023,ADULT SOCIAL CARE,ABBEY HEALTHCARE HOMES LTD,06/06/2023,"2,432.32",6541-Residential,THIRD PARTY PAYMENTS,PRIVATE CONTRACTOR,REVENUE
Walsall Council,http://opendatacommunities.org/id/metropolitan-district-council/walsall ,WC151-224,30.06.2023,ADULT SOCIAL CARE,ABBEY HEALTHCARE HOMES LTD,06/06/2023,"3,180.76",6541-Residential,THIRD PARTY PAYMENTS,PRIVATE CONTRACTOR,REVENUE
Walsall Council,http://opendatacommunities.org/id/metropolitan-district-council/walsall ,WC151-225,30.06.2023,ADULT SOCIAL CARE,ABBEY HEALTHCARE HOMES LTD,06/06/2023,"3,604.84",6541-Residential,THIRD PARTY PAYMENTS,PRIVATE CONTRACTOR,REVENUE
Walsall Council,http://opendatacommunities.org/id/metropolitan-district-council/walsall ,WC151-226,30.06.2023,ADULT SOCIAL CARE,ABBEY HEALTHCARE HOMES LTD,01/06/2023,"1,150.00",6541-Residential,THIRD PARTY PAYMENTS,PRIVATE CONTRACTOR,REVENUE
Walsall Council,http://opendatacommunities.org/id/metropolitan-district-council/walsall ,WC151-227,30.06.2023,ADULT SOCIAL CARE,ABBEY HEALTHCARE HOMES LTD,01/06/2023,"2,300.00",6541-Residential,THIRD PARTY PAYMENTS,PRIVATE CONTRACTOR,REVENUE
Walsall Council,http://opendatacommunities.org/id/metropolitan-district-council/walsall ,WC151-228,30.06.2023,ADULT SOCIAL CARE,ABBEY HEALTHCARE HOMES LTD,28/06/2023,492.86,6541-Residential,THIRD PARTY PAYMENTS,PRIVATE CONTRACTOR,REVENUE
Walsall Council,http://opendatacommunities.org/id/metropolitan-district-council/walsall ,WC151-229,30.06.2023,CHILDRENS,ABBOTT TOXICOLOGY LTD - FORMERLY ALERE TOXICOLOGY PLC,08/06/2023,787.95,6223-Medical Specialist Reports,DIRECT EMPLOYEES,EMPLOYEE ALLOWANCES & EXPENSES,REVENUE
Walsall Council,http://opendatacommunities.org/id/metropolitan-district-council/walsall ,WC151-230,30.06.2023,ADULT SOCIAL CARE,REDACTED,07/06/2023,"3,402.00",6541-Direct Payment,THIRD PARTY PAYMENTS,PRIVATE CONTRACTOR,REVENUE
Walsall Council,http://opendatacommunities.org/id/metropolitan-district-council/walsall ,WC151-231,30.06.2023,ADULT SOCIAL CARE,ABILITY HEALTHCARE LTD,01/06/2023,"2,036.16",6541-Domiciliary Care,THIRD PARTY PAYMENTS,PRIVATE CONTRACTOR,REVENUE
Walsall Council,http://opendatacommunities.org/id/metropolitan-district-council/walsall ,WC151-232,30.06.2023,ADULT SOCIAL CARE,ABILITY HEALTHCARE LTD,01/06/2023,"1,777.60",6541-Domiciliary Care,THIRD PARTY PAYMENTS,PRIVATE CONTRACTOR,REVENUE
Walsall Council,http://opendatacommunities.org/id/metropolitan-district-council/walsall ,WC151-233,30.06.2023,ADULT SOCIAL CARE,ABILITY HEALTHCARE LTD,01/06/2023,"1,896.28",6541-Domiciliary Care,THIRD PARTY PAYMENTS,PRIVATE CONTRACTOR,REVENUE
Walsall Council,http://opendatacommunities.org/id/metropolitan-district-council/walsall ,WC151-234,30.06.2023,ADULT SOCIAL CARE,ABILITY HEALTHCARE LTD,01/06/2023,"1,357.44",6541-Domiciliary Care,THIRD PARTY PAYMENTS,PRIVATE CONTRACTOR,REVENUE
Walsall Council,http://opendatacommunities.org/id/metropolitan-district-council/walsall ,WC151-235,30.06.2023,ADULT SOCIAL CARE,ABILITY HEALTHCARE LTD,01/06/2023,"2,036.16",6541-Domiciliary Care,THIRD PARTY PAYMENTS,PRIVATE CONTRACTOR,REVENUE
Walsall Council,http://opendatacommunities.org/id/metropolitan-district-council/walsall ,WC151-236,30.06.2023,ADULT SOCIAL CARE,ABILITY HEALTHCARE LTD,01/06/2023,"2,036.16",6541-Domiciliary Care,THIRD PARTY PAYMENTS,PRIVATE CONTRACTOR,REVENUE
Walsall Council,http://opendatacommunities.org/id/metropolitan-district-council/walsall ,WC151-237,30.06.2023,ADULT SOCIAL CARE,ABILITY HEALTHCARE LTD,01/06/2023,"2,036.16",6541-Domiciliary Care,THIRD PARTY PAYMENTS,PRIVATE CONTRACTOR,REVENUE
Walsall Council,http://opendatacommunities.org/id/metropolitan-district-council/walsall ,WC151-238,30.06.2023,ADULT SOCIAL CARE,ABILITY HEALTHCARE LTD,01/06/2023,"2,036.16",6541-Domiciliary Care,THIRD PARTY PAYMENTS,PRIVATE CONTRACTOR,REVENUE
Walsall Council,http://opendatacommunities.org/id/metropolitan-district-council/walsall ,WC151-239,30.06.2023,ADULT SOCIAL CARE,ABILITY HEALTHCARE LTD,01/06/2023,"1,809.92",6541-Domiciliary Care,THIRD PARTY PAYMENTS,PRIVATE CONTRACTOR,REVENUE
Walsall Council,http://opendatacommunities.org/id/metropolitan-district-council/walsall ,WC151-240,30.06.2023,ADULT SOCIAL CARE,ABILITY HEALTHCARE LTD,01/06/2023,"1,292.80",6541-Domiciliary Care,THIRD PARTY PAYMENTS,PRIVATE CONTRACTOR,REVENUE
Walsall Council,http://opendatacommunities.org/id/metropolitan-district-council/walsall ,WC151-241,30.06.2023,ADULT SOCIAL CARE,ABILITY HEALTHCARE LTD,01/06/2023,"1,018.08",6541-Domiciliary Care,THIRD PARTY PAYMENTS,PRIVATE CONTRACTOR,REVENUE
Walsall Council,http://opendatacommunities.org/id/metropolitan-district-council/walsall ,WC151-242,30.06.2023,ADULT SOCIAL CARE,ABILITY HEALTHCARE LTD,01/06/2023,377.16,6541-Domiciliary Care,THIRD PARTY PAYMENTS,PRIVATE CONTRACTOR,REVENUE
Walsall Council,http://opendatacommunities.org/id/metropolitan-district-council/walsall ,WC151-243,30.06.2023,ADULT SOCIAL CARE,ABILITY HEALTHCARE LTD,01/06/2023,"1,648.32",6541-Domiciliary Care,THIRD PARTY PAYMENTS,PRIVATE CONTRACTOR,REVENUE
Walsall Council,http://opendatacommunities.org/id/metropolitan-district-council/walsall ,WC151-244,30.06.2023,ADULT SOCIAL CARE,ABILITY HEALTHCARE LTD,01/06/2023,"3,167.36",6541-Domiciliary Care,THIRD PARTY PAYMENTS,PRIVATE CONTRACTOR,REVENUE
Walsall Council,http://opendatacommunities.org/id/metropolitan-district-council/walsall ,WC151-245,30.06.2023,ADULT SOCIAL CARE,ABILITY HEALTHCARE LTD,01/06/2023,"1,809.92",6541-Domiciliary Care,THIRD PARTY PAYMENTS,PRIVATE CONTRACTOR,REVENUE
Walsall Council,http://opendatacommunities.org/id/metropolitan-district-council/walsall ,WC151-246,30.06.2023,ADULT SOCIAL CARE,ABILITY HEALTHCARE LTD,01/06/2023,904.96,6541-Domiciliary Care,THIRD PARTY PAYMENTS,PRIVATE CONTRACTOR,REVENUE
Walsall Council,http://opendatacommunities.org/id/metropolitan-district-council/walsall ,WC151-247,30.06.2023,ADULT SOCIAL CARE,ABILITY HEALTHCARE LTD,01/06/2023,"2,036.16",6541-Domiciliary Care,THIRD PARTY PAYMENTS,PRIVATE CONTRACTOR,REVENUE
Walsall Council,http://opendatacommunities.org/id/metropolitan-district-council/walsall ,WC151-248,30.06.2023,ADULT SOCIAL CARE,ABILITY HEALTHCARE LTD,01/06/2023,"1,928.50",6541-Domiciliary Care,THIRD PARTY PAYMENTS,PRIVATE CONTRACTOR,REVENUE
Walsall Council,http://opendatacommunities.org/id/metropolitan-district-council/walsall ,WC151-249,30.06.2023,ADULT SOCIAL CARE,ABILITY HEALTHCARE LTD,01/06/2023,"2,068.48",6541-Domiciliary Care,THIRD PARTY PAYMENTS,PRIVATE CONTRACTOR,REVENUE
Walsall Council,http://opendatacommunities.org/id/metropolitan-district-council/walsall ,WC151-250,30.06.2023,ADULT SOCIAL CARE,ABILITY HEALTHCARE LTD,01/06/2023,"1,809.92",6541-Domiciliary Care,THIRD PARTY PAYMENTS,PRIVATE CONTRACTOR,REVENUE
Walsall Council,http://opendatacommunities.org/id/metropolitan-district-council/walsall ,WC151-251,30.06.2023,ADULT SOCIAL CARE,ABILITY HEALTHCARE LTD,01/06/2023,"1,696.80",6541-Domiciliary Care,THIRD PARTY PAYMENTS,PRIVATE CONTRACTOR,REVENUE
Walsall Council,http://opendatacommunities.org/id/metropolitan-district-council/walsall ,WC151-252,30.06.2023,ADULT SOCIAL CARE,ABILITY HEALTHCARE LTD,01/06/2023,673.50,6541-Domiciliary Care,THIRD PARTY PAYMENTS,PRIVATE CONTRACTOR,REVENUE
Walsall Council,http://opendatacommunities.org/id/metropolitan-district-council/walsall ,WC151-253,30.06.2023,ADULT SOCIAL CARE,ABILITY HEALTHCARE LTD,01/06/2023,"1,809.92",6541-Domiciliary Care,THIRD PARTY PAYMENTS,PRIVATE CONTRACTOR,REVENUE
Walsall Council,http://opendatacommunities.org/id/metropolitan-district-council/walsall ,WC151-254,30.06.2023,ADULT SOCIAL CARE,ABILITY HEALTHCARE LTD,01/06/2023,"1,357.44",6541-Domiciliary Care,THIRD PARTY PAYMENTS,PRIVATE CONTRACTOR,REVENUE
Walsall Council,http://opendatacommunities.org/id/metropolitan-district-council/walsall ,WC151-255,30.06.2023,ADULT SOCIAL CARE,ABILITY HEALTHCARE LTD,01/06/2023,"2,036.16",6541-Domiciliary Care,THIRD PARTY PAYMENTS,PRIVATE CONTRACTOR,REVENUE
Walsall Council,http://opendatacommunities.org/id/metropolitan-district-council/walsall ,WC151-256,30.06.2023,ADULT SOCIAL CARE,ABILITY HEALTHCARE LTD,01/06/2023,"1,125.94",6541-Domiciliary Care,THIRD PARTY PAYMENTS,PRIVATE CONTRACTOR,REVENUE
Walsall Council,http://opendatacommunities.org/id/metropolitan-district-council/walsall ,WC151-257,30.06.2023,ADULT SOCIAL CARE,ABILITY HEALTHCARE LTD,01/06/2023,"1,206.80",6541-Domiciliary Care,THIRD PARTY PAYMENTS,PRIVATE CONTRACTOR,REVENUE
Walsall Council,http://opendatacommunities.org/id/metropolitan-district-council/walsall ,WC151-258,30.06.2023,ADULT SOCIAL CARE,ABILITY HEALTHCARE LTD,01/06/2023,"1,809.92",6541-Domiciliary Care,THIRD PARTY PAYMENTS,PRIVATE CONTRACTOR,REVENUE
Walsall Council,http://opendatacommunities.org/id/metropolitan-district-council/walsall ,WC151-259,30.06.2023,ADULT SOCIAL CARE,ABILITY HEALTHCARE LTD,01/06/2023,"1,131.20",6541-Domiciliary Care,THIRD PARTY PAYMENTS,PRIVATE CONTRACTOR,REVENUE
Walsall Council,http://opendatacommunities.org/id/metropolitan-district-council/walsall ,WC151-260,30.06.2023,ADULT SOCIAL CARE,ABILITY HEALTHCARE LTD,28/06/2023,"2,268.00",6541-Domiciliary Care,THIRD PARTY PAYMENTS,PRIVATE CONTRACTOR,REVENUE
Walsall Council,http://opendatacommunities.org/id/metropolitan-district-council/walsall ,WC151-261,30.06.2023,ADULT SOCIAL CARE,ABILITY HEALTHCARE LTD,28/06/2023,"2,016.00",6541-Domiciliary Care,THIRD PARTY PAYMENTS,PRIVATE CONTRACTOR,REVENUE
Walsall Council,http://opendatacommunities.org/id/metropolitan-district-council/walsall ,WC151-262,30.06.2023,ADULT SOCIAL CARE,ABILITY HEALTHCARE LTD,28/06/2023,"2,268.00",6541-Domiciliary Care,THIRD PARTY PAYMENTS,PRIVATE CONTRACTOR,REVENUE
Walsall Council,http://opendatacommunities.org/id/metropolitan-district-council/walsall ,WC151-263,30.06.2023,ADULT SOCIAL CARE,ABILITY HEALTHCARE LTD,28/06/2023,"1,242.00",6541-Domiciliary Care,THIRD PARTY PAYMENTS,PRIVATE CONTRACTOR,REVENUE
Walsall Council,http://opendatacommunities.org/id/metropolitan-district-council/walsall ,WC151-264,30.06.2023,ADULT SOCIAL CARE,ABILITY HEALTHCARE LTD,28/06/2023,"2,268.00",6541-Domiciliary Care,THIRD PARTY PAYMENTS,PRIVATE CONTRACTOR,REVENUE
Walsall Council,http://opendatacommunities.org/id/metropolitan-district-council/walsall ,WC151-265,30.06.2023,ADULT SOCIAL CARE,ABILITY HEALTHCARE LTD,28/06/2023,"2,268.00",6541-Domiciliary Care,THIRD PARTY PAYMENTS,PRIVATE CONTRACTOR,REVENUE
Walsall Council,http://opendatacommunities.org/id/metropolitan-district-council/walsall ,WC151-266,30.06.2023,ADULT SOCIAL CARE,ABILITY HEALTHCARE LTD,28/06/2023,"2,268.00",6541-Domiciliary Care,THIRD PARTY PAYMENTS,PRIVATE CONTRACTOR,REVENUE
Walsall Council,http://opendatacommunities.org/id/metropolitan-district-council/walsall ,WC151-267,30.06.2023,ADULT SOCIAL CARE,ABILITY HEALTHCARE LTD,28/06/2023,"2,268.00",6541-Domiciliary Care,THIRD PARTY PAYMENTS,PRIVATE CONTRACTOR,REVENUE
Walsall Council,http://opendatacommunities.org/id/metropolitan-district-council/walsall ,WC151-268,30.06.2023,ADULT SOCIAL CARE,ABILITY HEALTHCARE LTD,28/06/2023,"2,016.00",6541-Domiciliary Care,THIRD PARTY PAYMENTS,PRIVATE CONTRACTOR,REVENUE
Walsall Council,http://opendatacommunities.org/id/metropolitan-district-council/walsall ,WC151-269,30.06.2023,ADULT SOCIAL CARE,ABILITY HEALTHCARE LTD,28/06/2023,"1,197.00",6541-Domiciliary Care,THIRD PARTY PAYMENTS,PRIVATE CONTRACTOR,REVENUE
Walsall Council,http://opendatacommunities.org/id/metropolitan-district-council/walsall ,WC151-270,30.06.2023,ADULT SOCIAL CARE,ABILITY HEALTHCARE LTD,28/06/2023,"1,134.00",6541-Domiciliary Care,THIRD PARTY PAYMENTS,PRIVATE CONTRACTOR,REVENUE
Walsall Council,http://opendatacommunities.org/id/metropolitan-district-council/walsall ,WC151-271,30.06.2023,ADULT SOCIAL CARE,ABILITY HEALTHCARE LTD,28/06/2023,399.00,6541-Domiciliary Care,THIRD PARTY PAYMENTS,PRIVATE CONTRACTOR,REVENUE
Walsall Council,http://opendatacommunities.org/id/metropolitan-district-council/walsall ,WC151-272,30.06.2023,ADULT SOCIAL CARE,ABILITY HEALTHCARE LTD,28/06/2023,"2,016.00",6541-Domiciliary Care,THIRD PARTY PAYMENTS,PRIVATE CONTRACTOR,REVENUE
Walsall Council,http://opendatacommunities.org/id/metropolitan-district-council/walsall ,WC151-273,30.06.2023,ADULT SOCIAL CARE,ABILITY HEALTHCARE LTD,28/06/2023,"3,528.00",6541-Domiciliary Care,THIRD PARTY PAYMENTS,PRIVATE CONTRACTOR,REVENUE
Walsall Council,http://opendatacommunities.org/id/metropolitan-district-council/walsall ,WC151-274,30.06.2023,ADULT SOCIAL CARE,ABILITY HEALTHCARE LTD,28/06/2023,"2,016.00",6541-Domiciliary Care,THIRD PARTY PAYMENTS,PRIVATE CONTRACTOR,REVENUE
Walsall Council,http://opendatacommunities.org/id/metropolitan-district-council/walsall ,WC151-275,30.06.2023,ADULT SOCIAL CARE,ABILITY HEALTHCARE LTD,28/06/2023,"1,008.00",6541-Domiciliary Care,THIRD PARTY PAYMENTS,PRIVATE CONTRACTOR,REVENUE
Walsall Council,http://opendatacommunities.org/id/metropolitan-district-council/walsall ,WC151-276,30.06.2023,ADULT SOCIAL CARE,ABILITY HEALTHCARE LTD,28/06/2023,"2,268.00",6541-Domiciliary Care,THIRD PARTY PAYMENTS,PRIVATE CONTRACTOR,REVENUE
Walsall Council,http://opendatacommunities.org/id/metropolitan-district-council/walsall ,WC151-277,30.06.2023,ADULT SOCIAL CARE,ABILITY HEALTHCARE LTD,28/06/2023,"2,574.00",6541-Domiciliary Care,THIRD PARTY PAYMENTS,PRIVATE CONTRACTOR,REVENUE
Walsall Council,http://opendatacommunities.org/id/metropolitan-district-council/walsall ,WC151-278,30.06.2023,ADULT SOCIAL CARE,ABILITY HEALTHCARE LTD,28/06/2023,"2,016.00",6541-Domiciliary Care,THIRD PARTY PAYMENTS,PRIVATE CONTRACTOR,REVENUE
Walsall Council,http://opendatacommunities.org/id/metropolitan-district-council/walsall ,WC151-279,30.06.2023,ADULT SOCIAL CARE,ABILITY HEALTHCARE LTD,28/06/2023,"2,466.00",6541-Domiciliary Care,THIRD PARTY PAYMENTS,PRIVATE CONTRACTOR,REVENUE
Walsall Council,http://opendatacommunities.org/id/metropolitan-district-council/walsall ,WC151-280,30.06.2023,ADULT SOCIAL CARE,ABILITY HEALTHCARE LTD,28/06/2023,"1,632.00",6541-Domiciliary Care,THIRD PARTY PAYMENTS,PRIVATE CONTRACTOR,REVENUE
Walsall Council,http://opendatacommunities.org/id/metropolitan-district-council/walsall ,WC151-281,30.06.2023,ADULT SOCIAL CARE,ABILITY HEALTHCARE LTD,28/06/2023,"2,016.00",6541-Domiciliary Care,THIRD PARTY PAYMENTS,PRIVATE CONTRACTOR,REVENUE
Walsall Council,http://opendatacommunities.org/id/metropolitan-district-council/walsall ,WC151-282,30.06.2023,ADULT SOCIAL CARE,ABILITY HEALTHCARE LTD,28/06/2023,"1,764.00",6541-Domiciliary Care,THIRD PARTY PAYMENTS,PRIVATE CONTRACTOR,REVENUE
Walsall Council,http://opendatacommunities.org/id/metropolitan-district-council/walsall ,WC151-283,30.06.2023,ADULT SOCIAL CARE,ABILITY HEALTHCARE LTD,28/06/2023,"2,268.00",6541-Domiciliary Care,THIRD PARTY PAYMENTS,PRIVATE CONTRACTOR,REVENUE
Walsall Council,http://opendatacommunities.org/id/metropolitan-district-council/walsall ,WC151-284,30.06.2023,ADULT SOCIAL CARE,ABILITY HEALTHCARE LTD,28/06/2023,336.00,6541-Domiciliary Care,THIRD PARTY PAYMENTS,PRIVATE CONTRACTOR,REVENUE
Walsall Council,http://opendatacommunities.org/id/metropolitan-district-council/walsall ,WC151-285,30.06.2023,ADULT SOCIAL CARE,ABILITY HEALTHCARE LTD,28/06/2023,"2,016.00",6541-Domiciliary Care,THIRD PARTY PAYMENTS,PRIVATE CONTRACTOR,REVENUE
Walsall Council,http://opendatacommunities.org/id/metropolitan-district-council/walsall ,WC151-286,30.06.2023,ADULT SOCIAL CARE,ABILITY HEALTHCARE LTD,28/06/2023,"1,260.00",6541-Domiciliary Care,THIRD PARTY PAYMENTS,PRIVATE CONTRACTOR,REVENUE
Walsall Council,http://opendatacommunities.org/id/metropolitan-district-council/walsall ,WC151-287,30.06.2023,ADULT SOCIAL CARE,ABILITY HEALTHCARE LTD,28/06/2023,846.00,6554-Professional Services-Priv Contractor & Other Agencies,THIRD PARTY PAYMENTS,PRIVATE CONTRACTOR,REVENUE
Walsall Council,http://opendatacommunities.org/id/metropolitan-district-council/walsall ,WC151-288,30.06.2023,ADULT SOCIAL CARE,ABILITY HEALTHCARE LTD,28/06/2023,"1,917.00",6541-Domiciliary Care,THIRD PARTY PAYMENTS,PRIVATE CONTRACTOR,REVENUE
Walsall Council,http://opendatacommunities.org/id/metropolitan-district-council/walsall ,WC151-289,30.06.2023,ADULT SOCIAL CARE,ABILITY HEALTHCARE LTD,28/06/2023,"1,344.00",6541-Domiciliary Care,THIRD PARTY PAYMENTS,PRIVATE CONTRACTOR,REVENUE
Walsall Council,http://opendatacommunities.org/id/metropolitan-district-council/walsall ,WC151-290,30.06.2023,ADULT SOCIAL CARE,ABILITY HEALTHCARE LTD,01/06/2023,355.74,6541-Domiciliary Care,THIRD PARTY PAYMENTS,PRIVATE CONTRACTOR,REVENUE
Walsall Council,http://opendatacommunities.org/id/metropolitan-district-council/walsall ,WC151-291,30.06.2023,ADULT SOCIAL CARE,ABILITY HEALTHCARE LTD,01/06/2023,"2,538.00",6554-Professional Services-Priv Contractor & Other Agencies,THIRD PARTY PAYMENTS,PRIVATE CONTRACTOR,REVENUE
Walsall Council,http://opendatacommunities.org/id/metropolitan-district-council/walsall ,WC151-292,30.06.2023,ADULT SOCIAL CARE,ABILITY HEALTHCARE LTD,01/06/2023,"1,656.00",6554-Professional Services-Priv Contractor & Other Agencies,THIRD PARTY PAYMENTS,PRIVATE CONTRACTOR,REVENUE
Walsall Council,http://opendatacommunities.org/id/metropolitan-district-council/walsall ,WC151-293,30.06.2023,ADULT SOCIAL CARE,ABILITY HEALTHCARE LTD,01/06/2023,851.40,6554-Professional Services-Priv Contractor & Other Agencies,THIRD PARTY PAYMENTS,PRIVATE CONTRACTOR,REVENUE
Walsall Council,http://opendatacommunities.org/id/metropolitan-district-council/walsall ,WC151-294,30.06.2023,ADULT SOCIAL CARE,ABILITY HEALTHCARE LTD,01/06/2023,"1,134.00",6554-Professional Services-Priv Contractor & Other Agencies,THIRD PARTY PAYMENTS,PRIVATE CONTRACTOR,REVENUE
Walsall Council,http://opendatacommunities.org/id/metropolitan-district-council/walsall ,WC151-295,30.06.2023,ADULT SOCIAL CARE,ABILITY HEALTHCARE LTD,28/06/2023,"1,296.00",6554-Professional Services-Priv Contractor & Other Agencies,THIRD PARTY PAYMENTS,PRIVATE CONTRACTOR,REVENUE
Walsall Council,http://opendatacommunities.org/id/metropolitan-district-council/walsall ,WC151-296,30.06.2023,ADULT SOCIAL CARE,ABILITY HEALTHCARE LTD,28/06/2023,"2,268.00",6554-Professional Services-Priv Contractor & Other Agencies,THIRD PARTY PAYMENTS,PRIVATE CONTRACTOR,REVENUE
Walsall Council,http://opendatacommunities.org/id/metropolitan-district-council/walsall ,WC151-297,30.06.2023,ADULT SOCIAL CARE,ABILITY HEALTHCARE LTD,28/06/2023,"1,071.00",6554-Professional Services-Priv Contractor & Other Agencies,THIRD PARTY PAYMENTS,PRIVATE CONTRACTOR,REVENUE
Walsall Council,http://opendatacommunities.org/id/metropolitan-district-council/walsall ,WC151-298,30.06.2023,ADULT SOCIAL CARE,ABILITY HEALTHCARE LTD,28/06/2023,315.00,6554-Professional Services-Priv Contractor & Other Agencies,THIRD PARTY PAYMENTS,PRIVATE CONTRACTOR,REVENUE
Walsall Council,http://opendatacommunities.org/id/metropolitan-district-council/walsall ,WC151-299,30.06.2023,ADULT SOCIAL CARE,ABILITY HEALTHCARE LTD,28/06/2023,"1,296.00",6554-Professional Services-Priv Contractor & Other Agencies,THIRD PARTY PAYMENTS,PRIVATE CONTRACTOR,REVENUE
Walsall Council,http://opendatacommunities.org/id/metropolitan-district-council/walsall ,WC151-300,30.06.2023,ADULT SOCIAL CARE,ABILITY HEALTHCARE LTD,28/06/2023,"1,197.00",6554-Professional Services-Priv Contractor & Other Agencies,THIRD PARTY PAYMENTS,PRIVATE CONTRACTOR,REVENUE
Walsall Council,http://opendatacommunities.org/id/metropolitan-district-council/walsall ,WC151-301,30.06.2023,CHILDRENS,ABLEWELL CARS,19/06/2023,924.00,6241-Hire of Vehicle with Driver,TRANSPORT,DIRECT TRANSPORT COSTS,REVENUE
Walsall Council,http://opendatacommunities.org/id/metropolitan-district-council/walsall ,WC151-302,30.06.2023,CHILDRENS,ABLEWELL CARS,19/06/2023,"1,164.80",6241-Hire of Vehicle with Driver,TRANSPORT,DIRECT TRANSPORT COSTS,REVENUE
Walsall Council,http://opendatacommunities.org/id/metropolitan-district-council/walsall ,WC151-303,30.06.2023,CHILDRENS,ABLEWELL CARS,19/06/2023,"1,725.78",6241-Hire of Vehicle with Driver,TRANSPORT,DIRECT TRANSPORT COSTS,REVENUE
Walsall Council,http://opendatacommunities.org/id/metropolitan-district-council/walsall ,WC151-304,30.06.2023,CHILDRENS,ABLEWELL CARS,19/06/2023,"1,767.20",6241-Hire of Vehicle with Driver,TRANSPORT,DIRECT TRANSPORT COSTS,REVENUE
Walsall Council,http://opendatacommunities.org/id/metropolitan-district-council/walsall ,WC151-305,30.06.2023,CHILDRENS,ABLEWELL CARS,19/06/2023,884.80,6241-Hire of Vehicle with Driver,TRANSPORT,DIRECT TRANSPORT COSTS,REVENUE
Walsall Council,http://opendatacommunities.org/id/metropolitan-district-council/walsall ,WC151-306,30.06.2023,CHILDRENS,ABLEWELL CARS,19/06/2023,"1,029.84",6241-Hire of Vehicle with Driver,TRANSPORT,DIRECT TRANSPORT COSTS,REVENUE
Walsall Council,http://opendatacommunities.org/id/metropolitan-district-council/walsall ,WC151-307,30.06.2023,CHILDRENS,ABS TAXIS (ALDRIDGE),19/06/2023,"1,381.80",6241-Hire of Vehicle with Driver,TRANSPORT,DIRECT TRANSPORT COSTS,REVENUE
Walsall Council,http://opendatacommunities.org/id/metropolitan-district-council/walsall ,WC151-308,30.06.2023,CHILDRENS,ABS TAXIS (ALDRIDGE),19/06/2023,"1,127.00",6241-Hire of Vehicle with Driver,TRANSPORT,DIRECT TRANSPORT COSTS,REVENUE
Walsall Council,http://opendatacommunities.org/id/metropolitan-district-council/walsall ,WC151-309,30.06.2023,CHILDRENS,ABS TAXIS (ALDRIDGE),19/06/2023,"1,453.20",6241-Hire of Vehicle with Driver,TRANSPORT,DIRECT TRANSPORT COSTS,REVENUE
Walsall Council,http://opendatacommunities.org/id/metropolitan-district-council/walsall ,WC151-310,30.06.2023,CHILDRENS,ABS TAXIS (ALDRIDGE),19/06/2023,"1,407.00",6241-Hire of Vehicle with Driver,TRANSPORT,DIRECT TRANSPORT COSTS,REVENUE
Walsall Council,http://opendatacommunities.org/id/metropolitan-district-council/walsall ,WC151-311,30.06.2023,ADULT SOCIAL CARE,ABSOLUTE HEALTHCARE SWAN HOUSE LTD,06/06/2023,"2,440.40",6541-Residential EMI,THIRD PARTY PAYMENTS,PRIVATE CONTRACTOR,REVENUE
Walsall Council,http://opendatacommunities.org/id/metropolitan-district-council/walsall ,WC151-312,30.06.2023,ADULT SOCIAL CARE,ABSOLUTE HEALTHCARE SWAN HOUSE LTD,06/06/2023,"2,301.28",6541-Residential,THIRD PARTY PAYMENTS,PRIVATE CONTRACTOR,REVENUE
Walsall Council,http://opendatacommunities.org/id/metropolitan-district-council/walsall ,WC151-313,30.06.2023,ADULT SOCIAL CARE,ABSOLUTE HEALTHCARE SWAN HOUSE LTD,06/06/2023,"2,201.28",6541-Residential,THIRD PARTY PAYMENTS,PRIVATE CONTRACTOR,REVENUE
Walsall Council,http://opendatacommunities.org/id/metropolitan-district-council/walsall ,WC151-314,30.06.2023,ADULT SOCIAL CARE,ABSOLUTE HEALTHCARE SWAN HOUSE LTD,06/06/2023,"2,161.28",6541-Residential,THIRD PARTY PAYMENTS,PRIVATE CONTRACTOR,REVENUE
Walsall Council,http://opendatacommunities.org/id/metropolitan-district-council/walsall ,WC151-315,30.06.2023,ADULT SOCIAL CARE,ABSOLUTE HEALTHCARE SWAN HOUSE LTD,06/06/2023,"2,161.28",6541-Residential,THIRD PARTY PAYMENTS,PRIVATE CONTRACTOR,REVENUE
Walsall Council,http://opendatacommunities.org/id/metropolitan-district-council/walsall ,WC151-316,30.06.2023,ADULT SOCIAL CARE,ABSOLUTE HEALTHCARE SWAN HOUSE LTD,06/06/2023,"2,161.28",6541-Residential,THIRD PARTY PAYMENTS,PRIVATE CONTRACTOR,REVENUE
Walsall Council,http://opendatacommunities.org/id/metropolitan-district-council/walsall ,WC151-317,30.06.2023,ADULT SOCIAL CARE,ABSOLUTE HEALTHCARE SWAN HOUSE LTD,06/06/2023,"2,440.40",6541-Residential EMI,THIRD PARTY PAYMENTS,PRIVATE CONTRACTOR,REVENUE
Walsall Council,http://opendatacommunities.org/id/metropolitan-district-council/walsall ,WC151-318,30.06.2023,ADULT SOCIAL CARE,ABSOLUTE HEALTHCARE SWAN HOUSE LTD,06/06/2023,"2,440.40",6541-Residential EMI,THIRD PARTY PAYMENTS,PRIVATE CONTRACTOR,REVENUE
Walsall Council,http://opendatacommunities.org/id/metropolitan-district-council/walsall ,WC151-319,30.06.2023,ADULT SOCIAL CARE,ABSOLUTE HEALTHCARE SWAN HOUSE LTD,06/06/2023,"2,161.28",6541-Residential,THIRD PARTY PAYMENTS,PRIVATE CONTRACTOR,REVENUE
Walsall Council,http://opendatacommunities.org/id/metropolitan-district-council/walsall ,WC151-320,30.06.2023,ADULT SOCIAL CARE,ABSOLUTE HEALTHCARE SWAN HOUSE LTD,06/06/2023,"3,077.18",6541-Nursing,THIRD PARTY PAYMENTS,PRIVATE CONTRACTOR,REVENUE
Walsall Council,http://opendatacommunities.org/id/metropolitan-district-council/walsall ,WC151-321,30.06.2023,ADULT SOCIAL CARE,ABSOLUTE HEALTHCARE SWAN HOUSE LTD,06/06/2023,"3,077.02",6541-Nursing,THIRD PARTY PAYMENTS,PRIVATE CONTRACTOR,REVENUE
Walsall Council,http://opendatacommunities.org/id/metropolitan-district-council/walsall ,WC151-322,30.06.2023,ADULT SOCIAL CARE,ABSOLUTE HEALTHCARE SWAN HOUSE LTD,06/06/2023,"3,368.51",6541-Nursing EMI,THIRD PARTY PAYMENTS,PRIVATE CONTRACTOR,REVENUE
Walsall Council,http://opendatacommunities.org/id/metropolitan-district-council/walsall ,WC151-323,30.06.2023,ADULT SOCIAL CARE,ABSOLUTE HEALTHCARE SWAN HOUSE LTD,06/06/2023,"1,577.04",6554-Professional Services-Priv Contractor & Other Agencies,THIRD PARTY PAYMENTS,PRIVATE CONTRACTOR,REVENUE
Walsall Council,http://opendatacommunities.org/id/metropolitan-district-council/walsall ,WC151-324,30.06.2023,ADULT SOCIAL CARE,ABSOLUTE HEALTHCARE SWAN HOUSE LTD,06/06/2023,"5,272.07",6541-Nursing EMI,THIRD PARTY PAYMENTS,PRIVATE CONTRACTOR,REVENUE
Walsall Council,http://opendatacommunities.org/id/metropolitan-district-council/walsall ,WC151-325,30.06.2023,ADULT SOCIAL CARE,ABSOLUTE HEALTHCARE SWAN HOUSE LTD,06/06/2023,"1,971.30",6554-Professional Services-Priv Contractor & Other Agencies,THIRD PARTY PAYMENTS,PRIVATE CONTRACTOR,REVENUE
Walsall Council,http://opendatacommunities.org/id/metropolitan-district-council/walsall ,WC151-326,30.06.2023,ADULT SOCIAL CARE,ABSOLUTE HEALTHCARE SWAN HOUSE LTD,06/06/2023,900.00,6541-Residential,THIRD PARTY PAYMENTS,PRIVATE CONTRACTOR,REVENUE
Walsall Council,http://opendatacommunities.org/id/metropolitan-district-council/walsall ,WC151-327,30.06.2023,ADULT SOCIAL CARE,ABSOLUTE HEALTHCARE SWAN HOUSE LTD,06/06/2023,"2,161.28",6541-Residential,THIRD PARTY PAYMENTS,PRIVATE CONTRACTOR,REVENUE
Walsall Council,http://opendatacommunities.org/id/metropolitan-district-council/walsall ,WC151-328,30.06.2023,ADULT SOCIAL CARE,ABSOLUTE HEALTHCARE SWAN HOUSE LTD,06/06/2023,"2,440.40",6541-Residential EMI,THIRD PARTY PAYMENTS,PRIVATE CONTRACTOR,REVENUE
Walsall Council,http://opendatacommunities.org/id/metropolitan-district-council/walsall ,WC151-329,30.06.2023,CHILDRENS,ABU BAKR TRUST,21/06/2023,"7,110.23",1220-Top Up Funding -Grants to Schools,SUPPLIES & SERVICES,GRANTS (EXP) & SUBSCRIPTIONS,REVENUE
Walsall Council,http://opendatacommunities.org/id/metropolitan-district-council/walsall ,WC151-330,30.06.2023,CHILDRENS,ACCALIA CARE SERVICES LTD,13/06/2023,"22,212.00",6223-External Residential Care-Oth Agency Provision,THIRD PARTY PAYMENTS,PRIVATE CONTRACTOR,REVENUE
Walsall Council,http://opendatacommunities.org/id/metropolitan-district-council/walsall ,WC151-331,30.06.2023,CHILDRENS,ACCEPTING BEHAVIOUR LTD,06/06/2023,747.50,1220-Professional Fees & Services,SUPPLIES & SERVICES,SERVICES,REVENUE
Walsall Council,http://opendatacommunities.org/id/metropolitan-district-council/walsall ,WC151-332,30.06.2023,ADULT SOCIAL CARE,ACCESS UK LTD ,06/06/2023,"-18,315.00",6551-Professional Fees & Services,SUPPLIES & SERVICES,SERVICES,REVENUE
Walsall Council,http://opendatacommunities.org/id/metropolitan-district-council/walsall ,WC151-333,30.06.2023,ADULT SOCIAL CARE,ACCESS UK LTD ,06/06/2023,"18,315.00",6551-Professional Fees & Services,SUPPLIES & SERVICES,SERVICES,REVENUE
Walsall Council,http://opendatacommunities.org/id/metropolitan-district-council/walsall ,WC151-334,30.06.2023,ADULT SOCIAL CARE,ACCORD - AGE MATTERS,07/06/2023,-256.00,6553-Direct Payments Support,TRANSFER PAYMENTS,ADULT SOCIAL SERVICES CLIENT,REVENUE
Walsall Council,http://opendatacommunities.org/id/metropolitan-district-council/walsall ,WC151-335,30.06.2023,ADULT SOCIAL CARE,ACCORD HOUSING ASSOCIATION LIMITED - HOBS MEADOW,06/06/2023,"4,776.84",6541-Residential,THIRD PARTY PAYMENTS,PRIVATE CONTRACTOR,REVENUE
Walsall Council,http://opendatacommunities.org/id/metropolitan-district-council/walsall ,WC151-336,30.06.2023,ADULT SOCIAL CARE,ACCORD HOUSING ASSOCIATION LIMITED - HOBS MEADOW,06/06/2023,"4,776.84",6541-Residential,THIRD PARTY PAYMENTS,PRIVATE CONTRACTOR,REVENUE
Walsall Council,http://opendatacommunities.org/id/metropolitan-district-council/walsall ,WC151-337,30.06.2023,ADULT SOCIAL CARE,ACCORD HOUSING ASSOCIATION LIMITED - HOBS MEADOW,06/06/2023,"4,776.84",6541-Residential,THIRD PARTY PAYMENTS,PRIVATE CONTRACTOR,REVENUE
Walsall Council,http://opendatacommunities.org/id/metropolitan-district-council/walsall ,WC151-338,30.06.2023,ADULT SOCIAL CARE,ACCORD HOUSING ASSOCIATION LIMITED - HOBS MEADOW,06/06/2023,"4,776.84",6541-Residential,THIRD PARTY PAYMENTS,PRIVATE CONTRACTOR,REVENUE
Walsall Council,http://opendatacommunities.org/id/metropolitan-district-council/walsall ,WC151-339,30.06.2023,CHILDRENS,ACE CARS & MINIBUSES LTD,19/06/2023,"1,498.00",6241-Hire of Vehicle with Driver,TRANSPORT,DIRECT TRANSPORT COSTS,REVENUE
Walsall Council,http://opendatacommunities.org/id/metropolitan-district-council/walsall ,WC151-340,30.06.2023,CHILDRENS,ACE CARS & MINIBUSES LTD,19/06/2023,"2,973.60",6241-Hire of Vehicle with Driver,TRANSPORT,DIRECT TRANSPORT COSTS,REVENUE
Walsall Council,http://opendatacommunities.org/id/metropolitan-district-council/walsall ,WC151-341,30.06.2023,CHILDRENS,ACE CARS & MINIBUSES LTD,19/06/2023,"1,498.00",6241-Hire of Vehicle with Driver,TRANSPORT,DIRECT TRANSPORT COSTS,REVENUE
Walsall Council,http://opendatacommunities.org/id/metropolitan-district-council/walsall ,WC151-342,30.06.2023,CHILDRENS,ACE CARS & MINIBUSES LTD,19/06/2023,"1,498.00",6241-Hire of Vehicle with Driver,TRANSPORT,DIRECT TRANSPORT COSTS,REVENUE
Walsall Council,http://opendatacommunities.org/id/metropolitan-district-council/walsall ,WC151-343,30.06.2023,CHILDRENS,ACE CARS & MINIBUSES LTD,19/06/2023,"1,498.00",6241-Hire of Vehicle with Driver,TRANSPORT,DIRECT TRANSPORT COSTS,REVENUE
Walsall Council,http://opendatacommunities.org/id/metropolitan-district-council/walsall ,WC151-344,30.06.2023,CHILDRENS,ACE CARS & MINIBUSES LTD,19/06/2023,"1,652.00",6241-Hire of Vehicle with Driver,TRANSPORT,DIRECT TRANSPORT COSTS,REVENUE
Walsall Council,http://opendatacommunities.org/id/metropolitan-district-council/walsall ,WC151-345,30.06.2023,CHILDRENS,ACE CARS & MINIBUSES LTD,19/06/2023,"1,673.00",6241-Hire of Vehicle with Driver,TRANSPORT,DIRECT TRANSPORT COSTS,REVENUE
Walsall Council,http://opendatacommunities.org/id/metropolitan-district-council/walsall ,WC151-346,30.06.2023,CHILDRENS,ACE CARS & MINIBUSES LTD,19/06/2023,"1,905.40",6241-Hire of Vehicle with Driver,TRANSPORT,DIRECT TRANSPORT COSTS,REVENUE
Walsall Council,http://opendatacommunities.org/id/metropolitan-district-council/walsall ,WC151-347,30.06.2023,CHILDRENS,ACE CARS & MINIBUSES LTD,19/06/2023,"1,905.40",6241-Hire of Vehicle with Driver,TRANSPORT,DIRECT TRANSPORT COSTS,REVENUE
Walsall Council,http://opendatacommunities.org/id/metropolitan-district-council/walsall ,WC151-348,30.06.2023,CHILDRENS,ACE CARS & MINIBUSES LTD,19/06/2023,"1,905.40",6241-Hire of Vehicle with Driver,TRANSPORT,DIRECT TRANSPORT COSTS,REVENUE
Walsall Council,http://opendatacommunities.org/id/metropolitan-district-council/walsall ,WC151-349,30.06.2023,CHILDRENS,ACE CARS & MINIBUSES LTD,19/06/2023,"1,498.00",6241-Hire of Vehicle with Driver,TRANSPORT,DIRECT TRANSPORT COSTS,REVENUE
Walsall Council,http://opendatacommunities.org/id/metropolitan-district-council/walsall ,WC151-350,30.06.2023,CHILDRENS,ACE CARS & MINIBUSES LTD,19/06/2023,"1,498.00",6241-Hire of Vehicle with Driver,TRANSPORT,DIRECT TRANSPORT COSTS,REVENUE
Walsall Council,http://opendatacommunities.org/id/metropolitan-district-council/walsall ,WC151-351,30.06.2023,CHILDRENS,ACE CARS & MINIBUSES LTD,19/06/2023,"1,498.00",6241-Hire of Vehicle with Driver,TRANSPORT,DIRECT TRANSPORT COSTS,REVENUE
Walsall Council,http://opendatacommunities.org/id/metropolitan-district-council/walsall ,WC151-352,30.06.2023,CHILDRENS,ACE CARS & MINIBUSES LTD,19/06/2023,"1,498.00",6241-Hire of Vehicle with Driver,TRANSPORT,DIRECT TRANSPORT COSTS,REVENUE
Walsall Council,http://opendatacommunities.org/id/metropolitan-district-council/walsall ,WC151-353,30.06.2023,CHILDRENS,ACE CARS & MINIBUSES LTD,19/06/2023,"1,652.00",6241-Hire of Vehicle with Driver,TRANSPORT,DIRECT TRANSPORT COSTS,REVENUE
Walsall Council,http://opendatacommunities.org/id/metropolitan-district-council/walsall ,WC151-354,30.06.2023,CHILDRENS,ACE CARS & MINIBUSES LTD,19/06/2023,"2,219.00",6241-Hire of Vehicle with Driver,TRANSPORT,DIRECT TRANSPORT COSTS,REVENUE
Walsall Council,http://opendatacommunities.org/id/metropolitan-district-council/walsall ,WC151-355,30.06.2023,CHILDRENS,ACE CARS & MINIBUSES LTD,19/06/2023,"1,673.00",6241-Hire of Vehicle with Driver,TRANSPORT,DIRECT TRANSPORT COSTS,REVENUE
Walsall Council,http://opendatacommunities.org/id/metropolitan-district-council/walsall ,WC151-356,30.06.2023,CHILDRENS,ACE CARS & MINIBUSES LTD,19/06/2023,"1,840.30",6241-Hire of Vehicle with Driver,TRANSPORT,DIRECT TRANSPORT COSTS,REVENUE
Walsall Council,http://opendatacommunities.org/id/metropolitan-district-council/walsall ,WC151-357,30.06.2023,CHILDRENS,ACE CARS & MINIBUSES LTD,19/06/2023,"1,673.00",6241-Hire of Vehicle with Driver,TRANSPORT,DIRECT TRANSPORT COSTS,REVENUE
Walsall Council,http://opendatacommunities.org/id/metropolitan-district-council/walsall ,WC151-358,30.06.2023,CHILDRENS,ACE CARS & MINIBUSES LTD,19/06/2023,"1,905.40",6241-Hire of Vehicle with Driver,TRANSPORT,DIRECT TRANSPORT COSTS,REVENUE
Walsall Council,http://opendatacommunities.org/id/metropolitan-district-council/walsall ,WC151-359,30.06.2023,CHILDRENS,ACE CARS & MINIBUSES LTD,19/06/2023,"1,905.40",6241-Hire of Vehicle with Driver,TRANSPORT,DIRECT TRANSPORT COSTS,REVENUE
Walsall Council,http://opendatacommunities.org/id/metropolitan-district-council/walsall ,WC151-360,30.06.2023,CHILDRENS,ACE CARS & MINIBUSES LTD,19/06/2023,"1,596.00",6241-Hire of Vehicle with Driver,TRANSPORT,DIRECT TRANSPORT COSTS,REVENUE
Walsall Council,http://opendatacommunities.org/id/metropolitan-district-council/walsall ,WC151-361,30.06.2023,CHILDRENS,ACE CARS & MINIBUSES LTD,19/06/2023,"2,373.00",6241-Hire of Vehicle with Driver,TRANSPORT,DIRECT TRANSPORT COSTS,REVENUE
Walsall Council,http://opendatacommunities.org/id/metropolitan-district-council/walsall ,WC151-362,30.06.2023,CHILDRENS,ACE CARS & MINIBUSES LTD,19/06/2023,"1,652.00",6241-Hire of Vehicle with Driver,TRANSPORT,DIRECT TRANSPORT COSTS,REVENUE
Walsall Council,http://opendatacommunities.org/id/metropolitan-district-council/walsall ,WC151-363,30.06.2023,CHILDRENS,ACE CARS & MINIBUSES LTD,19/06/2023,"1,883.28",6241-Hire of Vehicle with Driver,TRANSPORT,DIRECT TRANSPORT COSTS,REVENUE
Walsall Council,http://opendatacommunities.org/id/metropolitan-district-council/walsall ,WC151-364,30.06.2023,CHILDRENS,ACE CARS & MINIBUSES LTD,19/06/2023,"1,751.12",6241-Hire of Vehicle with Driver,TRANSPORT,DIRECT TRANSPORT COSTS,REVENUE
Walsall Council,http://opendatacommunities.org/id/metropolitan-district-council/walsall ,WC151-365,30.06.2023,CHILDRENS,ACE CARS & MINIBUSES LTD,19/06/2023,"1,652.00",6241-Hire of Vehicle with Driver,TRANSPORT,DIRECT TRANSPORT COSTS,REVENUE
Walsall Council,http://opendatacommunities.org/id/metropolitan-district-council/walsall ,WC151-366,30.06.2023,CHILDRENS,ACE CARS & MINIBUSES LTD,19/06/2023,"2,240.00",6241-Hire of Vehicle with Driver,TRANSPORT,DIRECT TRANSPORT COSTS,REVENUE
Walsall Council,http://opendatacommunities.org/id/metropolitan-district-council/walsall ,WC151-367,30.06.2023,CHILDRENS,ACE CARS & MINIBUSES LTD,19/06/2023,"2,648.66",6241-Hire of Vehicle with Driver,TRANSPORT,DIRECT TRANSPORT COSTS,REVENUE
Walsall Council,http://opendatacommunities.org/id/metropolitan-district-council/walsall ,WC151-368,30.06.2023,CHILDRENS,ACE CARS & MINIBUSES LTD,19/06/2023,"1,905.40",6241-Hire of Vehicle with Driver,TRANSPORT,DIRECT TRANSPORT COSTS,REVENUE
Walsall Council,http://opendatacommunities.org/id/metropolitan-district-council/walsall ,WC151-369,30.06.2023,CHILDRENS,ACE CARS & MINIBUSES LTD,19/06/2023,"2,153.06",6241-Hire of Vehicle with Driver,TRANSPORT,DIRECT TRANSPORT COSTS,REVENUE
Walsall Council,http://opendatacommunities.org/id/metropolitan-district-council/walsall ,WC151-370,30.06.2023,CHILDRENS,ACE CARS & MINIBUSES LTD,19/06/2023,"2,375.66",6241-Hire of Vehicle with Driver,TRANSPORT,DIRECT TRANSPORT COSTS,REVENUE
Walsall Council,http://opendatacommunities.org/id/metropolitan-district-council/walsall ,WC151-371,30.06.2023,CHILDRENS,ACE CARS & MINIBUSES LTD,19/06/2023,"1,498.00",6241-Hire of Vehicle with Driver,TRANSPORT,DIRECT TRANSPORT COSTS,REVENUE
Walsall Council,http://opendatacommunities.org/id/metropolitan-district-council/walsall ,WC151-372,30.06.2023,CHILDRENS,ACE CARS & MINIBUSES LTD,19/06/2023,"1,498.00",6241-Hire of Vehicle with Driver,TRANSPORT,DIRECT TRANSPORT COSTS,REVENUE
Walsall Council,http://opendatacommunities.org/id/metropolitan-district-council/walsall ,WC151-373,30.06.2023,CHILDRENS,ACE CARS & MINIBUSES LTD,19/06/2023,"1,652.00",6241-Hire of Vehicle with Driver,TRANSPORT,DIRECT TRANSPORT COSTS,REVENUE
Walsall Council,http://opendatacommunities.org/id/metropolitan-district-council/walsall ,WC151-374,30.06.2023,CHILDRENS,ACE CARS & MINIBUSES LTD,19/06/2023,"1,596.00",6241-Hire of Vehicle with Driver,TRANSPORT,DIRECT TRANSPORT COSTS,REVENUE
Walsall Council,http://opendatacommunities.org/id/metropolitan-district-council/walsall ,WC151-375,30.06.2023,CHILDRENS,ACE CARS & MINIBUSES LTD,19/06/2023,"1,596.00",6241-Hire of Vehicle with Driver,TRANSPORT,DIRECT TRANSPORT COSTS,REVENUE
Walsall Council,http://opendatacommunities.org/id/metropolitan-district-council/walsall ,WC151-376,30.06.2023,CHILDRENS,ACE CARS & MINIBUSES LTD,19/06/2023,"2,693.60",6241-Hire of Vehicle with Driver,TRANSPORT,DIRECT TRANSPORT COSTS,REVENUE
Walsall Council,http://opendatacommunities.org/id/metropolitan-district-council/walsall ,WC151-377,30.06.2023,CHILDRENS,ACE CARS & MINIBUSES LTD,19/06/2023,"1,596.00",6241-Hire of Vehicle with Driver,TRANSPORT,DIRECT TRANSPORT COSTS,REVENUE
Walsall Council,http://opendatacommunities.org/id/metropolitan-district-council/walsall ,WC151-378,30.06.2023,CHILDRENS,ACE CARS & MINIBUSES LTD,19/06/2023,"2,180.64",6241-Hire of Vehicle with Driver,TRANSPORT,DIRECT TRANSPORT COSTS,REVENUE
Walsall Council,http://opendatacommunities.org/id/metropolitan-district-council/walsall ,WC151-379,30.06.2023,ADULT SOCIAL CARE,ACEPAY LTD (COTTAGE NUR HOME),06/06/2023,"2,533.42",6541-Nursing,THIRD PARTY PAYMENTS,PRIVATE CONTRACTOR,REVENUE
Walsall Council,http://opendatacommunities.org/id/metropolitan-district-council/walsall ,WC151-380,30.06.2023,ADULT SOCIAL CARE,ACEPAY LTD (COTTAGE NUR HOME),06/06/2023,"2,533.42",6541-Nursing,THIRD PARTY PAYMENTS,PRIVATE CONTRACTOR,REVENUE
Walsall Council,http://opendatacommunities.org/id/metropolitan-district-council/walsall ,WC151-381,30.06.2023,ADULT SOCIAL CARE,ACEPAY LTD (COTTAGE NUR HOME),06/06/2023,"2,533.42",6541-Nursing,THIRD PARTY PAYMENTS,PRIVATE CONTRACTOR,REVENUE
Walsall Council,http://opendatacommunities.org/id/metropolitan-district-council/walsall ,WC151-382,30.06.2023,ADULT SOCIAL CARE,ACEPAY LTD (COTTAGE NUR HOME),06/06/2023,"2,533.42",6541-Nursing,THIRD PARTY PAYMENTS,PRIVATE CONTRACTOR,REVENUE
Walsall Council,http://opendatacommunities.org/id/metropolitan-district-council/walsall ,WC151-383,30.06.2023,ADULT SOCIAL CARE,ACEPAY LTD (COTTAGE NUR HOME),06/06/2023,"2,850.67",6541-Nursing EMI,THIRD PARTY PAYMENTS,PRIVATE CONTRACTOR,REVENUE
Walsall Council,http://opendatacommunities.org/id/metropolitan-district-council/walsall ,WC151-384,30.06.2023,ADULT SOCIAL CARE,ACEPAY LTD (COTTAGE NUR HOME),06/06/2023,"2,440.40",6541-Residential EMI,THIRD PARTY PAYMENTS,PRIVATE CONTRACTOR,REVENUE
Walsall Council,http://opendatacommunities.org/id/metropolitan-district-council/walsall ,WC151-385,30.06.2023,ADULT SOCIAL CARE,ACEPAY LTD (COTTAGE NUR HOME),06/06/2023,"2,440.40",6541-Residential EMI,THIRD PARTY PAYMENTS,PRIVATE CONTRACTOR,REVENUE
Walsall Council,http://opendatacommunities.org/id/metropolitan-district-council/walsall ,WC151-386,30.06.2023,ADULT SOCIAL CARE,ACEPAY LTD (COTTAGE NUR HOME),06/06/2023,"2,850.67",6541-Nursing EMI,THIRD PARTY PAYMENTS,PRIVATE CONTRACTOR,REVENUE
Walsall Council,http://opendatacommunities.org/id/metropolitan-district-council/walsall ,WC151-387,30.06.2023,ADULT SOCIAL CARE,ACEPAY LTD (COTTAGE NUR HOME),06/06/2023,"2,440.40",6541-Residential EMI,THIRD PARTY PAYMENTS,PRIVATE CONTRACTOR,REVENUE
Walsall Council,http://opendatacommunities.org/id/metropolitan-district-council/walsall ,WC151-388,30.06.2023,ADULT SOCIAL CARE,ACEPAY LTD (COTTAGE NUR HOME),06/06/2023,"2,533.42",6541-Nursing,THIRD PARTY PAYMENTS,PRIVATE CONTRACTOR,REVENUE
Walsall Council,http://opendatacommunities.org/id/metropolitan-district-council/walsall ,WC151-389,30.06.2023,ADULT SOCIAL CARE,ACEPAY LTD (COTTAGE NUR HOME),06/06/2023,"1,728.13",6541-Nursing,THIRD PARTY PAYMENTS,PRIVATE CONTRACTOR,REVENUE
Walsall Council,http://opendatacommunities.org/id/metropolitan-district-council/walsall ,WC151-390,30.06.2023,ADULT SOCIAL CARE,ACEPAY LTD (COTTAGE NUR HOME),06/06/2023,"2,440.40",6541-Residential EMI,THIRD PARTY PAYMENTS,PRIVATE CONTRACTOR,REVENUE
Walsall Council,http://opendatacommunities.org/id/metropolitan-district-council/walsall ,WC151-391,30.06.2023,ADULT SOCIAL CARE,ACEPAY LTD (COTTAGE NUR HOME),06/06/2023,"2,850.67",6541-Nursing EMI,THIRD PARTY PAYMENTS,PRIVATE CONTRACTOR,REVENUE
Walsall Council,http://opendatacommunities.org/id/metropolitan-district-council/walsall ,WC151-392,30.06.2023,ADULT SOCIAL CARE,ACEPAY LTD (COTTAGE NUR HOME),06/06/2023,"2,533.42",6541-Nursing,THIRD PARTY PAYMENTS,PRIVATE CONTRACTOR,REVENUE
Walsall Council,http://opendatacommunities.org/id/metropolitan-district-council/walsall ,WC151-393,30.06.2023,ADULT SOCIAL CARE,ACEPAY LTD (COTTAGE NUR HOME),06/06/2023,"2,533.42",6541-Nursing,THIRD PARTY PAYMENTS,PRIVATE CONTRACTOR,REVENUE
Walsall Council,http://opendatacommunities.org/id/metropolitan-district-council/walsall ,WC151-394,30.06.2023,ADULT SOCIAL CARE,ACEPAY LTD (COTTAGE NUR HOME),06/06/2023,"2,533.42",6541-Nursing,THIRD PARTY PAYMENTS,PRIVATE CONTRACTOR,REVENUE
Walsall Council,http://opendatacommunities.org/id/metropolitan-district-council/walsall ,WC151-395,30.06.2023,ADULT SOCIAL CARE,ACEPAY LTD (COTTAGE NUR HOME),06/06/2023,"2,533.42",6541-Nursing,THIRD PARTY PAYMENTS,PRIVATE CONTRACTOR,REVENUE
Walsall Council,http://opendatacommunities.org/id/metropolitan-district-council/walsall ,WC151-396,30.06.2023,ADULT SOCIAL CARE,ACEPAY LTD (COTTAGE NUR HOME),06/06/2023,"2,533.42",6541-Nursing,THIRD PARTY PAYMENTS,PRIVATE CONTRACTOR,REVENUE
Walsall Council,http://opendatacommunities.org/id/metropolitan-district-council/walsall ,WC151-397,30.06.2023,ADULT SOCIAL CARE,ACEPAY LTD (COTTAGE NUR HOME),06/06/2023,"2,533.42",6541-Nursing,THIRD PARTY PAYMENTS,PRIVATE CONTRACTOR,REVENUE
Walsall Council,http://opendatacommunities.org/id/metropolitan-district-council/walsall ,WC151-398,30.06.2023,ADULT SOCIAL CARE,ACHIEVE TOGETHER LIMITED,06/06/2023,"5,506.08",6541-Residential,THIRD PARTY PAYMENTS,PRIVATE CONTRACTOR,REVENUE
Walsall Council,http://opendatacommunities.org/id/metropolitan-district-council/walsall ,WC151-399,30.06.2023,ADULT SOCIAL CARE,ACHIEVE TOGETHER LIMITED,06/06/2023,"9,178.80",6541-Residential,THIRD PARTY PAYMENTS,PRIVATE CONTRACTOR,REVENUE
Walsall Council,http://opendatacommunities.org/id/metropolitan-district-council/walsall ,WC151-400,30.06.2023,ADULT SOCIAL CARE,ACHIEVE TOGETHER LIMITED,06/06/2023,"6,572.72",6541-Residential,THIRD PARTY PAYMENTS,PRIVATE CONTRACTOR,REVENUE
Walsall Council,http://opendatacommunities.org/id/metropolitan-district-council/walsall ,WC151-401,30.06.2023,ADULT SOCIAL CARE,ACHIEVE TOGETHER LIMITED,06/06/2023,"3,852.80",6541-Residential,THIRD PARTY PAYMENTS,PRIVATE CONTRACTOR,REVENUE
Walsall Council,http://opendatacommunities.org/id/metropolitan-district-council/walsall ,WC151-402,30.06.2023,ADULT SOCIAL CARE,ACHIEVE TOGETHER LIMITED,06/06/2023,"4,920.72",6541-Residential,THIRD PARTY PAYMENTS,PRIVATE CONTRACTOR,REVENUE
Walsall Council,http://opendatacommunities.org/id/metropolitan-district-council/walsall ,WC151-403,30.06.2023,"ECONOMY, ENVIRONMENT & COMMUNITIES",ACOEM UK LTD FORMERLY AIR MONITORS LIMITED,06/06/2023,435.00,6411-Repair & Maintenance of Furniture & Equipment,SUPPLIES & SERVICES,EQUIPMENT FURNITURE & MATERIALS,REVENUE
Walsall Council,http://opendatacommunities.org/id/metropolitan-district-council/walsall ,WC151-404,30.06.2023,CHILDRENS,ACORN CARE & EDUCATION LTD (SALES),20/06/2023,"6,389.17",1220-Professional Fees & Services,SUPPLIES & SERVICES,SERVICES,REVENUE
Walsall Council,http://opendatacommunities.org/id/metropolitan-district-council/walsall ,WC151-405,30.06.2023,CHILDRENS,ACORN CARE & EDUCATION LTD (SALES),08/06/2023,"-2,884.58",1220-Top Up Funding -Grants to Schools,SUPPLIES & SERVICES,GRANTS (EXP) & SUBSCRIPTIONS,REVENUE
Walsall Council,http://opendatacommunities.org/id/metropolitan-district-council/walsall ,WC151-406,30.06.2023,CHILDRENS,ACORN CARE & EDUCATION LTD (SALES),08/06/2023,"2,884.58",1220-Top Up Funding -Grants to Schools,SUPPLIES & SERVICES,GRANTS (EXP) & SUBSCRIPTIONS,REVENUE
Walsall Council,http://opendatacommunities.org/id/metropolitan-district-council/walsall ,WC151-407,30.06.2023,CHILDRENS,ACORN CARE & EDUCATION LTD (SALES),08/06/2023,"-2,884.58",1220-Top Up Funding -Grants to Schools,SUPPLIES & SERVICES,GRANTS (EXP) & SUBSCRIPTIONS,REVENUE
Walsall Council,http://opendatacommunities.org/id/metropolitan-district-council/walsall ,WC151-408,30.06.2023,CHILDRENS,ACORN CARE & EDUCATION LTD (SALES),08/06/2023,"2,884.58",1220-Top Up Funding -Grants to Schools,SUPPLIES & SERVICES,GRANTS (EXP) & SUBSCRIPTIONS,REVENUE
Walsall Council,http://opendatacommunities.org/id/metropolitan-district-council/walsall ,WC151-409,30.06.2023,CHILDRENS,ACORN CARE & EDUCATION LTD (SALES),21/06/2023,"-12,641.95",1220-Professional Fees & Services,SUPPLIES & SERVICES,SERVICES,REVENUE
Walsall Council,http://opendatacommunities.org/id/metropolitan-district-council/walsall ,WC151-410,30.06.2023,CHILDRENS,ACORN CARE & EDUCATION LTD (SALES),21/06/2023,"-15,366.25",1220-Top Up Funding -Grants to Schools,SUPPLIES & SERVICES,GRANTS (EXP) & SUBSCRIPTIONS,REVENUE
Walsall Council,http://opendatacommunities.org/id/metropolitan-district-council/walsall ,WC151-411,30.06.2023,CHILDRENS,ACORN FOSTERING SERVICES LTD,13/06/2023,"3,340.00",6223-Independent Foster Care-Oth Agency Provision,THIRD PARTY PAYMENTS,PRIVATE CONTRACTOR,REVENUE
Walsall Council,http://opendatacommunities.org/id/metropolitan-district-council/walsall ,WC151-412,30.06.2023,CHILDRENS,ACORN RESIDENTIAL CARE LTD T/A ADECYN HOMES,13/06/2023,"26,796.00",6223-External Residential Care-Oth Agency Provision,THIRD PARTY PAYMENTS,PRIVATE CONTRACTOR,REVENUE
Walsall Council,http://opendatacommunities.org/id/metropolitan-district-council/walsall ,WC151-413,30.06.2023,CHILDRENS,ACORNS CHILDRENS HOSPICE TRUST,26/06/2023,"1,950.00",6220-Professional Fees & Services,SUPPLIES & SERVICES,SERVICES,REVENUE
Walsall Council,http://opendatacommunities.org/id/metropolitan-district-council/walsall ,WC151-414,30.06.2023,CHILDRENS,ACTIVE CARE SOLUTIONS LTD,13/06/2023,"3,514.80",6223-Independent Foster Care-Oth Agency Provision,THIRD PARTY PAYMENTS,PRIVATE CONTRACTOR,REVENUE
Walsall Council,http://opendatacommunities.org/id/metropolitan-district-council/walsall ,WC151-415,30.06.2023,CHILDRENS,ACTIVE CARE SOLUTIONS LTD,13/06/2023,"4,770.08",6223-Independent Foster Care-Oth Agency Provision,THIRD PARTY PAYMENTS,PRIVATE CONTRACTOR,REVENUE
Walsall Council,http://opendatacommunities.org/id/metropolitan-district-council/walsall ,WC151-416,30.06.2023,CHILDRENS,ACTIVE CARE SOLUTIONS LTD,13/06/2023,"8,175.42",6223-Independent Foster Care-Oth Agency Provision,THIRD PARTY PAYMENTS,PRIVATE CONTRACTOR,REVENUE
Walsall Council,http://opendatacommunities.org/id/metropolitan-district-council/walsall ,WC151-417,30.06.2023,ADULT SOCIAL CARE,REDACTED,07/06/2023,957.90,6541-Direct Payment,THIRD PARTY PAYMENTS,PRIVATE CONTRACTOR,REVENUE
Walsall Council,http://opendatacommunities.org/id/metropolitan-district-council/walsall ,WC151-418,30.06.2023,CHILDRENS,REDACTED,01/06/2023,350.96,6223-Residents Orders,TRANSFER PAYMENTS,CHILDREN SOCIAL SERVICES CLIENT,REVENUE
Walsall Council,http://opendatacommunities.org/id/metropolitan-district-council/walsall ,WC151-419,30.06.2023,CHILDRENS,REDACTED,28/06/2023,350.96,6223-Residents Orders,TRANSFER PAYMENTS,CHILDREN SOCIAL SERVICES CLIENT,REVENUE
Walsall Council,http://opendatacommunities.org/id/metropolitan-district-council/walsall ,WC151-420,30.06.2023,ADULT SOCIAL CARE,REDACTED,07/06/2023,"3,226.62",6541-Direct Payment,THIRD PARTY PAYMENTS,PRIVATE CONTRACTOR,REVENUE
Walsall Council,http://opendatacommunities.org/id/metropolitan-district-council/walsall ,WC151-421,30.06.2023,ADULT SOCIAL CARE,ADVANCE HEALTH CARE (UK) LTD,01/06/2023,"2,409.76",6541-Domiciliary Care,THIRD PARTY PAYMENTS,PRIVATE CONTRACTOR,REVENUE
Walsall Council,http://opendatacommunities.org/id/metropolitan-district-council/walsall ,WC151-422,30.06.2023,ADULT SOCIAL CARE,ADVANCE HEALTH CARE (UK) LTD,01/06/2023,358.52,6541-Domiciliary Care,THIRD PARTY PAYMENTS,PRIVATE CONTRACTOR,REVENUE
Walsall Council,http://opendatacommunities.org/id/metropolitan-district-council/walsall ,WC151-423,30.06.2023,ADULT SOCIAL CARE,ADVANCE HEALTH CARE (UK) LTD,28/06/2023,664.07,6541-Domiciliary Care,THIRD PARTY PAYMENTS,PRIVATE CONTRACTOR,REVENUE
Walsall Council,http://opendatacommunities.org/id/metropolitan-district-council/walsall ,WC151-424,30.06.2023,ADULT SOCIAL CARE,ADVANCE HEALTH CARE (UK) LTD,01/06/2023,"1,110.04",6541-Domiciliary Care,THIRD PARTY PAYMENTS,PRIVATE CONTRACTOR,REVENUE
Walsall Council,http://opendatacommunities.org/id/metropolitan-district-council/walsall ,WC151-425,30.06.2023,ADULT SOCIAL CARE,ADVANCE HEALTH CARE (UK) LTD,01/06/2023,980.84,6541-Domiciliary Care,THIRD PARTY PAYMENTS,PRIVATE CONTRACTOR,REVENUE
Walsall Council,http://opendatacommunities.org/id/metropolitan-district-council/walsall ,WC151-426,30.06.2023,ADULT SOCIAL CARE,ADVANCE HEALTH CARE (UK) LTD,01/06/2023,"1,093.16",6541-Domiciliary Care,THIRD PARTY PAYMENTS,PRIVATE CONTRACTOR,REVENUE
Walsall Council,http://opendatacommunities.org/id/metropolitan-district-council/walsall ,WC151-427,30.06.2023,ADULT SOCIAL CARE,ADVANCE HEALTH CARE (UK) LTD,01/06/2023,"1,059.52",6541-Domiciliary Care,THIRD PARTY PAYMENTS,PRIVATE CONTRACTOR,REVENUE
Walsall Council,http://opendatacommunities.org/id/metropolitan-district-council/walsall ,WC151-428,30.06.2023,ADULT SOCIAL CARE,ADVANCE HEALTH CARE (UK) LTD,01/06/2023,"1,059.52",6541-Domiciliary Care,THIRD PARTY PAYMENTS,PRIVATE CONTRACTOR,REVENUE
Walsall Council,http://opendatacommunities.org/id/metropolitan-district-council/walsall ,WC151-429,30.06.2023,ADULT SOCIAL CARE,ADVANCE HEALTH CARE (UK) LTD,01/06/2023,784.56,6541-Domiciliary Care,THIRD PARTY PAYMENTS,PRIVATE CONTRACTOR,REVENUE
Walsall Council,http://opendatacommunities.org/id/metropolitan-district-council/walsall ,WC151-430,30.06.2023,ADULT SOCIAL CARE,ADVANCE HEALTH CARE (UK) LTD,01/06/2023,252.28,6541-Domiciliary Care,THIRD PARTY PAYMENTS,PRIVATE CONTRACTOR,REVENUE
Walsall Council,http://opendatacommunities.org/id/metropolitan-district-council/walsall ,WC151-431,30.06.2023,ADULT SOCIAL CARE,ADVANCE HEALTH CARE (UK) LTD,01/06/2023,921.86,6541-Domiciliary Care,THIRD PARTY PAYMENTS,PRIVATE CONTRACTOR,REVENUE
Walsall Council,http://opendatacommunities.org/id/metropolitan-district-council/walsall ,WC151-432,30.06.2023,ADULT SOCIAL CARE,ADVANCE HEALTH CARE (UK) LTD,01/06/2023,"1,126.76",6541-Domiciliary Care,THIRD PARTY PAYMENTS,PRIVATE CONTRACTOR,REVENUE
Walsall Council,http://opendatacommunities.org/id/metropolitan-district-council/walsall ,WC151-433,30.06.2023,ADULT SOCIAL CARE,ADVANCE HEALTH CARE (UK) LTD,01/06/2023,509.88,6541-Domiciliary Care,THIRD PARTY PAYMENTS,PRIVATE CONTRACTOR,REVENUE
Walsall Council,http://opendatacommunities.org/id/metropolitan-district-council/walsall ,WC151-434,30.06.2023,ADULT SOCIAL CARE,ADVANCE HEALTH CARE (UK) LTD,01/06/2023,515.68,6541-Domiciliary Care,THIRD PARTY PAYMENTS,PRIVATE CONTRACTOR,REVENUE
Walsall Council,http://opendatacommunities.org/id/metropolitan-district-council/walsall ,WC151-435,30.06.2023,ADULT SOCIAL CARE,ADVANCE HEALTH CARE (UK) LTD,01/06/2023,"1,759.56",6541-Domiciliary Care,THIRD PARTY PAYMENTS,PRIVATE CONTRACTOR,REVENUE
Walsall Council,http://opendatacommunities.org/id/metropolitan-district-council/walsall ,WC151-436,30.06.2023,ADULT SOCIAL CARE,ADVANCE HEALTH CARE (UK) LTD,01/06/2023,733.92,6541-Domiciliary Care,THIRD PARTY PAYMENTS,PRIVATE CONTRACTOR,REVENUE
Walsall Council,http://opendatacommunities.org/id/metropolitan-district-council/walsall ,WC151-437,30.06.2023,ADULT SOCIAL CARE,ADVANCE HEALTH CARE (UK) LTD,28/06/2023,358.52,6541-Domiciliary Care,THIRD PARTY PAYMENTS,PRIVATE CONTRACTOR,REVENUE
Walsall Council,http://opendatacommunities.org/id/metropolitan-district-council/walsall ,WC151-438,30.06.2023,ADULT SOCIAL CARE,ADVANCE HEALTH CARE (UK) LTD,28/06/2023,"1,020.24",6541-Domiciliary Care,THIRD PARTY PAYMENTS,PRIVATE CONTRACTOR,REVENUE
Walsall Council,http://opendatacommunities.org/id/metropolitan-district-council/walsall ,WC151-439,30.06.2023,ADULT SOCIAL CARE,ADVANCE HEALTH CARE (UK) LTD,28/06/2023,"1,110.04",6541-Domiciliary Care,THIRD PARTY PAYMENTS,PRIVATE CONTRACTOR,REVENUE
Walsall Council,http://opendatacommunities.org/id/metropolitan-district-council/walsall ,WC151-440,30.06.2023,ADULT SOCIAL CARE,ADVANCE HEALTH CARE (UK) LTD,28/06/2023,980.84,6541-Domiciliary Care,THIRD PARTY PAYMENTS,PRIVATE CONTRACTOR,REVENUE
Walsall Council,http://opendatacommunities.org/id/metropolitan-district-council/walsall ,WC151-441,30.06.2023,ADULT SOCIAL CARE,ADVANCE HEALTH CARE (UK) LTD,28/06/2023,"1,093.16",6541-Domiciliary Care,THIRD PARTY PAYMENTS,PRIVATE CONTRACTOR,REVENUE
Walsall Council,http://opendatacommunities.org/id/metropolitan-district-council/walsall ,WC151-442,30.06.2023,ADULT SOCIAL CARE,ADVANCE HEALTH CARE (UK) LTD,28/06/2023,"1,059.52",6541-Domiciliary Care,THIRD PARTY PAYMENTS,PRIVATE CONTRACTOR,REVENUE
Walsall Council,http://opendatacommunities.org/id/metropolitan-district-council/walsall ,WC151-443,30.06.2023,ADULT SOCIAL CARE,ADVANCE HEALTH CARE (UK) LTD,28/06/2023,"1,059.52",6541-Domiciliary Care,THIRD PARTY PAYMENTS,PRIVATE CONTRACTOR,REVENUE
Walsall Council,http://opendatacommunities.org/id/metropolitan-district-council/walsall ,WC151-444,30.06.2023,ADULT SOCIAL CARE,ADVANCE HEALTH CARE (UK) LTD,28/06/2023,784.56,6541-Domiciliary Care,THIRD PARTY PAYMENTS,PRIVATE CONTRACTOR,REVENUE
Walsall Council,http://opendatacommunities.org/id/metropolitan-district-council/walsall ,WC151-445,30.06.2023,ADULT SOCIAL CARE,ADVANCE HEALTH CARE (UK) LTD,28/06/2023,252.28,6541-Domiciliary Care,THIRD PARTY PAYMENTS,PRIVATE CONTRACTOR,REVENUE
Walsall Council,http://opendatacommunities.org/id/metropolitan-district-council/walsall ,WC151-446,30.06.2023,ADULT SOCIAL CARE,ADVANCE HEALTH CARE (UK) LTD,28/06/2023,"1,126.76",6541-Domiciliary Care,THIRD PARTY PAYMENTS,PRIVATE CONTRACTOR,REVENUE
Walsall Council,http://opendatacommunities.org/id/metropolitan-district-council/walsall ,WC151-447,30.06.2023,ADULT SOCIAL CARE,ADVANCE HEALTH CARE (UK) LTD,28/06/2023,509.88,6541-Domiciliary Care,THIRD PARTY PAYMENTS,PRIVATE CONTRACTOR,REVENUE
Walsall Council,http://opendatacommunities.org/id/metropolitan-district-council/walsall ,WC151-448,30.06.2023,ADULT SOCIAL CARE,ADVANCE HEALTH CARE (UK) LTD,28/06/2023,491.73,6541-Domiciliary Care,THIRD PARTY PAYMENTS,PRIVATE CONTRACTOR,REVENUE
Walsall Council,http://opendatacommunities.org/id/metropolitan-district-council/walsall ,WC151-449,30.06.2023,ADULT SOCIAL CARE,ADVANCE HEALTH CARE (UK) LTD,28/06/2023,733.92,6541-Domiciliary Care,THIRD PARTY PAYMENTS,PRIVATE CONTRACTOR,REVENUE
Walsall Council,http://opendatacommunities.org/id/metropolitan-district-council/walsall ,WC151-450,30.06.2023,ADULT SOCIAL CARE,ADVANCE HEALTH CARE (UK) LTD,28/06/2023,"1,786.98",6541-Domiciliary Care,THIRD PARTY PAYMENTS,PRIVATE CONTRACTOR,REVENUE
Walsall Council,http://opendatacommunities.org/id/metropolitan-district-council/walsall ,WC151-451,30.06.2023,ADULT SOCIAL CARE,ADVANCE HEALTH CARE (UK) LTD,01/06/2023,748.74,6554-Professional Services-Priv Contractor & Other Agencies,THIRD PARTY PAYMENTS,PRIVATE CONTRACTOR,REVENUE
Walsall Council,http://opendatacommunities.org/id/metropolitan-district-council/walsall ,WC151-452,30.06.2023,ADULT SOCIAL CARE,ADVANCE HEALTH CARE (UK) LTD,01/06/2023,"2,342.52",6554-Professional Services-Priv Contractor & Other Agencies,THIRD PARTY PAYMENTS,PRIVATE CONTRACTOR,REVENUE
Walsall Council,http://opendatacommunities.org/id/metropolitan-district-council/walsall ,WC151-453,30.06.2023,ADULT SOCIAL CARE,ADVANCE HEALTH CARE (UK) LTD,01/06/2023,295.08,6554-Professional Services-Priv Contractor & Other Agencies,THIRD PARTY PAYMENTS,PRIVATE CONTRACTOR,REVENUE
Walsall Council,http://opendatacommunities.org/id/metropolitan-district-council/walsall ,WC151-454,30.06.2023,ADULT SOCIAL CARE,ADVANCE HEALTH CARE (UK) LTD,01/06/2023,317.52,6554-Professional Services-Priv Contractor & Other Agencies,THIRD PARTY PAYMENTS,PRIVATE CONTRACTOR,REVENUE
Walsall Council,http://opendatacommunities.org/id/metropolitan-district-council/walsall ,WC151-455,30.06.2023,ADULT SOCIAL CARE,ADVANCE HEALTH CARE (UK) LTD,01/06/2023,"1,415.52",6554-Professional Services-Priv Contractor & Other Agencies,THIRD PARTY PAYMENTS,PRIVATE CONTRACTOR,REVENUE
Walsall Council,http://opendatacommunities.org/id/metropolitan-district-council/walsall ,WC151-456,30.06.2023,ADULT SOCIAL CARE,ADVANCE HEALTH CARE (UK) LTD,01/06/2023,"2,099.52",6554-Professional Services-Priv Contractor & Other Agencies,THIRD PARTY PAYMENTS,PRIVATE CONTRACTOR,REVENUE
Walsall Council,http://opendatacommunities.org/id/metropolitan-district-council/walsall ,WC151-457,30.06.2023,ADULT SOCIAL CARE,ADVANCE HEALTH CARE (UK) LTD,01/06/2023,523.26,6554-Professional Services-Priv Contractor & Other Agencies,THIRD PARTY PAYMENTS,PRIVATE CONTRACTOR,REVENUE
Walsall Council,http://opendatacommunities.org/id/metropolitan-district-council/walsall ,WC151-458,30.06.2023,ADULT SOCIAL CARE,ADVANCE HEALTH CARE (UK) LTD,01/06/2023,"2,321.36",6554-Professional Services-Priv Contractor & Other Agencies,THIRD PARTY PAYMENTS,PRIVATE CONTRACTOR,REVENUE
Walsall Council,http://opendatacommunities.org/id/metropolitan-district-council/walsall ,WC151-459,30.06.2023,ADULT SOCIAL CARE,ADVANCE HEALTH CARE (UK) LTD,01/06/2023,855.08,6554-Professional Services-Priv Contractor & Other Agencies,THIRD PARTY PAYMENTS,PRIVATE CONTRACTOR,REVENUE
Walsall Council,http://opendatacommunities.org/id/metropolitan-district-council/walsall ,WC151-460,30.06.2023,ADULT SOCIAL CARE,ADVANCE HEALTH CARE (UK) LTD,01/06/2023,"1,620.00",6554-Professional Services-Priv Contractor & Other Agencies,THIRD PARTY PAYMENTS,PRIVATE CONTRACTOR,REVENUE
Walsall Council,http://opendatacommunities.org/id/metropolitan-district-council/walsall ,WC151-461,30.06.2023,ADULT SOCIAL CARE,ADVANCE HEALTH CARE (UK) LTD,01/06/2023,408.00,6554-Professional Services-Priv Contractor & Other Agencies,THIRD PARTY PAYMENTS,PRIVATE CONTRACTOR,REVENUE
Walsall Council,http://opendatacommunities.org/id/metropolitan-district-council/walsall ,WC151-462,30.06.2023,ADULT SOCIAL CARE,ADVANCE HEALTH CARE (UK) LTD,01/06/2023,"1,656.00",6554-Professional Services-Priv Contractor & Other Agencies,THIRD PARTY PAYMENTS,PRIVATE CONTRACTOR,REVENUE
Walsall Council,http://opendatacommunities.org/id/metropolitan-district-council/walsall ,WC151-463,30.06.2023,ADULT SOCIAL CARE,ADVANCE HEALTH CARE (UK) LTD,01/06/2023,486.00,6554-Professional Services-Priv Contractor & Other Agencies,THIRD PARTY PAYMENTS,PRIVATE CONTRACTOR,REVENUE
Walsall Council,http://opendatacommunities.org/id/metropolitan-district-council/walsall ,WC151-464,30.06.2023,ADULT SOCIAL CARE,ADVANCE HEALTH CARE (UK) LTD,01/06/2023,482.76,6554-Professional Services-Priv Contractor & Other Agencies,THIRD PARTY PAYMENTS,PRIVATE CONTRACTOR,REVENUE
Walsall Council,http://opendatacommunities.org/id/metropolitan-district-council/walsall ,WC151-465,30.06.2023,ADULT SOCIAL CARE,ADVANCE HEALTH CARE (UK) LTD,01/06/2023,"1,044.00",6554-Professional Services-Priv Contractor & Other Agencies,THIRD PARTY PAYMENTS,PRIVATE CONTRACTOR,REVENUE
Walsall Council,http://opendatacommunities.org/id/metropolitan-district-council/walsall ,WC151-466,30.06.2023,ADULT SOCIAL CARE,ADVANCE HEALTH CARE (UK) LTD,01/06/2023,"1,512.00",6554-Professional Services-Priv Contractor & Other Agencies,THIRD PARTY PAYMENTS,PRIVATE CONTRACTOR,REVENUE
Walsall Council,http://opendatacommunities.org/id/metropolitan-district-council/walsall ,WC151-467,30.06.2023,ADULT SOCIAL CARE,ADVANCE HEALTH CARE (UK) LTD,01/06/2023,666.00,6554-Professional Services-Priv Contractor & Other Agencies,THIRD PARTY PAYMENTS,PRIVATE CONTRACTOR,REVENUE
Walsall Council,http://opendatacommunities.org/id/metropolitan-district-council/walsall ,WC151-468,30.06.2023,ADULT SOCIAL CARE,ADVANCE HEALTH CARE (UK) LTD,01/06/2023,648.00,6554-Professional Services-Priv Contractor & Other Agencies,THIRD PARTY PAYMENTS,PRIVATE CONTRACTOR,REVENUE
Walsall Council,http://opendatacommunities.org/id/metropolitan-district-council/walsall ,WC151-469,30.06.2023,ADULT SOCIAL CARE,ADVANCE HEALTH CARE (UK) LTD,01/06/2023,"2,321.36",6554-Professional Services-Priv Contractor & Other Agencies,THIRD PARTY PAYMENTS,PRIVATE CONTRACTOR,REVENUE
Walsall Council,http://opendatacommunities.org/id/metropolitan-district-council/walsall ,WC151-470,30.06.2023,ADULT SOCIAL CARE,ADVANCE HEALTH CARE (UK) LTD,01/06/2023,"1,620.00",6554-Professional Services-Priv Contractor & Other Agencies,THIRD PARTY PAYMENTS,PRIVATE CONTRACTOR,REVENUE
Walsall Council,http://opendatacommunities.org/id/metropolitan-district-council/walsall ,WC151-471,30.06.2023,ADULT SOCIAL CARE,ADVANCE HEALTH CARE (UK) LTD,01/06/2023,891.00,6554-Professional Services-Priv Contractor & Other Agencies,THIRD PARTY PAYMENTS,PRIVATE CONTRACTOR,REVENUE
Walsall Council,http://opendatacommunities.org/id/metropolitan-district-council/walsall ,WC151-472,30.06.2023,ADULT SOCIAL CARE,ADVANCE HEALTH CARE (UK) LTD,06/06/2023,"1,577.56",6541-Domiciliary Care,THIRD PARTY PAYMENTS,PRIVATE CONTRACTOR,REVENUE
Walsall Council,http://opendatacommunities.org/id/metropolitan-district-council/walsall ,WC151-473,30.06.2023,ADULT SOCIAL CARE,ADVANCE HEALTH CARE (UK) LTD,06/06/2023,723.48,6541-Domiciliary Care,THIRD PARTY PAYMENTS,PRIVATE CONTRACTOR,REVENUE
Walsall Council,http://opendatacommunities.org/id/metropolitan-district-council/walsall ,WC151-474,30.06.2023,ADULT SOCIAL CARE,ADVANCE HEALTH CARE (UK) LTD,06/06/2023,465.66,6541-Domiciliary Care,THIRD PARTY PAYMENTS,PRIVATE CONTRACTOR,REVENUE
Walsall Council,http://opendatacommunities.org/id/metropolitan-district-council/walsall ,WC151-475,30.06.2023,ADULT SOCIAL CARE,ADVANCE HEALTH CARE (UK) LTD,06/06/2023,931.32,6541-Domiciliary Care,THIRD PARTY PAYMENTS,PRIVATE CONTRACTOR,REVENUE
Walsall Council,http://opendatacommunities.org/id/metropolitan-district-council/walsall ,WC151-476,30.06.2023,ADULT SOCIAL CARE,ADVANCE HEALTH CARE (UK) LTD,06/06/2023,931.32,6541-Domiciliary Care,THIRD PARTY PAYMENTS,PRIVATE CONTRACTOR,REVENUE
Walsall Council,http://opendatacommunities.org/id/metropolitan-district-council/walsall ,WC151-477,30.06.2023,ADULT SOCIAL CARE,ADVANCE HEALTH CARE (UK) LTD,06/06/2023,280.60,6541-Domiciliary Care,THIRD PARTY PAYMENTS,PRIVATE CONTRACTOR,REVENUE
Walsall Council,http://opendatacommunities.org/id/metropolitan-district-council/walsall ,WC151-478,30.06.2023,ADULT SOCIAL CARE,ADVANCE HEALTH CARE (UK) LTD,06/06/2023,465.66,6541-Domiciliary Care,THIRD PARTY PAYMENTS,PRIVATE CONTRACTOR,REVENUE
Walsall Council,http://opendatacommunities.org/id/metropolitan-district-council/walsall ,WC151-479,30.06.2023,ADULT SOCIAL CARE,ADVANCE HEALTH CARE (UK) LTD,06/06/2023,689.28,6541-Domiciliary Care,THIRD PARTY PAYMENTS,PRIVATE CONTRACTOR,REVENUE
Walsall Council,http://opendatacommunities.org/id/metropolitan-district-council/walsall ,WC151-480,30.06.2023,ADULT SOCIAL CARE,ADVANCE HEALTH CARE (UK) LTD,06/06/2023,724.36,6541-Domiciliary Care,THIRD PARTY PAYMENTS,PRIVATE CONTRACTOR,REVENUE
Walsall Council,http://opendatacommunities.org/id/metropolitan-district-council/walsall ,WC151-481,30.06.2023,ADULT SOCIAL CARE,ADVANCE HEALTH CARE (UK) LTD,06/06/2023,341.32,6541-Domiciliary Care,THIRD PARTY PAYMENTS,PRIVATE CONTRACTOR,REVENUE
Walsall Council,http://opendatacommunities.org/id/metropolitan-district-council/walsall ,WC151-482,30.06.2023,ADULT SOCIAL CARE,ADVANCE HEALTH CARE (UK) LTD,06/06/2023,920.48,6541-Domiciliary Care,THIRD PARTY PAYMENTS,PRIVATE CONTRACTOR,REVENUE
Walsall Council,http://opendatacommunities.org/id/metropolitan-district-council/walsall ,WC151-483,30.06.2023,ADULT SOCIAL CARE,ADVANCE HEALTH CARE (UK) LTD,06/06/2023,324.90,6541-Domiciliary Care,THIRD PARTY PAYMENTS,PRIVATE CONTRACTOR,REVENUE
Walsall Council,http://opendatacommunities.org/id/metropolitan-district-council/walsall ,WC151-484,30.06.2023,ADULT SOCIAL CARE,ADVANCE HEALTH CARE (UK) LTD,06/06/2023,"-1,389.76",6541-Domiciliary Care,THIRD PARTY PAYMENTS,PRIVATE CONTRACTOR,REVENUE
Walsall Council,http://opendatacommunities.org/id/metropolitan-district-council/walsall ,WC151-485,30.06.2023,ADULT SOCIAL CARE,ADVANCE HEALTH CARE (UK) LTD,06/06/2023,301.50,6541-Domiciliary Care,THIRD PARTY PAYMENTS,PRIVATE CONTRACTOR,REVENUE
Walsall Council,http://opendatacommunities.org/id/metropolitan-district-council/walsall ,WC151-486,30.06.2023,ADULT SOCIAL CARE,ADVANCE HEALTH CARE (UK) LTD,06/06/2023,620.00,6541-Domiciliary Care,THIRD PARTY PAYMENTS,PRIVATE CONTRACTOR,REVENUE
Walsall Council,http://opendatacommunities.org/id/metropolitan-district-council/walsall ,WC151-487,30.06.2023,ADULT SOCIAL CARE,ADVANCE HEALTH CARE (UK) LTD,06/06/2023,630.00,6541-Domiciliary Care,THIRD PARTY PAYMENTS,PRIVATE CONTRACTOR,REVENUE
Walsall Council,http://opendatacommunities.org/id/metropolitan-district-council/walsall ,WC151-488,30.06.2023,ADULT SOCIAL CARE,ADVANCE HEALTH CARE (UK) LTD,06/06/2023,283.50,6541-Domiciliary Care,THIRD PARTY PAYMENTS,PRIVATE CONTRACTOR,REVENUE
Walsall Council,http://opendatacommunities.org/id/metropolitan-district-council/walsall ,WC151-489,30.06.2023,ADULT SOCIAL CARE,ADVANCE HEALTH CARE (UK) LTD,06/06/2023,620.00,6541-Domiciliary Care,THIRD PARTY PAYMENTS,PRIVATE CONTRACTOR,REVENUE
Walsall Council,http://opendatacommunities.org/id/metropolitan-district-council/walsall ,WC151-490,30.06.2023,ADULT SOCIAL CARE,ADVANCE HEALTH CARE (UK) LTD,06/06/2023,324.96,6541-Domiciliary Care,THIRD PARTY PAYMENTS,PRIVATE CONTRACTOR,REVENUE
Walsall Council,http://opendatacommunities.org/id/metropolitan-district-council/walsall ,WC151-491,30.06.2023,ADULT SOCIAL CARE,ADVANCE HEALTH CARE (UK) LTD,06/06/2023,567.00,6541-Domiciliary Care,THIRD PARTY PAYMENTS,PRIVATE CONTRACTOR,REVENUE
Walsall Council,http://opendatacommunities.org/id/metropolitan-district-council/walsall ,WC151-492,30.06.2023,ADULT SOCIAL CARE,ADVANCE HEALTH CARE (UK) LTD,06/06/2023,639.00,6541-Domiciliary Care,THIRD PARTY PAYMENTS,PRIVATE CONTRACTOR,REVENUE
Walsall Council,http://opendatacommunities.org/id/metropolitan-district-council/walsall ,WC151-493,30.06.2023,ADULT SOCIAL CARE,ADVANCE HEALTH CARE (UK) LTD,06/06/2023,486.00,6541-Domiciliary Care,THIRD PARTY PAYMENTS,PRIVATE CONTRACTOR,REVENUE
Walsall Council,http://opendatacommunities.org/id/metropolitan-district-council/walsall ,WC151-494,30.06.2023,ADULT SOCIAL CARE,ADVANCE HEALTH CARE (UK) LTD,06/06/2023,-288.00,6541-Domiciliary Care,THIRD PARTY PAYMENTS,PRIVATE CONTRACTOR,REVENUE
Walsall Council,http://opendatacommunities.org/id/metropolitan-district-council/walsall ,WC151-495,30.06.2023,ADULT SOCIAL CARE,ADVANCE HEALTH CARE (UK) LTD,06/06/2023,270.00,6541-Domiciliary Care,THIRD PARTY PAYMENTS,PRIVATE CONTRACTOR,REVENUE
Walsall Council,http://opendatacommunities.org/id/metropolitan-district-council/walsall ,WC151-496,30.06.2023,ADULT SOCIAL CARE,ADVANCE HEALTH CARE (UK) LTD,06/06/2023,"1,348.52",6541-Domiciliary Care,THIRD PARTY PAYMENTS,PRIVATE CONTRACTOR,REVENUE
Walsall Council,http://opendatacommunities.org/id/metropolitan-district-council/walsall ,WC151-497,30.06.2023,ADULT SOCIAL CARE,ADVANCE HEALTH CARE (UK) LTD,06/06/2023,827.84,6541-Domiciliary Care,THIRD PARTY PAYMENTS,PRIVATE CONTRACTOR,REVENUE
Walsall Council,http://opendatacommunities.org/id/metropolitan-district-council/walsall ,WC151-498,30.06.2023,ADULT SOCIAL CARE,ADVANCE HEALTH CARE (UK) LTD,06/06/2023,504.00,6541-Domiciliary Care,THIRD PARTY PAYMENTS,PRIVATE CONTRACTOR,REVENUE
Walsall Council,http://opendatacommunities.org/id/metropolitan-district-council/walsall ,WC151-499,30.06.2023,ADULT SOCIAL CARE,ADVANCE HEALTH CARE (UK) LTD,06/06/2023,931.32,6541-Domiciliary Care,THIRD PARTY PAYMENTS,PRIVATE CONTRACTOR,REVENUE
Walsall Council,http://opendatacommunities.org/id/metropolitan-district-council/walsall ,WC151-500,30.06.2023,ADULT SOCIAL CARE,ADVANCE HEALTH CARE (UK) LTD,06/06/2023,567.00,6541-Domiciliary Care,THIRD PARTY PAYMENTS,PRIVATE CONTRACTOR,REVENUE
Walsall Council,http://opendatacommunities.org/id/metropolitan-district-council/walsall ,WC151-501,30.06.2023,ADULT SOCIAL CARE,ADVANCE HEALTH CARE (UK) LTD,06/06/2023,"1,034.80",6541-Domiciliary Care,THIRD PARTY PAYMENTS,PRIVATE CONTRACTOR,REVENUE
Walsall Council,http://opendatacommunities.org/id/metropolitan-district-council/walsall ,WC151-502,30.06.2023,ADULT SOCIAL CARE,ADVANCE HEALTH CARE (UK) LTD,06/06/2023,332.22,6541-Domiciliary Care,THIRD PARTY PAYMENTS,PRIVATE CONTRACTOR,REVENUE
Walsall Council,http://opendatacommunities.org/id/metropolitan-district-council/walsall ,WC151-503,30.06.2023,ADULT SOCIAL CARE,ADVANCE HEALTH CARE (UK) LTD,06/06/2023,504.00,6541-Domiciliary Care,THIRD PARTY PAYMENTS,PRIVATE CONTRACTOR,REVENUE
Walsall Council,http://opendatacommunities.org/id/metropolitan-district-council/walsall ,WC151-504,30.06.2023,ADULT SOCIAL CARE,ADVANCE HEALTH CARE (UK) LTD,06/06/2023,252.00,6541-Domiciliary Care,THIRD PARTY PAYMENTS,PRIVATE CONTRACTOR,REVENUE
Walsall Council,http://opendatacommunities.org/id/metropolitan-district-council/walsall ,WC151-505,30.06.2023,ADULT SOCIAL CARE,ADVANCE HEALTH CARE (UK) LTD,06/06/2023,504.00,6541-Domiciliary Care,THIRD PARTY PAYMENTS,PRIVATE CONTRACTOR,REVENUE
Walsall Council,http://opendatacommunities.org/id/metropolitan-district-council/walsall ,WC151-506,30.06.2023,ADULT SOCIAL CARE,ADVANCE HEALTH CARE (UK) LTD,06/06/2023,441.00,6541-Domiciliary Care,THIRD PARTY PAYMENTS,PRIVATE CONTRACTOR,REVENUE
Walsall Council,http://opendatacommunities.org/id/metropolitan-district-council/walsall ,WC151-507,30.06.2023,ADULT SOCIAL CARE,ADVANCE HEALTH CARE (UK) LTD,06/06/2023,567.00,6541-Domiciliary Care,THIRD PARTY PAYMENTS,PRIVATE CONTRACTOR,REVENUE
Walsall Council,http://opendatacommunities.org/id/metropolitan-district-council/walsall ,WC151-508,30.06.2023,ADULT SOCIAL CARE,ADVANCE HEALTH CARE (UK) LTD,06/06/2023,441.00,6541-Domiciliary Care,THIRD PARTY PAYMENTS,PRIVATE CONTRACTOR,REVENUE
Walsall Council,http://opendatacommunities.org/id/metropolitan-district-council/walsall ,WC151-509,30.06.2023,ADULT SOCIAL CARE,ADVANCE HEALTH CARE (UK) LTD,06/06/2023,630.00,6541-Domiciliary Care,THIRD PARTY PAYMENTS,PRIVATE CONTRACTOR,REVENUE
Walsall Council,http://opendatacommunities.org/id/metropolitan-district-council/walsall ,WC151-510,30.06.2023,ADULT SOCIAL CARE,ADVANCE HEALTH CARE (UK) LTD,06/06/2023,441.00,6541-Domiciliary Care,THIRD PARTY PAYMENTS,PRIVATE CONTRACTOR,REVENUE
Walsall Council,http://opendatacommunities.org/id/metropolitan-district-council/walsall ,WC151-511,30.06.2023,ADULT SOCIAL CARE,ADVANCE HEALTH CARE (UK) LTD,06/06/2023,963.00,6541-Domiciliary Care,THIRD PARTY PAYMENTS,PRIVATE CONTRACTOR,REVENUE
Walsall Council,http://opendatacommunities.org/id/metropolitan-district-council/walsall ,WC151-512,30.06.2023,ADULT SOCIAL CARE,ADVANCE HEALTH CARE (UK) LTD,06/06/2023,441.00,6541-Domiciliary Care,THIRD PARTY PAYMENTS,PRIVATE CONTRACTOR,REVENUE
Walsall Council,http://opendatacommunities.org/id/metropolitan-district-council/walsall ,WC151-513,30.06.2023,ADULT SOCIAL CARE,ADVANCE HEALTH CARE (UK) LTD,06/06/2023,283.50,6541-Domiciliary Care,THIRD PARTY PAYMENTS,PRIVATE CONTRACTOR,REVENUE
Walsall Council,http://opendatacommunities.org/id/metropolitan-district-council/walsall ,WC151-514,30.06.2023,ADULT SOCIAL CARE,ADVANCE HEALTH CARE (UK) LTD,06/06/2023,567.00,6541-Domiciliary Care,THIRD PARTY PAYMENTS,PRIVATE CONTRACTOR,REVENUE
Walsall Council,http://opendatacommunities.org/id/metropolitan-district-council/walsall ,WC151-515,30.06.2023,ADULT SOCIAL CARE,ADVANCE HEALTH CARE (UK) LTD,06/06/2023,567.00,6541-Domiciliary Care,THIRD PARTY PAYMENTS,PRIVATE CONTRACTOR,REVENUE
Walsall Council,http://opendatacommunities.org/id/metropolitan-district-council/walsall ,WC151-516,30.06.2023,ADULT SOCIAL CARE,ADVANCE HEALTH CARE (UK) LTD,06/06/2023,378.00,6541-Domiciliary Care,THIRD PARTY PAYMENTS,PRIVATE CONTRACTOR,REVENUE
Walsall Council,http://opendatacommunities.org/id/metropolitan-district-council/walsall ,WC151-517,30.06.2023,ADULT SOCIAL CARE,ADVANCE HEALTH CARE (UK) LTD,06/06/2023,441.00,6541-Domiciliary Care,THIRD PARTY PAYMENTS,PRIVATE CONTRACTOR,REVENUE
Walsall Council,http://opendatacommunities.org/id/metropolitan-district-council/walsall ,WC151-518,30.06.2023,ADULT SOCIAL CARE,ADVANCE HEALTH CARE (UK) LTD,06/06/2023,558.00,6541-Domiciliary Care,THIRD PARTY PAYMENTS,PRIVATE CONTRACTOR,REVENUE
Walsall Council,http://opendatacommunities.org/id/metropolitan-district-council/walsall ,WC151-519,30.06.2023,ADULT SOCIAL CARE,ADVANCE HEALTH CARE (UK) LTD,06/06/2023,567.00,6541-Domiciliary Care,THIRD PARTY PAYMENTS,PRIVATE CONTRACTOR,REVENUE
Walsall Council,http://opendatacommunities.org/id/metropolitan-district-council/walsall ,WC151-520,30.06.2023,ADULT SOCIAL CARE,ADVANCE HEALTH CARE (UK) LTD,06/06/2023,567.00,6541-Domiciliary Care,THIRD PARTY PAYMENTS,PRIVATE CONTRACTOR,REVENUE
Walsall Council,http://opendatacommunities.org/id/metropolitan-district-council/walsall ,WC151-521,30.06.2023,ADULT SOCIAL CARE,ADVANCE HEALTH CARE (UK) LTD,06/06/2023,630.00,6541-Domiciliary Care,THIRD PARTY PAYMENTS,PRIVATE CONTRACTOR,REVENUE
Walsall Council,http://opendatacommunities.org/id/metropolitan-district-council/walsall ,WC151-522,30.06.2023,ADULT SOCIAL CARE,ADVANCE HEALTH CARE (UK) LTD,06/06/2023,301.50,6541-Domiciliary Care,THIRD PARTY PAYMENTS,PRIVATE CONTRACTOR,REVENUE
Walsall Council,http://opendatacommunities.org/id/metropolitan-district-council/walsall ,WC151-523,30.06.2023,ADULT SOCIAL CARE,ADVANCE HEALTH CARE (UK) LTD,06/06/2023,630.00,6541-Domiciliary Care,THIRD PARTY PAYMENTS,PRIVATE CONTRACTOR,REVENUE
Walsall Council,http://opendatacommunities.org/id/metropolitan-district-council/walsall ,WC151-524,30.06.2023,ADULT SOCIAL CARE,ADVANCE HEALTH CARE (UK) LTD,06/06/2023,283.50,6541-Domiciliary Care,THIRD PARTY PAYMENTS,PRIVATE CONTRACTOR,REVENUE
Walsall Council,http://opendatacommunities.org/id/metropolitan-district-council/walsall ,WC151-525,30.06.2023,ADULT SOCIAL CARE,ADVANCE HEALTH CARE (UK) LTD,06/06/2023,283.50,6541-Domiciliary Care,THIRD PARTY PAYMENTS,PRIVATE CONTRACTOR,REVENUE
Walsall Council,http://opendatacommunities.org/id/metropolitan-district-council/walsall ,WC151-526,30.06.2023,ADULT SOCIAL CARE,ADVANCE HEALTH CARE (UK) LTD,06/06/2023,420.00,6541-Domiciliary Care,THIRD PARTY PAYMENTS,PRIVATE CONTRACTOR,REVENUE
Walsall Council,http://opendatacommunities.org/id/metropolitan-district-council/walsall ,WC151-527,30.06.2023,ADULT SOCIAL CARE,ADVANCE HEALTH CARE (UK) LTD,06/06/2023,504.00,6541-Domiciliary Care,THIRD PARTY PAYMENTS,PRIVATE CONTRACTOR,REVENUE
Walsall Council,http://opendatacommunities.org/id/metropolitan-district-council/walsall ,WC151-528,30.06.2023,ADULT SOCIAL CARE,ADVANCE HEALTH CARE (UK) LTD,06/06/2023,252.00,6541-Domiciliary Care,THIRD PARTY PAYMENTS,PRIVATE CONTRACTOR,REVENUE
Walsall Council,http://opendatacommunities.org/id/metropolitan-district-council/walsall ,WC151-529,30.06.2023,ADULT SOCIAL CARE,ADVANCE HEALTH CARE (UK) LTD,06/06/2023,504.00,6541-Domiciliary Care,THIRD PARTY PAYMENTS,PRIVATE CONTRACTOR,REVENUE
Walsall Council,http://opendatacommunities.org/id/metropolitan-district-council/walsall ,WC151-530,30.06.2023,ADULT SOCIAL CARE,ADVANCE HEALTH CARE (UK) LTD,06/06/2023,441.00,6541-Domiciliary Care,THIRD PARTY PAYMENTS,PRIVATE CONTRACTOR,REVENUE
Walsall Council,http://opendatacommunities.org/id/metropolitan-district-council/walsall ,WC151-531,30.06.2023,ADULT SOCIAL CARE,ADVANCE HEALTH CARE (UK) LTD,06/06/2023,567.00,6541-Domiciliary Care,THIRD PARTY PAYMENTS,PRIVATE CONTRACTOR,REVENUE
Walsall Council,http://opendatacommunities.org/id/metropolitan-district-council/walsall ,WC151-532,30.06.2023,ADULT SOCIAL CARE,ADVANCE HEALTH CARE (UK) LTD,06/06/2023,567.00,6541-Domiciliary Care,THIRD PARTY PAYMENTS,PRIVATE CONTRACTOR,REVENUE
Walsall Council,http://opendatacommunities.org/id/metropolitan-district-council/walsall ,WC151-533,30.06.2023,ADULT SOCIAL CARE,ADVANCE HEALTH CARE (UK) LTD,06/06/2023,540.00,6541-Domiciliary Care,THIRD PARTY PAYMENTS,PRIVATE CONTRACTOR,REVENUE
Walsall Council,http://opendatacommunities.org/id/metropolitan-district-council/walsall ,WC151-534,30.06.2023,ADULT SOCIAL CARE,ADVANCE HEALTH CARE (UK) LTD,06/06/2023,639.00,6541-Domiciliary Care,THIRD PARTY PAYMENTS,PRIVATE CONTRACTOR,REVENUE
Walsall Council,http://opendatacommunities.org/id/metropolitan-district-council/walsall ,WC151-535,30.06.2023,ADULT SOCIAL CARE,ADVANCE HEALTH CARE (UK) LTD,06/06/2023,567.00,6541-Domiciliary Care,THIRD PARTY PAYMENTS,PRIVATE CONTRACTOR,REVENUE
Walsall Council,http://opendatacommunities.org/id/metropolitan-district-council/walsall ,WC151-536,30.06.2023,ADULT SOCIAL CARE,ADVANCE HEALTH CARE (UK) LTD,06/06/2023,441.00,6541-Domiciliary Care,THIRD PARTY PAYMENTS,PRIVATE CONTRACTOR,REVENUE
Walsall Council,http://opendatacommunities.org/id/metropolitan-district-council/walsall ,WC151-537,30.06.2023,ADULT SOCIAL CARE,ADVANCE HEALTH CARE (UK) LTD,06/06/2023,630.00,6541-Domiciliary Care,THIRD PARTY PAYMENTS,PRIVATE CONTRACTOR,REVENUE
Walsall Council,http://opendatacommunities.org/id/metropolitan-district-council/walsall ,WC151-538,30.06.2023,ADULT SOCIAL CARE,ADVANCE HEALTH CARE (UK) LTD,06/06/2023,441.00,6541-Domiciliary Care,THIRD PARTY PAYMENTS,PRIVATE CONTRACTOR,REVENUE
Walsall Council,http://opendatacommunities.org/id/metropolitan-district-council/walsall ,WC151-539,30.06.2023,ADULT SOCIAL CARE,ADVANCE HEALTH CARE (UK) LTD,06/06/2023,378.00,6541-Domiciliary Care,THIRD PARTY PAYMENTS,PRIVATE CONTRACTOR,REVENUE
Walsall Council,http://opendatacommunities.org/id/metropolitan-district-council/walsall ,WC151-540,30.06.2023,ADULT SOCIAL CARE,ADVANCE HEALTH CARE (UK) LTD,06/06/2023,504.00,6541-Domiciliary Care,THIRD PARTY PAYMENTS,PRIVATE CONTRACTOR,REVENUE
Walsall Council,http://opendatacommunities.org/id/metropolitan-district-council/walsall ,WC151-541,30.06.2023,ADULT SOCIAL CARE,ADVANCE HEALTH CARE (UK) LTD,06/06/2023,504.00,6541-Domiciliary Care,THIRD PARTY PAYMENTS,PRIVATE CONTRACTOR,REVENUE
Walsall Council,http://opendatacommunities.org/id/metropolitan-district-council/walsall ,WC151-542,30.06.2023,ADULT SOCIAL CARE,ADVANCE HEALTH CARE (UK) LTD,06/06/2023,301.50,6541-Domiciliary Care,THIRD PARTY PAYMENTS,PRIVATE CONTRACTOR,REVENUE
Walsall Council,http://opendatacommunities.org/id/metropolitan-district-council/walsall ,WC151-543,30.06.2023,ADULT SOCIAL CARE,ADVANCE HEALTH CARE (UK) LTD,20/06/2023,567.00,6541-Domiciliary Care,THIRD PARTY PAYMENTS,PRIVATE CONTRACTOR,REVENUE
Walsall Council,http://opendatacommunities.org/id/metropolitan-district-council/walsall ,WC151-544,30.06.2023,ADULT SOCIAL CARE,ADVANCE HEALTH CARE (UK) LTD,20/06/2023,567.00,6541-Domiciliary Care,THIRD PARTY PAYMENTS,PRIVATE CONTRACTOR,REVENUE
Walsall Council,http://opendatacommunities.org/id/metropolitan-district-council/walsall ,WC151-545,30.06.2023,ADULT SOCIAL CARE,ADVANCE HEALTH CARE (UK) LTD,20/06/2023,736.05,6541-Domiciliary Care,THIRD PARTY PAYMENTS,PRIVATE CONTRACTOR,REVENUE
Walsall Council,http://opendatacommunities.org/id/metropolitan-district-council/walsall ,WC151-546,30.06.2023,ADULT SOCIAL CARE,ADVANCE HEALTH CARE (UK) LTD,20/06/2023,378.00,6541-Domiciliary Care,THIRD PARTY PAYMENTS,PRIVATE CONTRACTOR,REVENUE
Walsall Council,http://opendatacommunities.org/id/metropolitan-district-council/walsall ,WC151-547,30.06.2023,ADULT SOCIAL CARE,ADVANCE HEALTH CARE (UK) LTD,20/06/2023,567.00,6541-Domiciliary Care,THIRD PARTY PAYMENTS,PRIVATE CONTRACTOR,REVENUE
Walsall Council,http://opendatacommunities.org/id/metropolitan-district-council/walsall ,WC151-548,30.06.2023,ADULT SOCIAL CARE,ADVANCE HEALTH CARE (UK) LTD,20/06/2023,567.00,6541-Domiciliary Care,THIRD PARTY PAYMENTS,PRIVATE CONTRACTOR,REVENUE
Walsall Council,http://opendatacommunities.org/id/metropolitan-district-council/walsall ,WC151-549,30.06.2023,ADULT SOCIAL CARE,ADVANCE HEALTH CARE (UK) LTD,20/06/2023,630.00,6541-Domiciliary Care,THIRD PARTY PAYMENTS,PRIVATE CONTRACTOR,REVENUE
Walsall Council,http://opendatacommunities.org/id/metropolitan-district-council/walsall ,WC151-550,30.06.2023,ADULT SOCIAL CARE,ADVANCE HEALTH CARE (UK) LTD,20/06/2023,630.00,6541-Domiciliary Care,THIRD PARTY PAYMENTS,PRIVATE CONTRACTOR,REVENUE
Walsall Council,http://opendatacommunities.org/id/metropolitan-district-council/walsall ,WC151-551,30.06.2023,ADULT SOCIAL CARE,ADVANCE HEALTH CARE (UK) LTD,20/06/2023,283.50,6541-Domiciliary Care,THIRD PARTY PAYMENTS,PRIVATE CONTRACTOR,REVENUE
Walsall Council,http://opendatacommunities.org/id/metropolitan-district-council/walsall ,WC151-552,30.06.2023,ADULT SOCIAL CARE,ADVANCE HEALTH CARE (UK) LTD,20/06/2023,504.00,6541-Domiciliary Care,THIRD PARTY PAYMENTS,PRIVATE CONTRACTOR,REVENUE
Walsall Council,http://opendatacommunities.org/id/metropolitan-district-council/walsall ,WC151-553,30.06.2023,ADULT SOCIAL CARE,ADVANCE HEALTH CARE (UK) LTD,20/06/2023,252.00,6541-Domiciliary Care,THIRD PARTY PAYMENTS,PRIVATE CONTRACTOR,REVENUE
Walsall Council,http://opendatacommunities.org/id/metropolitan-district-council/walsall ,WC151-554,30.06.2023,ADULT SOCIAL CARE,ADVANCE HEALTH CARE (UK) LTD,20/06/2023,504.00,6541-Domiciliary Care,THIRD PARTY PAYMENTS,PRIVATE CONTRACTOR,REVENUE
Walsall Council,http://opendatacommunities.org/id/metropolitan-district-council/walsall ,WC151-555,30.06.2023,ADULT SOCIAL CARE,ADVANCE HEALTH CARE (UK) LTD,20/06/2023,441.00,6541-Domiciliary Care,THIRD PARTY PAYMENTS,PRIVATE CONTRACTOR,REVENUE
Walsall Council,http://opendatacommunities.org/id/metropolitan-district-council/walsall ,WC151-556,30.06.2023,ADULT SOCIAL CARE,ADVANCE HEALTH CARE (UK) LTD,20/06/2023,567.00,6541-Domiciliary Care,THIRD PARTY PAYMENTS,PRIVATE CONTRACTOR,REVENUE
Walsall Council,http://opendatacommunities.org/id/metropolitan-district-council/walsall ,WC151-557,30.06.2023,ADULT SOCIAL CARE,ADVANCE HEALTH CARE (UK) LTD,20/06/2023,963.00,6541-Domiciliary Care,THIRD PARTY PAYMENTS,PRIVATE CONTRACTOR,REVENUE
Walsall Council,http://opendatacommunities.org/id/metropolitan-district-council/walsall ,WC151-558,30.06.2023,ADULT SOCIAL CARE,ADVANCE HEALTH CARE (UK) LTD,20/06/2023,441.00,6541-Domiciliary Care,THIRD PARTY PAYMENTS,PRIVATE CONTRACTOR,REVENUE
Walsall Council,http://opendatacommunities.org/id/metropolitan-district-council/walsall ,WC151-559,30.06.2023,ADULT SOCIAL CARE,ADVANCE HEALTH CARE (UK) LTD,20/06/2023,283.50,6541-Domiciliary Care,THIRD PARTY PAYMENTS,PRIVATE CONTRACTOR,REVENUE
Walsall Council,http://opendatacommunities.org/id/metropolitan-district-council/walsall ,WC151-560,30.06.2023,ADULT SOCIAL CARE,ADVANCE HEALTH CARE (UK) LTD,20/06/2023,283.50,6541-Domiciliary Care,THIRD PARTY PAYMENTS,PRIVATE CONTRACTOR,REVENUE
Walsall Council,http://opendatacommunities.org/id/metropolitan-district-council/walsall ,WC151-561,30.06.2023,ADULT SOCIAL CARE,ADVANCE HEALTH CARE (UK) LTD,20/06/2023,420.00,6541-Domiciliary Care,THIRD PARTY PAYMENTS,PRIVATE CONTRACTOR,REVENUE
Walsall Council,http://opendatacommunities.org/id/metropolitan-district-council/walsall ,WC151-562,30.06.2023,ADULT SOCIAL CARE,ADVANCE HEALTH CARE (UK) LTD,20/06/2023,441.00,6541-Domiciliary Care,THIRD PARTY PAYMENTS,PRIVATE CONTRACTOR,REVENUE
Walsall Council,http://opendatacommunities.org/id/metropolitan-district-council/walsall ,WC151-563,30.06.2023,ADULT SOCIAL CARE,ADVANCE HEALTH CARE (UK) LTD,20/06/2023,630.00,6541-Domiciliary Care,THIRD PARTY PAYMENTS,PRIVATE CONTRACTOR,REVENUE
Walsall Council,http://opendatacommunities.org/id/metropolitan-district-council/walsall ,WC151-564,30.06.2023,ADULT SOCIAL CARE,ADVANCE HEALTH CARE (UK) LTD,20/06/2023,441.00,6541-Domiciliary Care,THIRD PARTY PAYMENTS,PRIVATE CONTRACTOR,REVENUE
Walsall Council,http://opendatacommunities.org/id/metropolitan-district-council/walsall ,WC151-565,30.06.2023,ADULT SOCIAL CARE,ADVANCE HEALTH CARE (UK) LTD,20/06/2023,567.00,6541-Domiciliary Care,THIRD PARTY PAYMENTS,PRIVATE CONTRACTOR,REVENUE
Walsall Council,http://opendatacommunities.org/id/metropolitan-district-council/walsall ,WC151-566,30.06.2023,ADULT SOCIAL CARE,ADVANCE HEALTH CARE (UK) LTD,20/06/2023,378.00,6541-Domiciliary Care,THIRD PARTY PAYMENTS,PRIVATE CONTRACTOR,REVENUE
Walsall Council,http://opendatacommunities.org/id/metropolitan-district-council/walsall ,WC151-567,30.06.2023,ADULT SOCIAL CARE,ADVANCE HEALTH CARE (UK) LTD,20/06/2023,504.00,6541-Domiciliary Care,THIRD PARTY PAYMENTS,PRIVATE CONTRACTOR,REVENUE
Walsall Council,http://opendatacommunities.org/id/metropolitan-district-council/walsall ,WC151-568,30.06.2023,ADULT SOCIAL CARE,ADVANCE HEALTH CARE (UK) LTD,20/06/2023,441.00,6541-Domiciliary Care,THIRD PARTY PAYMENTS,PRIVATE CONTRACTOR,REVENUE
Walsall Council,http://opendatacommunities.org/id/metropolitan-district-council/walsall ,WC151-569,30.06.2023,ADULT SOCIAL CARE,ADVANCE HEALTH CARE (UK) LTD,20/06/2023,301.50,6541-Domiciliary Care,THIRD PARTY PAYMENTS,PRIVATE CONTRACTOR,REVENUE
Walsall Council,http://opendatacommunities.org/id/metropolitan-district-council/walsall ,WC151-570,30.06.2023,ADULT SOCIAL CARE,ADVANCE HEALTH CARE (UK) LTD,20/06/2023,567.00,6541-Domiciliary Care,THIRD PARTY PAYMENTS,PRIVATE CONTRACTOR,REVENUE
Walsall Council,http://opendatacommunities.org/id/metropolitan-district-council/walsall ,WC151-571,30.06.2023,ADULT SOCIAL CARE,ADVANCE HEALTH CARE (UK) LTD,20/06/2023,540.00,6541-Domiciliary Care,THIRD PARTY PAYMENTS,PRIVATE CONTRACTOR,REVENUE
Walsall Council,http://opendatacommunities.org/id/metropolitan-district-council/walsall ,WC151-572,30.06.2023,ADULT SOCIAL CARE,ADVANCE HEALTH CARE (UK) LTD,20/06/2023,639.00,6541-Domiciliary Care,THIRD PARTY PAYMENTS,PRIVATE CONTRACTOR,REVENUE
Walsall Council,http://opendatacommunities.org/id/metropolitan-district-council/walsall ,WC151-573,30.06.2023,ADULT SOCIAL CARE,ADVANCE HEALTH CARE (UK) LTD,20/06/2023,567.00,6541-Domiciliary Care,THIRD PARTY PAYMENTS,PRIVATE CONTRACTOR,REVENUE
Walsall Council,http://opendatacommunities.org/id/metropolitan-district-council/walsall ,WC151-574,30.06.2023,ADULT SOCIAL CARE,ADVANCE HEALTH CARE (UK) LTD,20/06/2023,504.00,6541-Domiciliary Care,THIRD PARTY PAYMENTS,PRIVATE CONTRACTOR,REVENUE
Walsall Council,http://opendatacommunities.org/id/metropolitan-district-council/walsall ,WC151-575,30.06.2023,ADULT SOCIAL CARE,ADVANCE HEALTH CARE (UK) LTD,20/06/2023,504.00,6541-Domiciliary Care,THIRD PARTY PAYMENTS,PRIVATE CONTRACTOR,REVENUE
Walsall Council,http://opendatacommunities.org/id/metropolitan-district-council/walsall ,WC151-576,30.06.2023,ADULT SOCIAL CARE,ADVANCE HEALTH CARE (UK) LTD,20/06/2023,301.50,6541-Domiciliary Care,THIRD PARTY PAYMENTS,PRIVATE CONTRACTOR,REVENUE
Walsall Council,http://opendatacommunities.org/id/metropolitan-district-council/walsall ,WC151-577,30.06.2023,ADULT SOCIAL CARE,ADVANCE HEALTH CARE (UK) LTD,20/06/2023,378.00,6541-Domiciliary Care,THIRD PARTY PAYMENTS,PRIVATE CONTRACTOR,REVENUE
Walsall Council,http://opendatacommunities.org/id/metropolitan-district-council/walsall ,WC151-578,30.06.2023,ADULT SOCIAL CARE,ADVANCE HEALTH CARE (UK) LTD,20/06/2023,567.00,6541-Domiciliary Care,THIRD PARTY PAYMENTS,PRIVATE CONTRACTOR,REVENUE
Walsall Council,http://opendatacommunities.org/id/metropolitan-district-council/walsall ,WC151-579,30.06.2023,ADULT SOCIAL CARE,ADVANCE HEALTH CARE (UK) LTD,20/06/2023,567.00,6541-Domiciliary Care,THIRD PARTY PAYMENTS,PRIVATE CONTRACTOR,REVENUE
Walsall Council,http://opendatacommunities.org/id/metropolitan-district-council/walsall ,WC151-580,30.06.2023,ADULT SOCIAL CARE,ADVANCE HEALTH CARE (UK) LTD,20/06/2023,630.00,6541-Domiciliary Care,THIRD PARTY PAYMENTS,PRIVATE CONTRACTOR,REVENUE
Walsall Council,http://opendatacommunities.org/id/metropolitan-district-council/walsall ,WC151-581,30.06.2023,ADULT SOCIAL CARE,ADVANCE HEALTH CARE (UK) LTD,20/06/2023,504.00,6541-Domiciliary Care,THIRD PARTY PAYMENTS,PRIVATE CONTRACTOR,REVENUE
Walsall Council,http://opendatacommunities.org/id/metropolitan-district-council/walsall ,WC151-582,30.06.2023,ADULT SOCIAL CARE,ADVANCE HEALTH CARE (UK) LTD,20/06/2023,252.00,6541-Domiciliary Care,THIRD PARTY PAYMENTS,PRIVATE CONTRACTOR,REVENUE
Walsall Council,http://opendatacommunities.org/id/metropolitan-district-council/walsall ,WC151-583,30.06.2023,ADULT SOCIAL CARE,ADVANCE HEALTH CARE (UK) LTD,20/06/2023,504.00,6541-Domiciliary Care,THIRD PARTY PAYMENTS,PRIVATE CONTRACTOR,REVENUE
Walsall Council,http://opendatacommunities.org/id/metropolitan-district-council/walsall ,WC151-584,30.06.2023,ADULT SOCIAL CARE,ADVANCE HEALTH CARE (UK) LTD,20/06/2023,441.00,6541-Domiciliary Care,THIRD PARTY PAYMENTS,PRIVATE CONTRACTOR,REVENUE
Walsall Council,http://opendatacommunities.org/id/metropolitan-district-council/walsall ,WC151-585,30.06.2023,ADULT SOCIAL CARE,ADVANCE HEALTH CARE (UK) LTD,20/06/2023,567.00,6541-Domiciliary Care,THIRD PARTY PAYMENTS,PRIVATE CONTRACTOR,REVENUE
Walsall Council,http://opendatacommunities.org/id/metropolitan-district-council/walsall ,WC151-586,30.06.2023,ADULT SOCIAL CARE,ADVANCE HEALTH CARE (UK) LTD,20/06/2023,441.00,6541-Domiciliary Care,THIRD PARTY PAYMENTS,PRIVATE CONTRACTOR,REVENUE
Walsall Council,http://opendatacommunities.org/id/metropolitan-district-council/walsall ,WC151-587,30.06.2023,ADULT SOCIAL CARE,ADVANCE HEALTH CARE (UK) LTD,20/06/2023,630.00,6541-Domiciliary Care,THIRD PARTY PAYMENTS,PRIVATE CONTRACTOR,REVENUE
Walsall Council,http://opendatacommunities.org/id/metropolitan-district-council/walsall ,WC151-588,30.06.2023,ADULT SOCIAL CARE,ADVANCE HEALTH CARE (UK) LTD,20/06/2023,963.00,6541-Domiciliary Care,THIRD PARTY PAYMENTS,PRIVATE CONTRACTOR,REVENUE
Walsall Council,http://opendatacommunities.org/id/metropolitan-district-council/walsall ,WC151-589,30.06.2023,ADULT SOCIAL CARE,ADVANCE HEALTH CARE (UK) LTD,20/06/2023,441.00,6541-Domiciliary Care,THIRD PARTY PAYMENTS,PRIVATE CONTRACTOR,REVENUE
Walsall Council,http://opendatacommunities.org/id/metropolitan-district-council/walsall ,WC151-590,30.06.2023,ADULT SOCIAL CARE,ADVANCE HEALTH CARE (UK) LTD,20/06/2023,283.50,6541-Domiciliary Care,THIRD PARTY PAYMENTS,PRIVATE CONTRACTOR,REVENUE
Walsall Council,http://opendatacommunities.org/id/metropolitan-district-council/walsall ,WC151-591,30.06.2023,ADULT SOCIAL CARE,ADVANCE HEALTH CARE (UK) LTD,20/06/2023,441.00,6541-Domiciliary Care,THIRD PARTY PAYMENTS,PRIVATE CONTRACTOR,REVENUE
Walsall Council,http://opendatacommunities.org/id/metropolitan-district-council/walsall ,WC151-592,30.06.2023,ADULT SOCIAL CARE,ADVANCE HEALTH CARE (UK) LTD,20/06/2023,567.00,6541-Domiciliary Care,THIRD PARTY PAYMENTS,PRIVATE CONTRACTOR,REVENUE
Walsall Council,http://opendatacommunities.org/id/metropolitan-district-council/walsall ,WC151-593,30.06.2023,ADULT SOCIAL CARE,ADVANCE HEALTH CARE (UK) LTD,20/06/2023,283.50,6541-Domiciliary Care,THIRD PARTY PAYMENTS,PRIVATE CONTRACTOR,REVENUE
Walsall Council,http://opendatacommunities.org/id/metropolitan-district-council/walsall ,WC151-594,30.06.2023,ADULT SOCIAL CARE,ADVANCE HEALTH CARE (UK) LTD,20/06/2023,420.00,6541-Domiciliary Care,THIRD PARTY PAYMENTS,PRIVATE CONTRACTOR,REVENUE
Walsall Council,http://opendatacommunities.org/id/metropolitan-district-council/walsall ,WC151-595,30.06.2023,ADULT SOCIAL CARE,ADVANCE HEALTH CARE (UK) LTD,20/06/2023,441.00,6541-Domiciliary Care,THIRD PARTY PAYMENTS,PRIVATE CONTRACTOR,REVENUE
Walsall Council,http://opendatacommunities.org/id/metropolitan-district-council/walsall ,WC151-596,30.06.2023,ADULT SOCIAL CARE,ADVANCE HEALTH CARE (UK) LTD,20/06/2023,301.50,6541-Domiciliary Care,THIRD PARTY PAYMENTS,PRIVATE CONTRACTOR,REVENUE
Walsall Council,http://opendatacommunities.org/id/metropolitan-district-council/walsall ,WC151-597,30.06.2023,ADULT SOCIAL CARE,ADVANCE HEALTH CARE (UK) LTD,20/06/2023,567.00,6541-Domiciliary Care,THIRD PARTY PAYMENTS,PRIVATE CONTRACTOR,REVENUE
Walsall Council,http://opendatacommunities.org/id/metropolitan-district-council/walsall ,WC151-598,30.06.2023,ADULT SOCIAL CARE,ADVANCE HEALTH CARE (UK) LTD,20/06/2023,567.00,6541-Domiciliary Care,THIRD PARTY PAYMENTS,PRIVATE CONTRACTOR,REVENUE
Walsall Council,http://opendatacommunities.org/id/metropolitan-district-council/walsall ,WC151-599,30.06.2023,ADULT SOCIAL CARE,ADVANCE HEALTH CARE (UK) LTD,20/06/2023,540.00,6541-Domiciliary Care,THIRD PARTY PAYMENTS,PRIVATE CONTRACTOR,REVENUE
Walsall Council,http://opendatacommunities.org/id/metropolitan-district-council/walsall ,WC151-600,30.06.2023,ADULT SOCIAL CARE,ADVANCE HEALTH CARE (UK) LTD,20/06/2023,639.00,6541-Domiciliary Care,THIRD PARTY PAYMENTS,PRIVATE CONTRACTOR,REVENUE
Walsall Council,http://opendatacommunities.org/id/metropolitan-district-council/walsall ,WC151-601,30.06.2023,ADULT SOCIAL CARE,ADVANCE HEALTH CARE (UK) LTD,20/06/2023,504.00,6541-Domiciliary Care,THIRD PARTY PAYMENTS,PRIVATE CONTRACTOR,REVENUE
Walsall Council,http://opendatacommunities.org/id/metropolitan-district-council/walsall ,WC151-602,30.06.2023,ADULT SOCIAL CARE,ADVANCE HEALTH CARE (UK) LTD,20/06/2023,378.00,6541-Domiciliary Care,THIRD PARTY PAYMENTS,PRIVATE CONTRACTOR,REVENUE
Walsall Council,http://opendatacommunities.org/id/metropolitan-district-council/walsall ,WC151-603,30.06.2023,ADULT SOCIAL CARE,ADVANCE HEALTH CARE (UK) LTD,20/06/2023,504.00,6541-Domiciliary Care,THIRD PARTY PAYMENTS,PRIVATE CONTRACTOR,REVENUE
Walsall Council,http://opendatacommunities.org/id/metropolitan-district-council/walsall ,WC151-604,30.06.2023,ADULT SOCIAL CARE,ADVANCE HEALTH CARE (UK) LTD,20/06/2023,504.00,6541-Domiciliary Care,THIRD PARTY PAYMENTS,PRIVATE CONTRACTOR,REVENUE
Walsall Council,http://opendatacommunities.org/id/metropolitan-district-council/walsall ,WC151-605,30.06.2023,ADULT SOCIAL CARE,ADVANCE HEALTH CARE (UK) LTD,20/06/2023,301.50,6541-Domiciliary Care,THIRD PARTY PAYMENTS,PRIVATE CONTRACTOR,REVENUE
Walsall Council,http://opendatacommunities.org/id/metropolitan-district-council/walsall ,WC151-606,30.06.2023,ADULT SOCIAL CARE,ADVANCE HEALTH CARE (UK) LTD,20/06/2023,252.00,6541-Domiciliary Care,THIRD PARTY PAYMENTS,PRIVATE CONTRACTOR,REVENUE
Walsall Council,http://opendatacommunities.org/id/metropolitan-district-council/walsall ,WC151-607,30.06.2023,ADULT SOCIAL CARE,ADVANCE HEALTH CARE (UK) LTD,20/06/2023,630.00,6541-Domiciliary Care,THIRD PARTY PAYMENTS,PRIVATE CONTRACTOR,REVENUE
Walsall Council,http://opendatacommunities.org/id/metropolitan-district-council/walsall ,WC151-608,30.06.2023,ADULT SOCIAL CARE,ADVANCE HEALTH CARE (UK) LTD,20/06/2023,283.50,6541-Domiciliary Care,THIRD PARTY PAYMENTS,PRIVATE CONTRACTOR,REVENUE
Walsall Council,http://opendatacommunities.org/id/metropolitan-district-council/walsall ,WC151-609,30.06.2023,ADULT SOCIAL CARE,ADVANCE HEALTH CARE (UK) LTD,28/06/2023,759.00,6554-Professional Services-Priv Contractor & Other Agencies,THIRD PARTY PAYMENTS,PRIVATE CONTRACTOR,REVENUE
Walsall Council,http://opendatacommunities.org/id/metropolitan-district-council/walsall ,WC151-610,30.06.2023,ADULT SOCIAL CARE,ADVANCE HEALTH CARE (UK) LTD,28/06/2023,"1,458.00",6554-Professional Services-Priv Contractor & Other Agencies,THIRD PARTY PAYMENTS,PRIVATE CONTRACTOR,REVENUE
Walsall Council,http://opendatacommunities.org/id/metropolitan-district-council/walsall ,WC151-611,30.06.2023,ADULT SOCIAL CARE,ADVANCE HEALTH CARE (UK) LTD,28/06/2023,720.00,6554-Professional Services-Priv Contractor & Other Agencies,THIRD PARTY PAYMENTS,PRIVATE CONTRACTOR,REVENUE
Walsall Council,http://opendatacommunities.org/id/metropolitan-district-council/walsall ,WC151-612,30.06.2023,ADULT SOCIAL CARE,ADVANCE HEALTH CARE (UK) LTD,28/06/2023,666.00,6554-Professional Services-Priv Contractor & Other Agencies,THIRD PARTY PAYMENTS,PRIVATE CONTRACTOR,REVENUE
Walsall Council,http://opendatacommunities.org/id/metropolitan-district-council/walsall ,WC151-613,30.06.2023,ADULT SOCIAL CARE,ADVANCE HEALTH CARE (UK) LTD,28/06/2023,"1,701.00",6554-Professional Services-Priv Contractor & Other Agencies,THIRD PARTY PAYMENTS,PRIVATE CONTRACTOR,REVENUE
Walsall Council,http://opendatacommunities.org/id/metropolitan-district-council/walsall ,WC151-614,30.06.2023,ADULT SOCIAL CARE,ADVANCE HEALTH CARE (UK) LTD,28/06/2023,"2,178.00",6554-Professional Services-Priv Contractor & Other Agencies,THIRD PARTY PAYMENTS,PRIVATE CONTRACTOR,REVENUE
Walsall Council,http://opendatacommunities.org/id/metropolitan-district-council/walsall ,WC151-615,30.06.2023,ADULT SOCIAL CARE,ADVANCE HEALTH CARE (UK) LTD,28/06/2023,432.00,6554-Professional Services-Priv Contractor & Other Agencies,THIRD PARTY PAYMENTS,PRIVATE CONTRACTOR,REVENUE
Walsall Council,http://opendatacommunities.org/id/metropolitan-district-council/walsall ,WC151-616,30.06.2023,ADULT SOCIAL CARE,ADVANCE HEALTH CARE (UK) LTD,28/06/2023,"1,008.00",6554-Professional Services-Priv Contractor & Other Agencies,THIRD PARTY PAYMENTS,PRIVATE CONTRACTOR,REVENUE
Walsall Council,http://opendatacommunities.org/id/metropolitan-district-council/walsall ,WC151-617,30.06.2023,ADULT SOCIAL CARE,ADVANCE HEALTH CARE (UK) LTD,28/06/2023,"1,134.00",6554-Professional Services-Priv Contractor & Other Agencies,THIRD PARTY PAYMENTS,PRIVATE CONTRACTOR,REVENUE
Walsall Council,http://opendatacommunities.org/id/metropolitan-district-council/walsall ,WC151-618,30.06.2023,ADULT SOCIAL CARE,ADVANCE HEALTH CARE (UK) LTD,28/06/2023,648.00,6554-Professional Services-Priv Contractor & Other Agencies,THIRD PARTY PAYMENTS,PRIVATE CONTRACTOR,REVENUE
Walsall Council,http://opendatacommunities.org/id/metropolitan-district-council/walsall ,WC151-619,30.06.2023,ADULT SOCIAL CARE,ADVANCE HEALTH CARE (UK) LTD,28/06/2023,913.50,6554-Professional Services-Priv Contractor & Other Agencies,THIRD PARTY PAYMENTS,PRIVATE CONTRACTOR,REVENUE
Walsall Council,http://opendatacommunities.org/id/metropolitan-district-council/walsall ,WC151-620,30.06.2023,ADULT SOCIAL CARE,ADVANCE HEALTH CARE (UK) LTD,28/06/2023,729.00,6554-Professional Services-Priv Contractor & Other Agencies,THIRD PARTY PAYMENTS,PRIVATE CONTRACTOR,REVENUE
Walsall Council,http://opendatacommunities.org/id/metropolitan-district-council/walsall ,WC151-621,30.06.2023,ADULT SOCIAL CARE,ADVANCE HEALTH CARE (UK) LTD,28/06/2023,"1,134.00",6554-Professional Services-Priv Contractor & Other Agencies,THIRD PARTY PAYMENTS,PRIVATE CONTRACTOR,REVENUE
Walsall Council,http://opendatacommunities.org/id/metropolitan-district-council/walsall ,WC151-622,30.06.2023,ADULT SOCIAL CARE,ADVANCE HEALTH CARE (UK) LTD,28/06/2023,405.00,6554-Professional Services-Priv Contractor & Other Agencies,THIRD PARTY PAYMENTS,PRIVATE CONTRACTOR,REVENUE
Walsall Council,http://opendatacommunities.org/id/metropolitan-district-council/walsall ,WC151-623,30.06.2023,ADULT SOCIAL CARE,ADVANCE HEALTH CARE (UK) LTD,28/06/2023,837.00,6554-Professional Services-Priv Contractor & Other Agencies,THIRD PARTY PAYMENTS,PRIVATE CONTRACTOR,REVENUE
Walsall Council,http://opendatacommunities.org/id/metropolitan-district-council/walsall ,WC151-624,30.06.2023,ADULT SOCIAL CARE,ADVANCE HEALTH CARE (UK) LTD,28/06/2023,387.00,6554-Professional Services-Priv Contractor & Other Agencies,THIRD PARTY PAYMENTS,PRIVATE CONTRACTOR,REVENUE
Walsall Council,http://opendatacommunities.org/id/metropolitan-district-council/walsall ,WC151-625,30.06.2023,CHILDRENS CAPITAL,ADVANCED CONTRACTS (MIDLANDS) LTD,01/06/2023,"18,121.00",7100-Site Works Contractors,CAPITAL,"NEW CONSTRUCTION,CONVERSION & RENOVATION",CAPITAL
Walsall Council,http://opendatacommunities.org/id/metropolitan-district-council/walsall ,WC151-626,30.06.2023,CHILDRENS,ADVENTURELAND DAY NURSERY,29/06/2023,"4,118.68",1220-Top Up Funding -Grants to Schools,SUPPLIES & SERVICES,GRANTS (EXP) & SUBSCRIPTIONS,REVENUE
Walsall Council,http://opendatacommunities.org/id/metropolitan-district-council/walsall ,WC151-627,30.06.2023,ADULT SOCIAL CARE,ADVINIA CARE HOMES LTD - HAMMERWICH HALL CARE HOME,06/06/2023,"2,440.40",6541-Residential EMI,THIRD PARTY PAYMENTS,PRIVATE CONTRACTOR,REVENUE
Walsall Council,http://opendatacommunities.org/id/metropolitan-district-council/walsall ,WC151-628,30.06.2023,ADULT SOCIAL CARE,ADVINIA CARE HOMES LTD - HAMMERWICH HALL CARE HOME,06/06/2023,"2,161.28",6541-Residential,THIRD PARTY PAYMENTS,PRIVATE CONTRACTOR,REVENUE
Walsall Council,http://opendatacommunities.org/id/metropolitan-district-council/walsall ,WC151-629,30.06.2023,ECONOMY & ENVIRONMENT CAPITAL,AECOM INFRASTRUCTURE & ENVIRONMENT UK LIMITED,12/06/2023,"-8,999.35",7200-Consultants Fees,CAPITAL,"NEW CONSTRUCTION,CONVERSION & RENOVATION",CAPITAL
Walsall Council,http://opendatacommunities.org/id/metropolitan-district-council/walsall ,WC151-630,30.06.2023,ECONOMY & ENVIRONMENT CAPITAL,AECOM INFRASTRUCTURE & ENVIRONMENT UK LIMITED,12/06/2023,"8,999.35",7200-Consultants Fees,CAPITAL,"NEW CONSTRUCTION,CONVERSION & RENOVATION",CAPITAL
Walsall Council,http://opendatacommunities.org/id/metropolitan-district-council/walsall ,WC151-631,30.06.2023,ECONOMY & ENVIRONMENT CAPITAL,AECOM INFRASTRUCTURE & ENVIRONMENT UK LIMITED,22/06/2023,"11,951.24",7200-Consultants Fees,CAPITAL,"NEW CONSTRUCTION,CONVERSION & RENOVATION",CAPITAL
Walsall Council,http://opendatacommunities.org/id/metropolitan-district-council/walsall ,WC151-632,30.06.2023,ECONOMY & ENVIRONMENT CAPITAL,AECOM INFRASTRUCTURE & ENVIRONMENT UK LIMITED,29/06/2023,"-10,726.49",7200-Consultants Fees,CAPITAL,"NEW CONSTRUCTION,CONVERSION & RENOVATION",CAPITAL
Walsall Council,http://opendatacommunities.org/id/metropolitan-district-council/walsall ,WC151-633,30.06.2023,ECONOMY & ENVIRONMENT CAPITAL,AECOM INFRASTRUCTURE & ENVIRONMENT UK LIMITED,29/06/2023,"10,726.49",7200-Consultants Fees,CAPITAL,"NEW CONSTRUCTION,CONVERSION & RENOVATION",CAPITAL
Walsall Council,http://opendatacommunities.org/id/metropolitan-district-council/walsall ,WC151-634,30.06.2023,ECONOMY & ENVIRONMENT CAPITAL,AECOM INFRASTRUCTURE & ENVIRONMENT UK LIMITED,29/06/2023,"10,726.49",7200-Consultants Fees,CAPITAL,"NEW CONSTRUCTION,CONVERSION & RENOVATION",CAPITAL
Walsall Council,http://opendatacommunities.org/id/metropolitan-district-council/walsall ,WC151-635,30.06.2023,CHILDRENS,REDACTED,01/06/2023,676.00,6223-Foster Carers Maintenance Allowance,TRANSFER PAYMENTS,CHILDREN SOCIAL SERVICES CLIENT,REVENUE
Walsall Council,http://opendatacommunities.org/id/metropolitan-district-council/walsall ,WC151-636,30.06.2023,CHILDRENS,REDACTED,01/06/2023,489.60,6223-Internal Foster Carers-Carer Fees,TRANSFER PAYMENTS,CHILDREN SOCIAL SERVICES CLIENT,REVENUE
Walsall Council,http://opendatacommunities.org/id/metropolitan-district-council/walsall ,WC151-637,30.06.2023,CHILDRENS,REDACTED,01/06/2023,633.14,6223-Foster Carers Maintenance Allowance,TRANSFER PAYMENTS,CHILDREN SOCIAL SERVICES CLIENT,REVENUE
Walsall Council,http://opendatacommunities.org/id/metropolitan-district-council/walsall ,WC151-638,30.06.2023,CHILDRENS,REDACTED,28/06/2023,313.86,6223-Foster Carers Maintenance Allowance,TRANSFER PAYMENTS,CHILDREN SOCIAL SERVICES CLIENT,REVENUE
Walsall Council,http://opendatacommunities.org/id/metropolitan-district-council/walsall ,WC151-639,30.06.2023,CHILDRENS,REDACTED,28/06/2023,332.23,6223-Internal Foster Carers-Carer Fees,TRANSFER PAYMENTS,CHILDREN SOCIAL SERVICES CLIENT,REVENUE
Walsall Council,http://opendatacommunities.org/id/metropolitan-district-council/walsall ,WC151-640,30.06.2023,CHILDRENS,REDACTED,28/06/2023,313.86,6223-Foster Carers Maintenance Allowance,TRANSFER PAYMENTS,CHILDREN SOCIAL SERVICES CLIENT,REVENUE
Walsall Council,http://opendatacommunities.org/id/metropolitan-district-council/walsall ,WC151-641,30.06.2023,ADULT SOCIAL CARE,REDACTED,07/06/2023,597.12,6541-Direct Payment,THIRD PARTY PAYMENTS,PRIVATE CONTRACTOR,REVENUE
Walsall Council,http://opendatacommunities.org/id/metropolitan-district-council/walsall ,WC151-642,30.06.2023,RESOURCES AND TRANSFORMATION CAPITAL,AGILISYS LTD,30/06/2023,"1,649.00",7300-Consultants Fees,CAPITAL,"NEW CONSTRUCTION,CONVERSION & RENOVATION",CAPITAL
Walsall Council,http://opendatacommunities.org/id/metropolitan-district-council/walsall ,WC151-643,30.06.2023,RESOURCES AND TRANSFORMATION CAPITAL,AGILISYS LTD,30/06/2023,"12,334.52",7300-Consultants Fees,CAPITAL,"NEW CONSTRUCTION,CONVERSION & RENOVATION",CAPITAL
Walsall Council,http://opendatacommunities.org/id/metropolitan-district-council/walsall ,WC151-644,30.06.2023,"ECONOMY, ENVIRONMENT & COMMUNITIES",AGROVISTA UK LTD,02/06/2023,"2,030.00",6410-Materials,SUPPLIES & SERVICES,EQUIPMENT FURNITURE & MATERIALS,REVENUE
Walsall Council,http://opendatacommunities.org/id/metropolitan-district-council/walsall ,WC151-645,30.06.2023,"ECONOMY, ENVIRONMENT & COMMUNITIES",AGROVISTA UK LTD,02/06/2023,486.20,6410-Materials,SUPPLIES & SERVICES,EQUIPMENT FURNITURE & MATERIALS,REVENUE
Walsall Council,http://opendatacommunities.org/id/metropolitan-district-council/walsall ,WC151-646,30.06.2023,"ECONOMY, ENVIRONMENT & COMMUNITIES",AGROVISTA UK LTD,20/06/2023,497.87,6410-Materials,SUPPLIES & SERVICES,EQUIPMENT FURNITURE & MATERIALS,REVENUE
Walsall Council,http://opendatacommunities.org/id/metropolitan-district-council/walsall ,WC151-647,30.06.2023,ADULT SOCIAL CARE,REDACTED,07/06/2023,"4,047.00",6541-Direct Payment,THIRD PARTY PAYMENTS,PRIVATE CONTRACTOR,REVENUE
Walsall Council,http://opendatacommunities.org/id/metropolitan-district-council/walsall ,WC151-648,30.06.2023,ADULT SOCIAL CARE,REDACTED,07/06/2023,"1,574.00",6541-Direct Payment,THIRD PARTY PAYMENTS,PRIVATE CONTRACTOR,REVENUE
Walsall Council,http://opendatacommunities.org/id/metropolitan-district-council/walsall ,WC151-649,30.06.2023,"ECONOMY, ENVIRONMENT & COMMUNITIES",AKD SOLUTIONS LTD,23/06/2023,"3,600.00",6430-Grants to Other Orgs,SUPPLIES & SERVICES,GRANTS (EXP) & SUBSCRIPTIONS,REVENUE
Walsall Council,http://opendatacommunities.org/id/metropolitan-district-council/walsall ,WC151-650,30.06.2023,ADULT SOCIAL CARE,REDACTED,07/06/2023,632.86,6541-Direct Payment,THIRD PARTY PAYMENTS,PRIVATE CONTRACTOR,REVENUE
Walsall Council,http://opendatacommunities.org/id/metropolitan-district-council/walsall ,WC151-651,30.06.2023,ADULT SOCIAL CARE,REDACTED,07/06/2023,394.62,6541-Direct Payment,THIRD PARTY PAYMENTS,PRIVATE CONTRACTOR,REVENUE
Walsall Council,http://opendatacommunities.org/id/metropolitan-district-council/walsall ,WC151-652,30.06.2023,ADULT SOCIAL CARE,REDACTED,07/06/2023,"2,067.12",6541-Direct Payment,THIRD PARTY PAYMENTS,PRIVATE CONTRACTOR,REVENUE
Walsall Council,http://opendatacommunities.org/id/metropolitan-district-council/walsall ,WC151-653,30.06.2023,"ECONOMY, ENVIRONMENT & COMMUNITIES",ALBERT JAGGER LTD,06/06/2023,607.12,6410-Materials to Stores,SUPPLIES & SERVICES,EQUIPMENT FURNITURE & MATERIALS,REVENUE
Walsall Council,http://opendatacommunities.org/id/metropolitan-district-council/walsall ,WC151-654,30.06.2023,ADULT SOCIAL CARE,ALDBOURNE NURSING HOME LTD,06/06/2023,"13,209.31",6541-Nursing EMI,THIRD PARTY PAYMENTS,PRIVATE CONTRACTOR,REVENUE
Walsall Council,http://opendatacommunities.org/id/metropolitan-district-council/walsall ,WC151-655,30.06.2023,CHILDRENS,ALDRIDGE & BARONS LIMITED,19/06/2023,"1,540.00",6241-Hire of Vehicle with Driver,TRANSPORT,DIRECT TRANSPORT COSTS,REVENUE
Walsall Council,http://opendatacommunities.org/id/metropolitan-district-council/walsall ,WC151-656,30.06.2023,CHILDRENS,ALDRIDGE & BARONS LIMITED,19/06/2023,"1,765.00",6241-Hire of Vehicle with Driver,TRANSPORT,DIRECT TRANSPORT COSTS,REVENUE
Walsall Council,http://opendatacommunities.org/id/metropolitan-district-council/walsall ,WC151-657,30.06.2023,CHILDRENS,ALDRIDGE & BARONS LIMITED,19/06/2023,"2,100.00",6241-Hire of Vehicle with Driver,TRANSPORT,DIRECT TRANSPORT COSTS,REVENUE
Walsall Council,http://opendatacommunities.org/id/metropolitan-district-council/walsall ,WC151-658,30.06.2023,CHILDRENS,ALDRIDGE & BARONS LIMITED,19/06/2023,"1,470.00",6241-Hire of Vehicle with Driver,TRANSPORT,DIRECT TRANSPORT COSTS,REVENUE
Walsall Council,http://opendatacommunities.org/id/metropolitan-district-council/walsall ,WC151-659,30.06.2023,CHILDRENS,ALDRIDGE & BARONS LIMITED,19/06/2023,"1,810.50",6241-Hire of Vehicle with Driver,TRANSPORT,DIRECT TRANSPORT COSTS,REVENUE
Walsall Council,http://opendatacommunities.org/id/metropolitan-district-council/walsall ,WC151-660,30.06.2023,CHILDRENS,ALDRIDGE & BARONS LIMITED,19/06/2023,"2,515.00",6241-Hire of Vehicle with Driver,TRANSPORT,DIRECT TRANSPORT COSTS,REVENUE
Walsall Council,http://opendatacommunities.org/id/metropolitan-district-council/walsall ,WC151-661,30.06.2023,CHILDRENS,ALDRIDGE & BARONS LIMITED,19/06/2023,"1,820.00",6241-Hire of Vehicle with Driver,TRANSPORT,DIRECT TRANSPORT COSTS,REVENUE
Walsall Council,http://opendatacommunities.org/id/metropolitan-district-council/walsall ,WC151-662,30.06.2023,CHILDRENS,ALDRIDGE & BARONS LIMITED,19/06/2023,"1,440.00",6241-Hire of Vehicle with Driver,TRANSPORT,DIRECT TRANSPORT COSTS,REVENUE
Walsall Council,http://opendatacommunities.org/id/metropolitan-district-council/walsall ,WC151-663,30.06.2023,CHILDRENS,ALDRIDGE & BARONS LIMITED,19/06/2023,"1,750.00",6241-Hire of Vehicle with Driver,TRANSPORT,DIRECT TRANSPORT COSTS,REVENUE
Walsall Council,http://opendatacommunities.org/id/metropolitan-district-council/walsall ,WC151-664,30.06.2023,CHILDRENS,ALDRIDGE & BARONS LIMITED,19/06/2023,"1,625.00",6241-Hire of Vehicle with Driver,TRANSPORT,DIRECT TRANSPORT COSTS,REVENUE
Walsall Council,http://opendatacommunities.org/id/metropolitan-district-council/walsall ,WC151-665,30.06.2023,CHILDRENS,ALDRIDGE & BARONS LIMITED,19/06/2023,"2,177.28",6241-Hire of Vehicle with Driver,TRANSPORT,DIRECT TRANSPORT COSTS,REVENUE
Walsall Council,http://opendatacommunities.org/id/metropolitan-district-council/walsall ,WC151-666,30.06.2023,CHILDRENS,ALDRIDGE & BARONS LIMITED,19/06/2023,"2,100.00",6241-Hire of Vehicle with Driver,TRANSPORT,DIRECT TRANSPORT COSTS,REVENUE
Walsall Council,http://opendatacommunities.org/id/metropolitan-district-council/walsall ,WC151-667,30.06.2023,CHILDRENS,ALDRIDGE & BARONS LIMITED,19/06/2023,"1,960.00",6241-Hire of Vehicle with Driver,TRANSPORT,DIRECT TRANSPORT COSTS,REVENUE
Walsall Council,http://opendatacommunities.org/id/metropolitan-district-council/walsall ,WC151-668,30.06.2023,CHILDRENS,ALDRIDGE & BARONS LIMITED,19/06/2023,"1,680.00",6241-Hire of Vehicle with Driver,TRANSPORT,DIRECT TRANSPORT COSTS,REVENUE
Walsall Council,http://opendatacommunities.org/id/metropolitan-district-council/walsall ,WC151-669,30.06.2023,CHILDRENS,ALDRIDGE & BARONS LIMITED,19/06/2023,"2,030.00",6241-Hire of Vehicle with Driver,TRANSPORT,DIRECT TRANSPORT COSTS,REVENUE
Walsall Council,http://opendatacommunities.org/id/metropolitan-district-council/walsall ,WC151-670,30.06.2023,CHILDRENS,ALDRIDGE & BARONS LIMITED,19/06/2023,"2,021.32",6241-Hire of Vehicle with Driver,TRANSPORT,DIRECT TRANSPORT COSTS,REVENUE
Walsall Council,http://opendatacommunities.org/id/metropolitan-district-council/walsall ,WC151-671,30.06.2023,CHILDRENS,ALDRIDGE & BARONS LIMITED,19/06/2023,"1,638.00",6241-Hire of Vehicle with Driver,TRANSPORT,DIRECT TRANSPORT COSTS,REVENUE
Walsall Council,http://opendatacommunities.org/id/metropolitan-district-council/walsall ,WC151-672,30.06.2023,CHILDRENS,ALDRIDGE & BARONS LIMITED,19/06/2023,"2,520.00",6241-Hire of Vehicle with Driver,TRANSPORT,DIRECT TRANSPORT COSTS,REVENUE
Walsall Council,http://opendatacommunities.org/id/metropolitan-district-council/walsall ,WC151-673,30.06.2023,CHILDRENS,ALDRIDGE & BARONS LIMITED,19/06/2023,"1,562.40",6241-Hire of Vehicle with Driver,TRANSPORT,DIRECT TRANSPORT COSTS,REVENUE
Walsall Council,http://opendatacommunities.org/id/metropolitan-district-council/walsall ,WC151-674,30.06.2023,CHILDRENS,ALDRIDGE & BARONS LIMITED,19/06/2023,"1,932.00",6241-Hire of Vehicle with Driver,TRANSPORT,DIRECT TRANSPORT COSTS,REVENUE
Walsall Council,http://opendatacommunities.org/id/metropolitan-district-council/walsall ,WC151-675,30.06.2023,CHILDRENS,ALDRIDGE & BARONS LIMITED,19/06/2023,"1,375.00",6241-Hire of Vehicle with Driver,TRANSPORT,DIRECT TRANSPORT COSTS,REVENUE
Walsall Council,http://opendatacommunities.org/id/metropolitan-district-council/walsall ,WC151-676,30.06.2023,CHILDRENS,ALDRIDGE & BARONS LIMITED,19/06/2023,"2,220.40",6241-Hire of Vehicle with Driver,TRANSPORT,DIRECT TRANSPORT COSTS,REVENUE
Walsall Council,http://opendatacommunities.org/id/metropolitan-district-council/walsall ,WC151-677,30.06.2023,CHILDRENS,ALDRIDGE & BARONS LIMITED,19/06/2023,"1,260.00",6241-Hire of Vehicle with Driver,TRANSPORT,DIRECT TRANSPORT COSTS,REVENUE
Walsall Council,http://opendatacommunities.org/id/metropolitan-district-council/walsall ,WC151-678,30.06.2023,CHILDRENS,ALDRIDGE & BARONS LIMITED,19/06/2023,936.00,6241-Hire of Vehicle with Driver,TRANSPORT,DIRECT TRANSPORT COSTS,REVENUE
Walsall Council,http://opendatacommunities.org/id/metropolitan-district-council/walsall ,WC151-679,30.06.2023,CHILDRENS,ALDRIDGE & BARONS LIMITED,19/06/2023,"1,386.00",6241-Hire of Vehicle with Driver,TRANSPORT,DIRECT TRANSPORT COSTS,REVENUE
Walsall Council,http://opendatacommunities.org/id/metropolitan-district-council/walsall ,WC151-680,30.06.2023,CHILDRENS,ALDRIDGE & BARONS LIMITED,19/06/2023,"1,968.12",6241-Hire of Vehicle with Driver,TRANSPORT,DIRECT TRANSPORT COSTS,REVENUE
Walsall Council,http://opendatacommunities.org/id/metropolitan-district-council/walsall ,WC151-681,30.06.2023,CHILDRENS,ALDRIDGE & BARONS LIMITED,19/06/2023,"1,201.90",6241-Hire of Vehicle with Driver,TRANSPORT,DIRECT TRANSPORT COSTS,REVENUE
Walsall Council,http://opendatacommunities.org/id/metropolitan-district-council/walsall ,WC151-682,30.06.2023,CHILDRENS,ALDRIDGE & BARONS LIMITED,19/06/2023,"1,504.50",6241-Hire of Vehicle with Driver,TRANSPORT,DIRECT TRANSPORT COSTS,REVENUE
Walsall Council,http://opendatacommunities.org/id/metropolitan-district-council/walsall ,WC151-683,30.06.2023,CHILDRENS,ALDRIDGE & BARONS LIMITED,19/06/2023,"1,339.80",6241-Hire of Vehicle with Driver,TRANSPORT,DIRECT TRANSPORT COSTS,REVENUE
Walsall Council,http://opendatacommunities.org/id/metropolitan-district-council/walsall ,WC151-684,30.06.2023,CHILDRENS,ALDRIDGE & BARONS LIMITED,19/06/2023,"1,974.00",6241-Hire of Vehicle with Driver,TRANSPORT,DIRECT TRANSPORT COSTS,REVENUE
Walsall Council,http://opendatacommunities.org/id/metropolitan-district-council/walsall ,WC151-685,30.06.2023,CHILDRENS,ALDRIDGE & BARONS LIMITED,19/06/2023,945.00,6241-Hire of Vehicle with Driver,TRANSPORT,DIRECT TRANSPORT COSTS,REVENUE
Walsall Council,http://opendatacommunities.org/id/metropolitan-district-council/walsall ,WC151-686,30.06.2023,CHILDRENS,ALDRIDGE & BARONS LIMITED,19/06/2023,792.00,6241-Hire of Vehicle with Driver,TRANSPORT,DIRECT TRANSPORT COSTS,REVENUE
Walsall Council,http://opendatacommunities.org/id/metropolitan-district-council/walsall ,WC151-687,30.06.2023,RESOURCES AND TRANSFORMATION,ALDRIDGE METHODIST CHURCH 001,14/06/2023,400.00,6610-Hire of Room,SUPPLIES & SERVICES,SERVICES,REVENUE
Walsall Council,http://opendatacommunities.org/id/metropolitan-district-council/walsall ,WC151-688,30.06.2023,CHILDRENS,ALDRIDGE PREMIER TUITION LTD,06/06/2023,290.00,1220-Professional Fees & Services,SUPPLIES & SERVICES,SERVICES,REVENUE
Walsall Council,http://opendatacommunities.org/id/metropolitan-district-council/walsall ,WC151-689,30.06.2023,ADULT SOCIAL CARE,REDACTED,07/06/2023,"2,437.58",6541-Direct Payment,THIRD PARTY PAYMENTS,PRIVATE CONTRACTOR,REVENUE
Walsall Council,http://opendatacommunities.org/id/metropolitan-district-council/walsall ,WC151-690,30.06.2023,ADULT SOCIAL CARE,ALEXANDRA HOUSE CARE SERVICES LTD T/A STONEBRIDGE NURSING HOME,06/06/2023,"7,546.24",6541-Residential,THIRD PARTY PAYMENTS,PRIVATE CONTRACTOR,REVENUE
Walsall Council,http://opendatacommunities.org/id/metropolitan-district-council/walsall ,WC151-691,30.06.2023,ADULT SOCIAL CARE,ALEXANDRA HOUSE SUPPORT SERVICES LTD,06/06/2023,"5,936.00",6541-Residential,THIRD PARTY PAYMENTS,PRIVATE CONTRACTOR,REVENUE
Walsall Council,http://opendatacommunities.org/id/metropolitan-district-council/walsall ,WC151-692,30.06.2023,ADULT SOCIAL CARE,REDACTED,07/06/2023,"1,527.42",6541-Direct Payment,THIRD PARTY PAYMENTS,PRIVATE CONTRACTOR,REVENUE
Walsall Council,http://opendatacommunities.org/id/metropolitan-district-council/walsall ,WC151-693,30.06.2023,CHILDRENS,REDACTED,01/06/2023,355.56,6223-Special Guardianship Orders,TRANSFER PAYMENTS,CHILDREN SOCIAL SERVICES CLIENT,REVENUE
Walsall Council,http://opendatacommunities.org/id/metropolitan-district-council/walsall ,WC151-694,30.06.2023,CHILDRENS,REDACTED,28/06/2023,355.56,6223-Special Guardianship Orders,TRANSFER PAYMENTS,CHILDREN SOCIAL SERVICES CLIENT,REVENUE
Walsall Council,http://opendatacommunities.org/id/metropolitan-district-council/walsall ,WC151-695,30.06.2023,CHILDRENS,ALL SAINTS NATIONAL ACADEMY #1,29/06/2023,"33,368.25",1220-Top Up Funding -Grants to Schools,SUPPLIES & SERVICES,GRANTS (EXP) & SUBSCRIPTIONS,REVENUE
Walsall Council,http://opendatacommunities.org/id/metropolitan-district-council/walsall ,WC151-696,30.06.2023,ADULT SOCIAL CARE,REDACTED,07/06/2023,"1,180.00",6541-Direct Payment,THIRD PARTY PAYMENTS,PRIVATE CONTRACTOR,REVENUE
Walsall Council,http://opendatacommunities.org/id/metropolitan-district-council/walsall ,WC151-697,30.06.2023,CHILDRENS,ALLIANCE CARE LTD,02/06/2023,"3,078.00",6220-Professional Fees & Services,SUPPLIES & SERVICES,SERVICES,REVENUE
Walsall Council,http://opendatacommunities.org/id/metropolitan-district-council/walsall ,WC151-698,30.06.2023,RESOURCES AND TRANSFORMATION,ALLIED PUBLICITY SERVICES (MANCHESTER) LIMITED T/A APS GROUP,09/06/2023,"1,277.06",6312-External Printing Services,SUPPLIES & SERVICES,PRINTING STATIONERY & GENERAL OFFICE,REVENUE
Walsall Council,http://opendatacommunities.org/id/metropolitan-district-council/walsall ,WC151-699,30.06.2023,ADULT SOCIAL CARE,ALMA COURT,06/06/2023,"6,718.40",6541-Residential,THIRD PARTY PAYMENTS,PRIVATE CONTRACTOR,REVENUE
Walsall Council,http://opendatacommunities.org/id/metropolitan-district-council/walsall ,WC151-700,30.06.2023,ADULT SOCIAL CARE,ALMA COURT,06/06/2023,"4,892.59",6541-Nursing EMI,THIRD PARTY PAYMENTS,PRIVATE CONTRACTOR,REVENUE
Walsall Council,http://opendatacommunities.org/id/metropolitan-district-council/walsall ,WC151-701,30.06.2023,ADULT SOCIAL CARE,ALMA COURT,06/06/2023,"4,263.00",6541-Residential,THIRD PARTY PAYMENTS,PRIVATE CONTRACTOR,REVENUE
Walsall Council,http://opendatacommunities.org/id/metropolitan-district-council/walsall ,WC151-702,30.06.2023,ADULT SOCIAL CARE,ALMA COURT,06/06/2023,"4,086.87",6541-Nursing EMI,THIRD PARTY PAYMENTS,PRIVATE CONTRACTOR,REVENUE
Walsall Council,http://opendatacommunities.org/id/metropolitan-district-council/walsall ,WC151-703,30.06.2023,ADULT SOCIAL CARE,ALMA COURT,06/06/2023,"-3,257.14",6541-Residential,THIRD PARTY PAYMENTS,PRIVATE CONTRACTOR,REVENUE
Walsall Council,http://opendatacommunities.org/id/metropolitan-district-council/walsall ,WC151-704,30.06.2023,ADULT SOCIAL CARE,ALMA COURT,06/06/2023,"4,886.87",6541-Nursing EMI,THIRD PARTY PAYMENTS,PRIVATE CONTRACTOR,REVENUE
Walsall Council,http://opendatacommunities.org/id/metropolitan-district-council/walsall ,WC151-705,30.06.2023,CHILDRENS,ALMOZENE NURSERY & CHILDRENS CENTRE,30/06/2023,600.00,6222-Professional Fees & Services,SUPPLIES & SERVICES,SERVICES,REVENUE
Walsall Council,http://opendatacommunities.org/id/metropolitan-district-council/walsall ,WC151-706,30.06.2023,ADULT SOCIAL CARE,ALPHA HEALTH CARE LTD,06/06/2023,"2,850.67",6541-Nursing EMI,THIRD PARTY PAYMENTS,PRIVATE CONTRACTOR,REVENUE
Walsall Council,http://opendatacommunities.org/id/metropolitan-district-council/walsall ,WC151-707,30.06.2023,ADULT SOCIAL CARE,ALPHA HEALTH CARE LTD,06/06/2023,"2,963.88",6541-Residential EMI,THIRD PARTY PAYMENTS,PRIVATE CONTRACTOR,REVENUE
Walsall Council,http://opendatacommunities.org/id/metropolitan-district-council/walsall ,WC151-708,30.06.2023,ADULT SOCIAL CARE,ALPHA HEALTH CARE LTD,06/06/2023,"7,105.00",6541-Residential,THIRD PARTY PAYMENTS,PRIVATE CONTRACTOR,REVENUE
Walsall Council,http://opendatacommunities.org/id/metropolitan-district-council/walsall ,WC151-709,30.06.2023,ADULT SOCIAL CARE,ALPHA HEALTH CARE LTD,06/06/2023,"3,449.32",6541-Residential EMI,THIRD PARTY PAYMENTS,PRIVATE CONTRACTOR,REVENUE
Walsall Council,http://opendatacommunities.org/id/metropolitan-district-council/walsall ,WC151-710,30.06.2023,ADULT SOCIAL CARE,ALPHA HEALTH CARE LTD,06/06/2023,"3,449.32",6541-Residential EMI,THIRD PARTY PAYMENTS,PRIVATE CONTRACTOR,REVENUE
Walsall Council,http://opendatacommunities.org/id/metropolitan-district-council/walsall ,WC151-711,30.06.2023,ADULT SOCIAL CARE,ALPHA HEALTH CARE LTD,06/06/2023,"7,154.67",6541-Nursing EMI,THIRD PARTY PAYMENTS,PRIVATE CONTRACTOR,REVENUE
Walsall Council,http://opendatacommunities.org/id/metropolitan-district-council/walsall ,WC151-712,30.06.2023,ADULT SOCIAL CARE,ALPHA HEALTH CARE LTD,06/06/2023,"3,218.99",6541-Nursing EMI,THIRD PARTY PAYMENTS,PRIVATE CONTRACTOR,REVENUE
Walsall Council,http://opendatacommunities.org/id/metropolitan-district-council/walsall ,WC151-713,30.06.2023,ADULT SOCIAL CARE,ALPHA HEALTH CARE LTD,06/06/2023,"3,472.40",6541-Residential EMI,THIRD PARTY PAYMENTS,PRIVATE CONTRACTOR,REVENUE
Walsall Council,http://opendatacommunities.org/id/metropolitan-district-council/walsall ,WC151-714,30.06.2023,ADULT SOCIAL CARE,ALPHA HEALTH CARE LTD,06/06/2023,"2,840.40",6541-Residential EMI,THIRD PARTY PAYMENTS,PRIVATE CONTRACTOR,REVENUE
Walsall Council,http://opendatacommunities.org/id/metropolitan-district-council/walsall ,WC151-715,30.06.2023,ADULT SOCIAL CARE,ALPHA HEALTH CARE LTD,06/06/2023,"6,343.36",6541-Residential,THIRD PARTY PAYMENTS,PRIVATE CONTRACTOR,REVENUE
Walsall Council,http://opendatacommunities.org/id/metropolitan-district-council/walsall ,WC151-716,30.06.2023,ADULT SOCIAL CARE,ALPHA HEALTH CARE LTD,06/06/2023,"3,163.06",6541-Nursing,THIRD PARTY PAYMENTS,PRIVATE CONTRACTOR,REVENUE
Walsall Council,http://opendatacommunities.org/id/metropolitan-district-council/walsall ,WC151-717,30.06.2023,ADULT SOCIAL CARE,ALPHA HEALTH CARE LTD,06/06/2023,"7,600.00",6541-Residential,THIRD PARTY PAYMENTS,PRIVATE CONTRACTOR,REVENUE
Walsall Council,http://opendatacommunities.org/id/metropolitan-district-council/walsall ,WC151-718,30.06.2023,ADULT SOCIAL CARE,ALPHA HEALTH CARE LTD,06/06/2023,"4,054.36",6541-Residential EMI,THIRD PARTY PAYMENTS,PRIVATE CONTRACTOR,REVENUE
Walsall Council,http://opendatacommunities.org/id/metropolitan-district-council/walsall ,WC151-719,30.06.2023,ADULT SOCIAL CARE,ALPHA HEALTH CARE LTD,06/06/2023,"2,440.40",6541-Residential EMI,THIRD PARTY PAYMENTS,PRIVATE CONTRACTOR,REVENUE
Walsall Council,http://opendatacommunities.org/id/metropolitan-district-council/walsall ,WC151-720,30.06.2023,ADULT SOCIAL CARE,ALPHA HEALTH CARE LTD,06/06/2023,"3,075.18",6541-Nursing,THIRD PARTY PAYMENTS,PRIVATE CONTRACTOR,REVENUE
Walsall Council,http://opendatacommunities.org/id/metropolitan-district-council/walsall ,WC151-721,30.06.2023,ADULT SOCIAL CARE,ALPHA HEALTH CARE LTD,06/06/2023,"2,933.42",6541-Nursing,THIRD PARTY PAYMENTS,PRIVATE CONTRACTOR,REVENUE
Walsall Council,http://opendatacommunities.org/id/metropolitan-district-council/walsall ,WC151-722,30.06.2023,ADULT SOCIAL CARE,ALPHA HEALTH CARE LTD,06/06/2023,"2,440.40",6541-Residential EMI,THIRD PARTY PAYMENTS,PRIVATE CONTRACTOR,REVENUE
Walsall Council,http://opendatacommunities.org/id/metropolitan-district-council/walsall ,WC151-723,30.06.2023,ADULT SOCIAL CARE,ALPHA HEALTH CARE LTD,06/06/2023,578.39,6541-Nursing EMI,THIRD PARTY PAYMENTS,PRIVATE CONTRACTOR,REVENUE
Walsall Council,http://opendatacommunities.org/id/metropolitan-district-council/walsall ,WC151-724,30.06.2023,ADULT SOCIAL CARE,ALPHA HEALTH CARE LTD,06/06/2023,"7,600.00",6541-Residential,THIRD PARTY PAYMENTS,PRIVATE CONTRACTOR,REVENUE
Walsall Council,http://opendatacommunities.org/id/metropolitan-district-council/walsall ,WC151-725,30.06.2023,ADULT SOCIAL CARE,ALPHA HEALTH CARE LTD,06/06/2023,"5,000.00",6554-Professional Services-Priv Contractor & Other Agencies,THIRD PARTY PAYMENTS,PRIVATE CONTRACTOR,REVENUE
Walsall Council,http://opendatacommunities.org/id/metropolitan-district-council/walsall ,WC151-726,30.06.2023,ADULT SOCIAL CARE,ALPHA HEALTH CARE LTD,06/06/2023,"4,877.18",6541-Nursing,THIRD PARTY PAYMENTS,PRIVATE CONTRACTOR,REVENUE
Walsall Council,http://opendatacommunities.org/id/metropolitan-district-council/walsall ,WC151-727,30.06.2023,ADULT SOCIAL CARE,ALPHA HEALTH CARE LTD,06/06/2023,"7,665.91",6541-Residential EMI,THIRD PARTY PAYMENTS,PRIVATE CONTRACTOR,REVENUE
Walsall Council,http://opendatacommunities.org/id/metropolitan-district-council/walsall ,WC151-728,30.06.2023,ADULT SOCIAL CARE,ALPHA HEALTH CARE LTD,06/06/2023,344.77,6541-Residential EMI,THIRD PARTY PAYMENTS,PRIVATE CONTRACTOR,REVENUE
Walsall Council,http://opendatacommunities.org/id/metropolitan-district-council/walsall ,WC151-729,30.06.2023,ADULT SOCIAL CARE,ALPHA HEALTH CARE LTD,06/06/2023,"7,638.44",6541-Residential EMI,THIRD PARTY PAYMENTS,PRIVATE CONTRACTOR,REVENUE
Walsall Council,http://opendatacommunities.org/id/metropolitan-district-council/walsall ,WC151-730,30.06.2023,ADULT SOCIAL CARE,ALPHA HEALTH CARE LTD,06/06/2023,"2,520.00",6541-Nursing,THIRD PARTY PAYMENTS,PRIVATE CONTRACTOR,REVENUE
Walsall Council,http://opendatacommunities.org/id/metropolitan-district-council/walsall ,WC151-731,30.06.2023,ADULT SOCIAL CARE,ALPHA HEALTH CARE LTD,06/06/2023,"39,085.71",6541-Residential,THIRD PARTY PAYMENTS,PRIVATE CONTRACTOR,REVENUE
Walsall Council,http://opendatacommunities.org/id/metropolitan-district-council/walsall ,WC151-732,30.06.2023,ADULT SOCIAL CARE,ALPHA HEALTH CARE LTD,06/06/2023,"3,754.67",6541-Nursing EMI,THIRD PARTY PAYMENTS,PRIVATE CONTRACTOR,REVENUE
Walsall Council,http://opendatacommunities.org/id/metropolitan-district-council/walsall ,WC151-733,30.06.2023,ADULT SOCIAL CARE,ALPHA HEALTH CARE LTD,06/06/2023,"3,958.52",6541-Residential,THIRD PARTY PAYMENTS,PRIVATE CONTRACTOR,REVENUE
Walsall Council,http://opendatacommunities.org/id/metropolitan-district-council/walsall ,WC151-734,30.06.2023,ADULT SOCIAL CARE,ALPHA HEALTH CARE LTD,06/06/2023,"4,206.87",6541-Nursing EMI,THIRD PARTY PAYMENTS,PRIVATE CONTRACTOR,REVENUE
Walsall Council,http://opendatacommunities.org/id/metropolitan-district-council/walsall ,WC151-735,30.06.2023,ADULT SOCIAL CARE,ALPHA HEALTH CARE LTD,06/06/2023,"1,289.56",6541-Nursing,THIRD PARTY PAYMENTS,PRIVATE CONTRACTOR,REVENUE
Walsall Council,http://opendatacommunities.org/id/metropolitan-district-council/walsall ,WC151-736,30.06.2023,ADULT SOCIAL CARE,ALPHA HEALTH CARE LTD,06/06/2023,"3,090.44",6541-Residential,THIRD PARTY PAYMENTS,PRIVATE CONTRACTOR,REVENUE
Walsall Council,http://opendatacommunities.org/id/metropolitan-district-council/walsall ,WC151-737,30.06.2023,ADULT SOCIAL CARE,ALPHA HEALTH CARE LTD,06/06/2023,"3,594.36",6541-Residential EMI,THIRD PARTY PAYMENTS,PRIVATE CONTRACTOR,REVENUE
Walsall Council,http://opendatacommunities.org/id/metropolitan-district-council/walsall ,WC151-738,30.06.2023,ADULT SOCIAL CARE,ALPHA HEALTH CARE LTD,06/06/2023,"4,886.87",6541-Nursing EMI,THIRD PARTY PAYMENTS,PRIVATE CONTRACTOR,REVENUE
Walsall Council,http://opendatacommunities.org/id/metropolitan-district-council/walsall ,WC151-739,30.06.2023,ADULT SOCIAL CARE,ALPHA HEALTH CARE LTD,06/06/2023,"4,800.00",6554-Professional Services-Priv Contractor & Other Agencies,THIRD PARTY PAYMENTS,PRIVATE CONTRACTOR,REVENUE
Walsall Council,http://opendatacommunities.org/id/metropolitan-district-council/walsall ,WC151-740,30.06.2023,ADULT SOCIAL CARE,ALPHA HEALTH CARE LTD,06/06/2023,"5,080.95",6541-Nursing EMI,THIRD PARTY PAYMENTS,PRIVATE CONTRACTOR,REVENUE
Walsall Council,http://opendatacommunities.org/id/metropolitan-district-council/walsall ,WC151-741,30.06.2023,ADULT SOCIAL CARE,ALPHA HEALTH CARE LTD,28/06/2023,"7,200.00",6541-Nursing EMI,THIRD PARTY PAYMENTS,PRIVATE CONTRACTOR,REVENUE
Walsall Council,http://opendatacommunities.org/id/metropolitan-district-council/walsall ,WC151-742,30.06.2023,ADULT SOCIAL CARE,ALPHA HEALTH CARE LTD,28/06/2023,"1,047.70",6541-Residential,THIRD PARTY PAYMENTS,PRIVATE CONTRACTOR,REVENUE
Walsall Council,http://opendatacommunities.org/id/metropolitan-district-council/walsall ,WC151-743,30.06.2023,ADULT SOCIAL CARE,ALPHA HEALTH CARE LTD,28/06/2023,523.85,6541-Residential,THIRD PARTY PAYMENTS,PRIVATE CONTRACTOR,REVENUE
Walsall Council,http://opendatacommunities.org/id/metropolitan-district-council/walsall ,WC151-744,30.06.2023,ADULT SOCIAL CARE,ALPHA HEALTH CARE LTD,28/06/2023,"1,880.00",6541-Residential,THIRD PARTY PAYMENTS,PRIVATE CONTRACTOR,REVENUE
Walsall Council,http://opendatacommunities.org/id/metropolitan-district-council/walsall ,WC151-745,30.06.2023,ADULT SOCIAL CARE,ALPHA HEALTH CARE LTD,28/06/2023,940.00,6541-Residential,THIRD PARTY PAYMENTS,PRIVATE CONTRACTOR,REVENUE
Walsall Council,http://opendatacommunities.org/id/metropolitan-district-council/walsall ,WC151-746,30.06.2023,ADULT SOCIAL CARE,ALPHA HEALTH CARE LTD,28/06/2023,"4,243.05",6541-Residential EMI,THIRD PARTY PAYMENTS,PRIVATE CONTRACTOR,REVENUE
Walsall Council,http://opendatacommunities.org/id/metropolitan-district-council/walsall ,WC151-747,30.06.2023,ADULT SOCIAL CARE,ALPHA HEALTH CARE LTD,28/06/2023,"2,357.25",6541-Residential EMI,THIRD PARTY PAYMENTS,PRIVATE CONTRACTOR,REVENUE
Walsall Council,http://opendatacommunities.org/id/metropolitan-district-council/walsall ,WC151-748,30.06.2023,CHILDRENS,ALPHABIOLABS,28/06/2023,"1,655.00",6222-Professional Fees & Services,SUPPLIES & SERVICES,SERVICES,REVENUE
Walsall Council,http://opendatacommunities.org/id/metropolitan-district-council/walsall ,WC151-749,30.06.2023,ADULT SOCIAL CARE,REDACTED,07/06/2023,781.40,6541-Direct Payment,THIRD PARTY PAYMENTS,PRIVATE CONTRACTOR,REVENUE
Walsall Council,http://opendatacommunities.org/id/metropolitan-district-council/walsall ,WC151-750,30.06.2023,CHILDRENS,LITTLE BLOSSOMS CHILDMINDING,29/06/2023,344.00,6223-Creche Facilities,SUPPLIES & SERVICES,SERVICES,REVENUE
Walsall Council,http://opendatacommunities.org/id/metropolitan-district-council/walsall ,WC151-751,30.06.2023,CHILDRENS,AMANS TRAVEL LTD,19/06/2023,"2,660.00",6241-Hire of Vehicle with Driver,TRANSPORT,DIRECT TRANSPORT COSTS,REVENUE
Walsall Council,http://opendatacommunities.org/id/metropolitan-district-council/walsall ,WC151-752,30.06.2023,CHILDRENS,AMANS TRAVEL LTD,19/06/2023,"2,660.00",6241-Hire of Vehicle with Driver,TRANSPORT,DIRECT TRANSPORT COSTS,REVENUE
Walsall Council,http://opendatacommunities.org/id/metropolitan-district-council/walsall ,WC151-753,30.06.2023,CHILDRENS,AMANS TRAVEL LTD,19/06/2023,"2,940.00",6241-Hire of Vehicle with Driver,TRANSPORT,DIRECT TRANSPORT COSTS,REVENUE
Walsall Council,http://opendatacommunities.org/id/metropolitan-district-council/walsall ,WC151-754,30.06.2023,CHILDRENS,AMANS TRAVEL LTD,19/06/2023,"1,890.00",6241-Hire of Vehicle with Driver,TRANSPORT,DIRECT TRANSPORT COSTS,REVENUE
Walsall Council,http://opendatacommunities.org/id/metropolitan-district-council/walsall ,WC151-755,30.06.2023,CHILDRENS,AMANS TRAVEL LTD,19/06/2023,"1,890.00",6241-Hire of Vehicle with Driver,TRANSPORT,DIRECT TRANSPORT COSTS,REVENUE
Walsall Council,http://opendatacommunities.org/id/metropolitan-district-council/walsall ,WC151-756,30.06.2023,CHILDRENS CAPITAL,AMAZON BUSINESS UK,13/06/2023,"1,674.09",7155-Purchase of Vehicles & Plant,CAPITAL,"VEHICLES,PLANT,EQUIPMENT & MACHINERY",CAPITAL
Walsall Council,http://opendatacommunities.org/id/metropolitan-district-council/walsall ,WC151-757,30.06.2023,CHILDRENS,AMBER FOSTERING LTD,13/06/2023,"2,253.86",6223-Independent Foster Care-Oth Agency Provision,THIRD PARTY PAYMENTS,PRIVATE CONTRACTOR,REVENUE
Walsall Council,http://opendatacommunities.org/id/metropolitan-district-council/walsall ,WC151-758,30.06.2023,ADULT SOCIAL CARE,REDACTED,07/06/2023,"2,825.16",6541-Direct Payment,THIRD PARTY PAYMENTS,PRIVATE CONTRACTOR,REVENUE
Walsall Council,http://opendatacommunities.org/id/metropolitan-district-council/walsall ,WC151-759,30.06.2023,ECONOMY & ENVIRONMENT CAPITAL,AMEY LG LIMITED,07/06/2023,"28,112.00",7200-Site Works Contractors,CAPITAL,"NEW CONSTRUCTION,CONVERSION & RENOVATION",CAPITAL
Walsall Council,http://opendatacommunities.org/id/metropolitan-district-council/walsall ,WC151-760,30.06.2023,"ECONOMY, ENVIRONMENT & COMMUNITIES",AMEY LG LIMITED,23/06/2023,"1,985.81",6411-Professional Services-Priv Contractor & Other Agencies,THIRD PARTY PAYMENTS,PRIVATE CONTRACTOR,REVENUE
Walsall Council,http://opendatacommunities.org/id/metropolitan-district-council/walsall ,WC151-761,30.06.2023,"ECONOMY, ENVIRONMENT & COMMUNITIES",AMEY LG LIMITED,23/06/2023,"3,971.62",6411-Professional Services-Priv Contractor & Other Agencies,THIRD PARTY PAYMENTS,PRIVATE CONTRACTOR,REVENUE
Walsall Council,http://opendatacommunities.org/id/metropolitan-district-council/walsall ,WC151-762,30.06.2023,ECONOMY & ENVIRONMENT CAPITAL,AMEY LG LIMITED,15/06/2023,"-43,234.79",7200-Consultants Fees,CAPITAL,"NEW CONSTRUCTION,CONVERSION & RENOVATION",CAPITAL
Walsall Council,http://opendatacommunities.org/id/metropolitan-district-council/walsall ,WC151-763,30.06.2023,ECONOMY & ENVIRONMENT CAPITAL,AMEY LG LIMITED,15/06/2023,"43,234.79",7200-Consultants Fees,CAPITAL,"NEW CONSTRUCTION,CONVERSION & RENOVATION",CAPITAL
Walsall Council,http://opendatacommunities.org/id/metropolitan-district-council/walsall ,WC151-764,30.06.2023,ECONOMY & ENVIRONMENT CAPITAL,AMEY LG LIMITED,15/06/2023,"-28,177.60",7200-Consultants Fees,CAPITAL,"NEW CONSTRUCTION,CONVERSION & RENOVATION",CAPITAL
Walsall Council,http://opendatacommunities.org/id/metropolitan-district-council/walsall ,WC151-765,30.06.2023,ECONOMY & ENVIRONMENT CAPITAL,AMEY LG LIMITED,15/06/2023,"28,177.60",7200-Consultants Fees,CAPITAL,"NEW CONSTRUCTION,CONVERSION & RENOVATION",CAPITAL
Walsall Council,http://opendatacommunities.org/id/metropolitan-district-council/walsall ,WC151-766,30.06.2023,"ECONOMY, ENVIRONMENT & COMMUNITIES",AMEY LG LIMITED,20/06/2023,"1,508.11",6313-Repair & Maintenance of Furniture & Equipment,SUPPLIES & SERVICES,EQUIPMENT FURNITURE & MATERIALS,REVENUE
Walsall Council,http://opendatacommunities.org/id/metropolitan-district-council/walsall ,WC151-767,30.06.2023,"ECONOMY, ENVIRONMENT & COMMUNITIES",AMEY LG LIMITED,22/06/2023,310.67,6411-Professional Fees & Services,SUPPLIES & SERVICES,SERVICES,REVENUE
Walsall Council,http://opendatacommunities.org/id/metropolitan-district-council/walsall ,WC151-768,30.06.2023,ECONOMY & ENVIRONMENT CAPITAL,AMEY LG LIMITED,20/06/2023,412.25,7200-Site Works Contractors,CAPITAL,"NEW CONSTRUCTION,CONVERSION & RENOVATION",CAPITAL
Walsall Council,http://opendatacommunities.org/id/metropolitan-district-council/walsall ,WC151-769,30.06.2023,ECONOMY & ENVIRONMENT CAPITAL,AMEY LG LIMITED,27/06/2023,"23,060.87",7200-Site Works Contractors,CAPITAL,"NEW CONSTRUCTION,CONVERSION & RENOVATION",CAPITAL
Walsall Council,http://opendatacommunities.org/id/metropolitan-district-council/walsall ,WC151-770,30.06.2023,ECONOMY & ENVIRONMENT CAPITAL,AMEY OW LTD,07/06/2023,"6,784.22",7200-Project Fees,CAPITAL,"NEW CONSTRUCTION,CONVERSION & RENOVATION",CAPITAL
Walsall Council,http://opendatacommunities.org/id/metropolitan-district-council/walsall ,WC151-771,30.06.2023,ECONOMY & ENVIRONMENT CAPITAL,AMEY OW LTD,26/06/2023,"5,317.44",7200-Project Fees,CAPITAL,"NEW CONSTRUCTION,CONVERSION & RENOVATION",CAPITAL
Walsall Council,http://opendatacommunities.org/id/metropolitan-district-council/walsall ,WC151-772,30.06.2023,ECONOMY & ENVIRONMENT CAPITAL,AMEY OW LTD,22/06/2023,"11,792.65",7200-Project Fees,CAPITAL,"NEW CONSTRUCTION,CONVERSION & RENOVATION",CAPITAL
Walsall Council,http://opendatacommunities.org/id/metropolitan-district-council/walsall ,WC151-773,30.06.2023,ECONOMY & ENVIRONMENT CAPITAL,AMEY OW LTD,23/06/2023,"12,741.81",7200-Site Works Contractors,CAPITAL,"NEW CONSTRUCTION,CONVERSION & RENOVATION",CAPITAL
Walsall Council,http://opendatacommunities.org/id/metropolitan-district-council/walsall ,WC151-774,30.06.2023,CHILDRENS,AMG NURSING CARE SERVICES,16/06/2023,"-2,046.44",6220-Professional Fees & Services,SUPPLIES & SERVICES,SERVICES,REVENUE
Walsall Council,http://opendatacommunities.org/id/metropolitan-district-council/walsall ,WC151-775,30.06.2023,CHILDRENS,AMG NURSING CARE SERVICES,16/06/2023,"2,046.44",6220-Professional Fees & Services,SUPPLIES & SERVICES,SERVICES,REVENUE
Walsall Council,http://opendatacommunities.org/id/metropolitan-district-council/walsall ,WC151-776,30.06.2023,ADULT SOCIAL CARE,AMG NURSING CARE SERVICES,28/06/2023,"15,377.93",6541-Community Supported Living/Supported Accommodation,THIRD PARTY PAYMENTS,PRIVATE CONTRACTOR,REVENUE
Walsall Council,http://opendatacommunities.org/id/metropolitan-district-council/walsall ,WC151-777,30.06.2023,ADULT SOCIAL CARE,AMG NURSING CARE SERVICES,28/06/2023,"7,613.18",6541-Community Supported Living/Supported Accommodation,THIRD PARTY PAYMENTS,PRIVATE CONTRACTOR,REVENUE
Walsall Council,http://opendatacommunities.org/id/metropolitan-district-council/walsall ,WC151-778,30.06.2023,CHILDRENS,AMG NURSING CARE SERVICES,09/06/2023,344.70,6210-Professional Fees & Services,SUPPLIES & SERVICES,SERVICES,REVENUE
Walsall Council,http://opendatacommunities.org/id/metropolitan-district-council/walsall ,WC151-779,30.06.2023,CHILDRENS,AMG NURSING CARE SERVICES,23/06/2023,667.50,6220-Professional Fees & Services,SUPPLIES & SERVICES,SERVICES,REVENUE
Walsall Council,http://opendatacommunities.org/id/metropolitan-district-council/walsall ,WC151-780,30.06.2023,CHILDRENS,AMG NURSING CARE SERVICES,02/06/2023,325.28,6220-Professional Fees & Services,SUPPLIES & SERVICES,SERVICES,REVENUE
Walsall Council,http://opendatacommunities.org/id/metropolitan-district-council/walsall ,WC151-781,30.06.2023,CHILDRENS,AMG NURSING CARE SERVICES,02/06/2023,442.75,6220-Professional Fees & Services,SUPPLIES & SERVICES,SERVICES,REVENUE
Walsall Council,http://opendatacommunities.org/id/metropolitan-district-council/walsall ,WC151-782,30.06.2023,CHILDRENS,AMG NURSING CARE SERVICES,02/06/2023,720.70,6220-Professional Fees & Services,SUPPLIES & SERVICES,SERVICES,REVENUE
Walsall Council,http://opendatacommunities.org/id/metropolitan-district-council/walsall ,WC151-783,30.06.2023,CHILDRENS,AMG NURSING CARE SERVICES,09/06/2023,315.99,6210-Professional Fees & Services,SUPPLIES & SERVICES,SERVICES,REVENUE
Walsall Council,http://opendatacommunities.org/id/metropolitan-district-council/walsall ,WC151-784,30.06.2023,CHILDRENS,AMG NURSING CARE SERVICES,09/06/2023,327.45,6220-Professional Fees & Services,SUPPLIES & SERVICES,SERVICES,REVENUE
Walsall Council,http://opendatacommunities.org/id/metropolitan-district-council/walsall ,WC151-785,30.06.2023,CHILDRENS,AMG NURSING CARE SERVICES,09/06/2023,603.54,6220-Professional Fees & Services,SUPPLIES & SERVICES,SERVICES,REVENUE
Walsall Council,http://opendatacommunities.org/id/metropolitan-district-council/walsall ,WC151-786,30.06.2023,CHILDRENS,AMG NURSING CARE SERVICES,19/06/2023,535.30,6220-Professional Fees & Services,SUPPLIES & SERVICES,SERVICES,REVENUE
Walsall Council,http://opendatacommunities.org/id/metropolitan-district-council/walsall ,WC151-787,30.06.2023,CHILDRENS,AMG NURSING CARE SERVICES,19/06/2023,327.45,6220-Professional Fees & Services,SUPPLIES & SERVICES,SERVICES,REVENUE
Walsall Council,http://opendatacommunities.org/id/metropolitan-district-council/walsall ,WC151-788,30.06.2023,CHILDRENS,AMG NURSING CARE SERVICES,20/06/2023,469.20,6220-Professional Fees & Services,SUPPLIES & SERVICES,SERVICES,REVENUE
Walsall Council,http://opendatacommunities.org/id/metropolitan-district-council/walsall ,WC151-789,30.06.2023,CHILDRENS,AMG NURSING CARE SERVICES,22/06/2023,-321.18,6220-Professional Fees & Services,SUPPLIES & SERVICES,SERVICES,REVENUE
Walsall Council,http://opendatacommunities.org/id/metropolitan-district-council/walsall ,WC151-790,30.06.2023,CHILDRENS,AMG NURSING CARE SERVICES,22/06/2023,321.18,6220-Professional Fees & Services,SUPPLIES & SERVICES,SERVICES,REVENUE
Walsall Council,http://opendatacommunities.org/id/metropolitan-district-council/walsall ,WC151-791,30.06.2023,CHILDRENS,AMG NURSING CARE SERVICES,22/06/2023,-430.90,6220-Professional Fees & Services,SUPPLIES & SERVICES,SERVICES,REVENUE
Walsall Council,http://opendatacommunities.org/id/metropolitan-district-council/walsall ,WC151-792,30.06.2023,CHILDRENS,AMG NURSING CARE SERVICES,22/06/2023,430.90,6220-Professional Fees & Services,SUPPLIES & SERVICES,SERVICES,REVENUE
Walsall Council,http://opendatacommunities.org/id/metropolitan-district-council/walsall ,WC151-793,30.06.2023,CHILDRENS,REDACTED,01/06/2023,604.00,6223-Special Guardianship Orders,TRANSFER PAYMENTS,CHILDREN SOCIAL SERVICES CLIENT,REVENUE
Walsall Council,http://opendatacommunities.org/id/metropolitan-district-council/walsall ,WC151-794,30.06.2023,CHILDRENS,REDACTED,01/06/2023,374.00,6223-Special Guardianship Orders,TRANSFER PAYMENTS,CHILDREN SOCIAL SERVICES CLIENT,REVENUE
Walsall Council,http://opendatacommunities.org/id/metropolitan-district-council/walsall ,WC151-795,30.06.2023,CHILDRENS,REDACTED,28/06/2023,604.00,6223-Special Guardianship Orders,TRANSFER PAYMENTS,CHILDREN SOCIAL SERVICES CLIENT,REVENUE
Walsall Council,http://opendatacommunities.org/id/metropolitan-district-council/walsall ,WC151-796,30.06.2023,CHILDRENS,REDACTED,28/06/2023,374.00,6223-Special Guardianship Orders,TRANSFER PAYMENTS,CHILDREN SOCIAL SERVICES CLIENT,REVENUE
Walsall Council,http://opendatacommunities.org/id/metropolitan-district-council/walsall ,WC151-797,30.06.2023,ADULT SOCIAL CARE,ANCHOR HANOVER GROUP - BLOOMFIELD COURT,06/06/2023,"2,440.40",6541-Residential EMI,THIRD PARTY PAYMENTS,PRIVATE CONTRACTOR,REVENUE
Walsall Council,http://opendatacommunities.org/id/metropolitan-district-council/walsall ,WC151-798,30.06.2023,ADULT SOCIAL CARE,ANCHOR HANOVER GROUP - BLOOMFIELD COURT,06/06/2023,"5,700.75",6541-Residential EMI,THIRD PARTY PAYMENTS,PRIVATE CONTRACTOR,REVENUE
Walsall Council,http://opendatacommunities.org/id/metropolitan-district-council/walsall ,WC151-799,30.06.2023,ADULT SOCIAL CARE,ANCHOR HANOVER GROUP - HARDEN HALL CARE HOME,06/06/2023,"2,440.40",6541-Residential EMI,THIRD PARTY PAYMENTS,PRIVATE CONTRACTOR,REVENUE
Walsall Council,http://opendatacommunities.org/id/metropolitan-district-council/walsall ,WC151-800,30.06.2023,ADULT SOCIAL CARE,ANCHOR HANOVER GROUP - HARDEN HALL CARE HOME,06/06/2023,"2,440.40",6541-Residential EMI,THIRD PARTY PAYMENTS,PRIVATE CONTRACTOR,REVENUE
Walsall Council,http://opendatacommunities.org/id/metropolitan-district-council/walsall ,WC151-801,30.06.2023,ADULT SOCIAL CARE,ANCHOR HANOVER GROUP - HARDEN HALL CARE HOME,06/06/2023,"2,440.40",6541-Residential EMI,THIRD PARTY PAYMENTS,PRIVATE CONTRACTOR,REVENUE
Walsall Council,http://opendatacommunities.org/id/metropolitan-district-council/walsall ,WC151-802,30.06.2023,ADULT SOCIAL CARE,ANCHOR HANOVER GROUP - HARDEN HALL CARE HOME,06/06/2023,"2,440.40",6541-Residential EMI,THIRD PARTY PAYMENTS,PRIVATE CONTRACTOR,REVENUE
Walsall Council,http://opendatacommunities.org/id/metropolitan-district-council/walsall ,WC151-803,30.06.2023,ADULT SOCIAL CARE,ANCHOR HANOVER GROUP - HARDEN HALL CARE HOME,06/06/2023,"2,440.40",6541-Residential EMI,THIRD PARTY PAYMENTS,PRIVATE CONTRACTOR,REVENUE
Walsall Council,http://opendatacommunities.org/id/metropolitan-district-council/walsall ,WC151-804,30.06.2023,ADULT SOCIAL CARE,ANCHOR HANOVER GROUP - HARDEN HALL CARE HOME,06/06/2023,"2,161.28",6541-Residential,THIRD PARTY PAYMENTS,PRIVATE CONTRACTOR,REVENUE
